Organisation Code,Organisation Label,Effective Date,Organisational Unit,Service Division Label,Category Internal Name,Purpose,Detailed Expenditure Code,Payment Date,Transaction Number,Irrecoverable VAT Amount,Amount,Capital Or Revenue,Benificiary Name,Procurement Card
Http://opendatacommunities.org/id/metropolitan-district-council/leeds,Leeds City Council,31/03/2020,City Development,Libraries  Arts & Heritage,Supplies and Services,Advertising,211,18/03/2020,2003-00001,0.00,250.00,R,A & N Media Finance Services Ltd,No
Http://opendatacommunities.org/id/metropolitan-district-council/leeds,Leeds City Council,31/03/2020,City Development,Libraries  Arts & Heritage,Supplies and Services,Advertising,211,20/03/2020,2003-00002,0.00,500.00,R,A & N Media Finance Services Ltd,No
Http://opendatacommunities.org/id/metropolitan-district-council/leeds,Leeds City Council,31/03/2020,Communities and Environment,Customer Access  ,Supplies and Services,Computer Software & Equipment,214,03/02/2020,2003-00003,0.00,275.00,R,A & P Chambers Ltd,Yes
Http://opendatacommunities.org/id/metropolitan-district-council/leeds,Leeds City Council,31/03/2020,Adults and Health,Services For Older People Under 65 P/Dis,Third Party Payments,Sheltered Accommodation,569,04/03/2020,2003-00004,0.00,5400.00,R,A & V Transitional Homes,No
Http://opendatacommunities.org/id/metropolitan-district-council/leeds,Leeds City Council,31/03/2020,Communities and Environment,Car Parking Services,Income,Penalties  Fines & Car Parking Charges,934,12/03/2020,2003-00005,0.00,113.00,R,REDACTED PERSONAL DATA,No
Http://opendatacommunities.org/id/metropolitan-district-council/leeds,Leeds City Council,31/03/2020,Resources and Housing,HRA Housing Leeds,Capital,Other Costs,7,05/03/2020,2003-00006,0.00,80.00,C,REDACTED PERSONAL DATA,No
Http://opendatacommunities.org/id/metropolitan-district-council/leeds,Leeds City Council,31/03/2020,Resources and Housing,Leeds Building Services,Supplies and Services,Operational Materials,205,06/03/2020,2003-00007,0.00,115.41,R,A Andrews & Sons (Marbles & Tiles),No
Http://opendatacommunities.org/id/metropolitan-district-council/leeds,Leeds City Council,31/03/2020,Children and Families,Social Care,Third Party Payments,Services Rendered By Other Organisations,511,06/03/2020,2003-00008,0.00,256.56,R,REDACTED PERSONAL DATA,No
Http://opendatacommunities.org/id/metropolitan-district-council/leeds,Leeds City Council,31/03/2020,Resources and Housing,HRA Housing Leeds,Capital,Other Costs,7,05/03/2020,2003-00009,0.00,100.00,C,REDACTED PERSONAL DATA,No
Http://opendatacommunities.org/id/metropolitan-district-council/leeds,Leeds City Council,31/03/2020,Resources and Housing,Leeds Building Services,Supplies and Services,Other Hired And Contracted Services,265,06/03/2020,2003-00010,0.00,131960.00,R,A Buckler (Haulage) Ltd,No
Http://opendatacommunities.org/id/metropolitan-district-council/leeds,Leeds City Council,31/03/2020,City Development,Libraries  Arts & Heritage,Supplies and Services,Operational Furniture And Equipment,203,30/03/2020,2003-00011,0.00,316.25,R,A C Entertainment Technologies Ltd,No
Http://opendatacommunities.org/id/metropolitan-district-council/leeds,Leeds City Council,31/03/2020,City Development,Libraries  Arts & Heritage,Supplies and Services,Other Hired And Contracted Services,265,30/03/2020,2003-00012,0.00,120.00,R,A C Entertainment Technologies Ltd,No
Http://opendatacommunities.org/id/metropolitan-district-council/leeds,Leeds City Council,31/03/2020,City Development,Libraries  Arts & Heritage,Supplies and Services,Operational Furniture And Equipment,203,30/03/2020,2003-00013,0.00,-316.25,R,A C Entertainment Technologies Ltd,No
Http://opendatacommunities.org/id/metropolitan-district-council/leeds,Leeds City Council,31/03/2020,Children and Families,Social Care,Third Party Payments,Services Rendered By Other Organisations,511,06/03/2020,2003-00014,0.00,946.00,R,REDACTED PERSONAL DATA,No
Http://opendatacommunities.org/id/metropolitan-district-council/leeds,Leeds City Council,31/03/2020,Children and Families,Social Care,Third Party Payments,Services Rendered By Other Organisations,511,06/03/2020,2003-00015,0.00,516.00,R,REDACTED PERSONAL DATA,No
Http://opendatacommunities.org/id/metropolitan-district-council/leeds,Leeds City Council,31/03/2020,Resources and Housing,HRA Housing Leeds,Capital,Construction,3,05/03/2020,2003-00016,0.00,252314.76,C,A Connolly Limited,No
Http://opendatacommunities.org/id/metropolitan-district-council/leeds,Leeds City Council,31/03/2020,Resources and Housing,HRA Housing Leeds,Capital,Construction,3,27/03/2020,2003-00017,0.00,243006.21,C,A Connolly Limited,No
Http://opendatacommunities.org/id/metropolitan-district-council/leeds,Leeds City Council,31/03/2020,Resources and Housing,Leeds Building Services,Supplies and Services,Other Hired And Contracted Services,265,03/03/2020,2003-00018,0.00,95.00,R,A Coole Electrical Ltd,No
Http://opendatacommunities.org/id/metropolitan-district-council/leeds,Leeds City Council,31/03/2020,Resources and Housing,Leeds Building Services,Supplies and Services,Other Hired And Contracted Services,265,03/03/2020,2003-00019,0.00,85.00,R,A Coole Electrical Ltd,No
Http://opendatacommunities.org/id/metropolitan-district-council/leeds,Leeds City Council,31/03/2020,Resources and Housing,Leeds Building Services,Supplies and Services,Other Hired And Contracted Services,265,03/03/2020,2003-00020,0.00,85.00,R,A Coole Electrical Ltd,No
Http://opendatacommunities.org/id/metropolitan-district-council/leeds,Leeds City Council,31/03/2020,Resources and Housing,Leeds Building Services,Supplies and Services,Other Hired And Contracted Services,265,03/03/2020,2003-00021,0.00,85.00,R,A Coole Electrical Ltd,No
Http://opendatacommunities.org/id/metropolitan-district-council/leeds,Leeds City Council,31/03/2020,Resources and Housing,Leeds Building Services,Supplies and Services,Other Hired And Contracted Services,265,03/03/2020,2003-00022,0.00,85.00,R,A Coole Electrical Ltd,No
Http://opendatacommunities.org/id/metropolitan-district-council/leeds,Leeds City Council,31/03/2020,Resources and Housing,Leeds Building Services,Supplies and Services,Other Hired And Contracted Services,265,03/03/2020,2003-00023,0.00,85.00,R,A Coole Electrical Ltd,No
Http://opendatacommunities.org/id/metropolitan-district-council/leeds,Leeds City Council,31/03/2020,Resources and Housing,Leeds Building Services,Supplies and Services,Other Hired And Contracted Services,265,04/03/2020,2003-00024,0.00,85.00,R,A Coole Electrical Ltd,No
Http://opendatacommunities.org/id/metropolitan-district-council/leeds,Leeds City Council,31/03/2020,Resources and Housing,Leeds Building Services,Supplies and Services,Other Hired And Contracted Services,265,20/03/2020,2003-00025,0.00,945.00,R,A Coole Electrical Ltd,No
Http://opendatacommunities.org/id/metropolitan-district-council/leeds,Leeds City Council,31/03/2020,Resources and Housing,Leeds Building Services,Supplies and Services,Other Hired And Contracted Services,265,20/03/2020,2003-00026,0.00,990.00,R,A Coole Electrical Ltd,No
Http://opendatacommunities.org/id/metropolitan-district-council/leeds,Leeds City Council,31/03/2020,Resources and Housing,Leeds Building Services,Supplies and Services,Other Hired And Contracted Services,265,20/03/2020,2003-00027,0.00,2240.00,R,A Coole Electrical Ltd,No
Http://opendatacommunities.org/id/metropolitan-district-council/leeds,Leeds City Council,31/03/2020,Resources and Housing,Leeds Building Services,Supplies and Services,Other Hired And Contracted Services,265,20/03/2020,2003-00028,0.00,2630.00,R,A Coole Electrical Ltd,No
Http://opendatacommunities.org/id/metropolitan-district-council/leeds,Leeds City Council,31/03/2020,Resources and Housing,Leeds Building Services,Supplies and Services,Other Hired And Contracted Services,265,20/03/2020,2003-00029,0.00,2855.00,R,A Coole Electrical Ltd,No
Http://opendatacommunities.org/id/metropolitan-district-council/leeds,Leeds City Council,31/03/2020,Resources and Housing,Leeds Building Services,Supplies and Services,Other Hired And Contracted Services,265,20/03/2020,2003-00030,0.00,2470.00,R,A Coole Electrical Ltd,No
Http://opendatacommunities.org/id/metropolitan-district-council/leeds,Leeds City Council,31/03/2020,Resources and Housing,Leeds Building Services,Supplies and Services,Other Hired And Contracted Services,265,20/03/2020,2003-00031,0.00,2380.00,R,A Coole Electrical Ltd,No
Http://opendatacommunities.org/id/metropolitan-district-council/leeds,Leeds City Council,31/03/2020,Resources and Housing,Leeds Building Services,Supplies and Services,Other Hired And Contracted Services,265,20/03/2020,2003-00032,0.00,2380.00,R,A Coole Electrical Ltd,No
Http://opendatacommunities.org/id/metropolitan-district-council/leeds,Leeds City Council,31/03/2020,Resources and Housing,Leeds Building Services,Supplies and Services,Other Hired And Contracted Services,265,20/03/2020,2003-00033,0.00,2290.00,R,A Coole Electrical Ltd,No
Http://opendatacommunities.org/id/metropolitan-district-council/leeds,Leeds City Council,31/03/2020,Resources and Housing,Leeds Building Services,Supplies and Services,Other Hired And Contracted Services,265,20/03/2020,2003-00034,0.00,2380.00,R,A Coole Electrical Ltd,No
Http://opendatacommunities.org/id/metropolitan-district-council/leeds,Leeds City Council,31/03/2020,Resources and Housing,Leeds Building Services,Supplies and Services,Other Hired And Contracted Services,265,20/03/2020,2003-00035,0.00,2335.00,R,A Coole Electrical Ltd,No
Http://opendatacommunities.org/id/metropolitan-district-council/leeds,Leeds City Council,31/03/2020,Resources and Housing,Leeds Building Services,Supplies and Services,Other Hired And Contracted Services,265,20/03/2020,2003-00036,0.00,2335.00,R,A Coole Electrical Ltd,No
Http://opendatacommunities.org/id/metropolitan-district-council/leeds,Leeds City Council,31/03/2020,Communities and Environment,Customer Access,Supplies and Services,Bought In Professional Services,277,02/03/2020,2003-00037,0.00,54.00,R,A D Dumitru,No
Http://opendatacommunities.org/id/metropolitan-district-council/leeds,Leeds City Council,31/03/2020,Communities and Environment,Customer Access,Supplies and Services,Bought In Professional Services,277,06/03/2020,2003-00038,0.00,18.00,R,A D Dumitru,No
Http://opendatacommunities.org/id/metropolitan-district-council/leeds,Leeds City Council,31/03/2020,Communities and Environment,Customer Access,Supplies and Services,Bought In Professional Services,277,11/03/2020,2003-00039,0.00,18.00,R,A D Dumitru,No
Http://opendatacommunities.org/id/metropolitan-district-council/leeds,Leeds City Council,31/03/2020,Communities and Environment,Customer Access,Supplies and Services,Bought In Professional Services,277,11/03/2020,2003-00040,0.00,22.50,R,A D Dumitru,No
Http://opendatacommunities.org/id/metropolitan-district-council/leeds,Leeds City Council,31/03/2020,Communities and Environment,Customer Access,Supplies and Services,Bought In Professional Services,277,19/03/2020,2003-00041,0.00,18.00,R,A D Dumitru,No
Http://opendatacommunities.org/id/metropolitan-district-council/leeds,Leeds City Council,31/03/2020,Communities and Environment,Customer Access,Supplies and Services,Bought In Professional Services,277,19/03/2020,2003-00042,0.00,18.00,R,A D Dumitru,No
Http://opendatacommunities.org/id/metropolitan-district-council/leeds,Leeds City Council,31/03/2020,Communities and Environment,Customer Access,Supplies and Services,Bought In Professional Services,277,19/03/2020,2003-00043,0.00,36.00,R,A D Dumitru,No
Http://opendatacommunities.org/id/metropolitan-district-council/leeds,Leeds City Council,31/03/2020,Communities and Environment,Customer Access,Supplies and Services,Bought In Professional Services,277,19/03/2020,2003-00044,0.00,18.00,R,A D Dumitru,No
Http://opendatacommunities.org/id/metropolitan-district-council/leeds,Leeds City Council,31/03/2020,Children and Families,Social Care,Third Party Payments,Services Rendered By Voluntary Sector,505,04/03/2020,2003-00045,0.00,2808.00,R,REDACTED PERSONAL DATA,No
Http://opendatacommunities.org/id/metropolitan-district-council/leeds,Leeds City Council,31/03/2020,Children and Families,Social Care,Third Party Payments,Services Rendered By Voluntary Sector,505,06/03/2020,2003-00046,0.00,381.60,R,REDACTED PERSONAL DATA,No
Http://opendatacommunities.org/id/metropolitan-district-council/leeds,Leeds City Council,31/03/2020,Children and Families,Social Care,Third Party Payments,Services Rendered By Voluntary Sector,505,06/03/2020,2003-00047,0.00,7275.60,R,REDACTED PERSONAL DATA,No
Http://opendatacommunities.org/id/metropolitan-district-council/leeds,Leeds City Council,31/03/2020,Children and Families,Social Care,Third Party Payments,Services Rendered By Other Organisations,511,04/03/2020,2003-00048,0.00,312.00,R,REDACTED PERSONAL DATA,No
Http://opendatacommunities.org/id/metropolitan-district-council/leeds,Leeds City Council,31/03/2020,Children and Families,Social Care,Third Party Payments,Services Rendered By Other Organisations,511,06/03/2020,2003-00049,0.00,1032.00,R,REDACTED PERSONAL DATA,No
Http://opendatacommunities.org/id/metropolitan-district-council/leeds,Leeds City Council,31/03/2020,Children and Families,Social Care,Third Party Payments,Services Rendered By Other Organisations,511,06/03/2020,2003-00050,0.00,258.00,R,REDACTED PERSONAL DATA,No
Http://opendatacommunities.org/id/metropolitan-district-council/leeds,Leeds City Council,31/03/2020,Children and Families,Social Care,Third Party Payments,Services Rendered By Other Organisations,511,06/03/2020,2003-00051,0.00,266.60,R,REDACTED PERSONAL DATA,No
Http://opendatacommunities.org/id/metropolitan-district-council/leeds,Leeds City Council,31/03/2020,Adults and Health,Other Generic Services,Third Party Payments,Fees To Carers,563,16/03/2020,2003-00052,0.00,315.00,R,REDACTED PERSONAL DATA,No
Http://opendatacommunities.org/id/metropolitan-district-council/leeds,Leeds City Council,31/03/2020,Adults and Health,Other Generic Services,Third Party Payments,Fees To Carers,563,16/03/2020,2003-00053,0.00,37.80,R,REDACTED PERSONAL DATA,No
Http://opendatacommunities.org/id/metropolitan-district-council/leeds,Leeds City Council,31/03/2020,Resources and Housing,Leeds Building Services,Supplies and Services,Operational Materials,205,11/03/2020,2003-00054,0.00,48.85,R,A J H  Pump Supply & Repair Ltd,No
Http://opendatacommunities.org/id/metropolitan-district-council/leeds,Leeds City Council,31/03/2020,Resources and Housing,Leeds Building Services,Supplies and Services,Operational Materials,205,11/03/2020,2003-00055,0.00,118.92,R,A J H  Pump Supply & Repair Ltd,No
Http://opendatacommunities.org/id/metropolitan-district-council/leeds,Leeds City Council,31/03/2020,Resources and Housing,Leeds Building Services,Supplies and Services,Operational Materials,205,13/03/2020,2003-00056,0.00,41.26,R,A J H  Pump Supply & Repair Ltd,No
Http://opendatacommunities.org/id/metropolitan-district-council/leeds,Leeds City Council,31/03/2020,Resources and Housing,Leeds Building Services,Supplies and Services,Operational Materials,205,13/03/2020,2003-00057,0.00,35.00,R,A J H  Pump Supply & Repair Ltd,No
Http://opendatacommunities.org/id/metropolitan-district-council/leeds,Leeds City Council,31/03/2020,Resources and Housing,Leeds Building Services,Supplies and Services,Operational Materials,205,13/03/2020,2003-00058,0.00,125.00,R,A J H  Pump Supply & Repair Ltd,No
Http://opendatacommunities.org/id/metropolitan-district-council/leeds,Leeds City Council,31/03/2020,Resources and Housing,Leeds Building Services,Supplies and Services,Operational Materials,205,13/03/2020,2003-00059,0.00,357.85,R,A J H  Pump Supply & Repair Ltd,No
Http://opendatacommunities.org/id/metropolitan-district-council/leeds,Leeds City Council,31/03/2020,Resources and Housing,Leeds Building Services,Supplies and Services,Operational Materials,205,13/03/2020,2003-00060,0.00,157.10,R,A J H  Pump Supply & Repair Ltd,No
Http://opendatacommunities.org/id/metropolitan-district-council/leeds,Leeds City Council,31/03/2020,Resources and Housing,Leeds Building Services,Supplies and Services,Operational Materials,205,13/03/2020,2003-00061,0.00,183.51,R,A J H  Pump Supply & Repair Ltd,No
Http://opendatacommunities.org/id/metropolitan-district-council/leeds,Leeds City Council,31/03/2020,Resources and Housing,Leeds Building Services,Supplies and Services,Operational Materials,205,13/03/2020,2003-00062,0.00,66.00,R,A J H  Pump Supply & Repair Ltd,No
Http://opendatacommunities.org/id/metropolitan-district-council/leeds,Leeds City Council,31/03/2020,Resources and Housing,Leeds Building Services,Supplies and Services,Operational Materials,205,13/03/2020,2003-00063,0.00,70.78,R,A J H  Pump Supply & Repair Ltd,No
Http://opendatacommunities.org/id/metropolitan-district-council/leeds,Leeds City Council,31/03/2020,Resources and Housing,Leeds Building Services,Supplies and Services,Operational Materials,205,13/03/2020,2003-00064,0.00,620.00,R,A J H  Pump Supply & Repair Ltd,No
Http://opendatacommunities.org/id/metropolitan-district-council/leeds,Leeds City Council,31/03/2020,Resources and Housing,Leeds Building Services,Supplies and Services,Operational Materials,205,13/03/2020,2003-00065,0.00,84.86,R,A J H  Pump Supply & Repair Ltd,No
Http://opendatacommunities.org/id/metropolitan-district-council/leeds,Leeds City Council,31/03/2020,Resources and Housing,Leeds Building Services,Supplies and Services,Operational Materials,205,13/03/2020,2003-00066,0.00,157.95,R,A J H  Pump Supply & Repair Ltd,No
Http://opendatacommunities.org/id/metropolitan-district-council/leeds,Leeds City Council,31/03/2020,Resources and Housing,Leeds Building Services,Supplies and Services,Operational Materials,205,13/03/2020,2003-00067,0.00,58.95,R,A J H  Pump Supply & Repair Ltd,No
Http://opendatacommunities.org/id/metropolitan-district-council/leeds,Leeds City Council,31/03/2020,Resources and Housing,Leeds Building Services,Supplies and Services,Other Hired And Contracted Services,265,13/03/2020,2003-00068,0.00,5399.00,R,A J H  Pump Supply & Repair Ltd,No
Http://opendatacommunities.org/id/metropolitan-district-council/leeds,Leeds City Council,31/03/2020,Resources and Housing,Leeds Building Services,Supplies and Services,Operational Materials,205,13/03/2020,2003-00069,0.00,92.30,R,A J H  Pump Supply & Repair Ltd,No
Http://opendatacommunities.org/id/metropolitan-district-council/leeds,Leeds City Council,31/03/2020,Resources and Housing,Leeds Building Services,Supplies and Services,Operational Materials,205,13/03/2020,2003-00070,0.00,255.00,R,A J H  Pump Supply & Repair Ltd,No
Http://opendatacommunities.org/id/metropolitan-district-council/leeds,Leeds City Council,31/03/2020,Resources and Housing,Leeds Building Services,Supplies and Services,Operational Materials,205,20/03/2020,2003-00071,0.00,37.80,R,A J H  Pump Supply & Repair Ltd,No
Http://opendatacommunities.org/id/metropolitan-district-council/leeds,Leeds City Council,31/03/2020,Resources and Housing,Leeds Building Services,Supplies and Services,Operational Materials,205,20/03/2020,2003-00072,0.00,166.20,R,A J H  Pump Supply & Repair Ltd,No
Http://opendatacommunities.org/id/metropolitan-district-council/leeds,Leeds City Council,31/03/2020,Resources and Housing,Leeds Building Services,Supplies and Services,Operational Materials,205,20/03/2020,2003-00073,0.00,909.65,R,A J H  Pump Supply & Repair Ltd,No
Http://opendatacommunities.org/id/metropolitan-district-council/leeds,Leeds City Council,31/03/2020,Resources and Housing,Leeds Building Services,Supplies and Services,Operational Materials,205,20/03/2020,2003-00074,0.00,94.05,R,A J H  Pump Supply & Repair Ltd,No
Http://opendatacommunities.org/id/metropolitan-district-council/leeds,Leeds City Council,31/03/2020,Resources and Housing,Leeds Building Services,Supplies and Services,Operational Materials,205,20/03/2020,2003-00075,0.00,137.95,R,A J H  Pump Supply & Repair Ltd,No
Http://opendatacommunities.org/id/metropolitan-district-council/leeds,Leeds City Council,31/03/2020,Resources and Housing,Leeds Building Services,Supplies and Services,Operational Materials,205,20/03/2020,2003-00076,0.00,126.78,R,A J H  Pump Supply & Repair Ltd,No
Http://opendatacommunities.org/id/metropolitan-district-council/leeds,Leeds City Council,31/03/2020,Resources and Housing,Leeds Building Services,Supplies and Services,Operational Materials,205,20/03/2020,2003-00077,0.00,38.15,R,A J H  Pump Supply & Repair Ltd,No
Http://opendatacommunities.org/id/metropolitan-district-council/leeds,Leeds City Council,31/03/2020,Resources and Housing,Leeds Building Services,Supplies and Services,Operational Materials,205,20/03/2020,2003-00078,0.00,59.32,R,A J H  Pump Supply & Repair Ltd,No
Http://opendatacommunities.org/id/metropolitan-district-council/leeds,Leeds City Council,31/03/2020,Resources and Housing,Leeds Building Services,Supplies and Services,Operational Materials,205,20/03/2020,2003-00079,0.00,69.43,R,A J H  Pump Supply & Repair Ltd,No
Http://opendatacommunities.org/id/metropolitan-district-council/leeds,Leeds City Council,31/03/2020,Resources and Housing,Leeds Building Services,Supplies and Services,Operational Materials,205,20/03/2020,2003-00080,0.00,48.89,R,A J H  Pump Supply & Repair Ltd,No
Http://opendatacommunities.org/id/metropolitan-district-council/leeds,Leeds City Council,31/03/2020,Resources and Housing,Leeds Building Services,Supplies and Services,Operational Materials,205,20/03/2020,2003-00081,0.00,65.45,R,A J H  Pump Supply & Repair Ltd,No
Http://opendatacommunities.org/id/metropolitan-district-council/leeds,Leeds City Council,31/03/2020,Resources and Housing,Leeds Building Services,Supplies and Services,Operational Materials,205,20/03/2020,2003-00082,0.00,30.90,R,A J H  Pump Supply & Repair Ltd,No
Http://opendatacommunities.org/id/metropolitan-district-council/leeds,Leeds City Council,31/03/2020,Resources and Housing,Leeds Building Services,Supplies and Services,Operational Materials,205,20/03/2020,2003-00083,0.00,151.00,R,A J H  Pump Supply & Repair Ltd,No
Http://opendatacommunities.org/id/metropolitan-district-council/leeds,Leeds City Council,31/03/2020,Resources and Housing,Leeds Building Services,Supplies and Services,Operational Materials,205,20/03/2020,2003-00084,0.00,114.00,R,A J H  Pump Supply & Repair Ltd,No
Http://opendatacommunities.org/id/metropolitan-district-council/leeds,Leeds City Council,31/03/2020,Resources and Housing,Leeds Building Services,Supplies and Services,Operational Materials,205,20/03/2020,2003-00085,0.00,32.20,R,A J H  Pump Supply & Repair Ltd,No
Http://opendatacommunities.org/id/metropolitan-district-council/leeds,Leeds City Council,31/03/2020,Resources and Housing,Leeds Building Services,Supplies and Services,Operational Materials,205,26/03/2020,2003-00086,0.00,1135.00,R,A J H  Pump Supply & Repair Ltd,No
Http://opendatacommunities.org/id/metropolitan-district-council/leeds,Leeds City Council,31/03/2020,Resources and Housing,Leeds Building Services,Supplies and Services,Operational Materials,205,27/03/2020,2003-00087,0.00,180.00,R,A J H  Pump Supply & Repair Ltd,No
Http://opendatacommunities.org/id/metropolitan-district-council/leeds,Leeds City Council,31/03/2020,Resources and Housing,Leeds Building Services,Supplies and Services,Operational Materials,205,27/03/2020,2003-00088,0.00,225.88,R,A J H  Pump Supply & Repair Ltd,No
Http://opendatacommunities.org/id/metropolitan-district-council/leeds,Leeds City Council,31/03/2020,Resources and Housing,Leeds Building Services,Supplies and Services,Operational Materials,205,27/03/2020,2003-00089,0.00,166.45,R,A J H  Pump Supply & Repair Ltd,No
Http://opendatacommunities.org/id/metropolitan-district-council/leeds,Leeds City Council,31/03/2020,Resources and Housing,Leeds Building Services,Supplies and Services,Operational Materials,205,27/03/2020,2003-00090,0.00,184.25,R,A J H  Pump Supply & Repair Ltd,No
Http://opendatacommunities.org/id/metropolitan-district-council/leeds,Leeds City Council,31/03/2020,Resources and Housing,Leeds Building Services,Supplies and Services,Operational Materials,205,27/03/2020,2003-00091,0.00,105.55,R,A J H  Pump Supply & Repair Ltd,No
Http://opendatacommunities.org/id/metropolitan-district-council/leeds,Leeds City Council,31/03/2020,Resources and Housing,Leeds Building Services,Supplies and Services,Operational Materials,205,27/03/2020,2003-00092,0.00,90.47,R,A J H  Pump Supply & Repair Ltd,No
Http://opendatacommunities.org/id/metropolitan-district-council/leeds,Leeds City Council,31/03/2020,Resources and Housing,Leeds Building Services,Supplies and Services,Operational Materials,205,27/03/2020,2003-00093,0.00,29.24,R,A J H  Pump Supply & Repair Ltd,No
Http://opendatacommunities.org/id/metropolitan-district-council/leeds,Leeds City Council,31/03/2020,Resources and Housing,Leeds Building Services,Supplies and Services,Operational Materials,205,27/03/2020,2003-00094,0.00,84.89,R,A J H  Pump Supply & Repair Ltd,No
Http://opendatacommunities.org/id/metropolitan-district-council/leeds,Leeds City Council,31/03/2020,Resources and Housing,Leeds Building Services,Supplies and Services,Operational Materials,205,27/03/2020,2003-00095,0.00,77.10,R,A J H  Pump Supply & Repair Ltd,No
Http://opendatacommunities.org/id/metropolitan-district-council/leeds,Leeds City Council,31/03/2020,Resources and Housing,Leeds Building Services,Supplies and Services,Operational Materials,205,27/03/2020,2003-00096,0.00,176.00,R,A J H  Pump Supply & Repair Ltd,No
Http://opendatacommunities.org/id/metropolitan-district-council/leeds,Leeds City Council,31/03/2020,Resources and Housing,Leeds Building Services,Supplies and Services,Operational Materials,205,27/03/2020,2003-00097,0.00,31.49,R,A J H  Pump Supply & Repair Ltd,No
Http://opendatacommunities.org/id/metropolitan-district-council/leeds,Leeds City Council,31/03/2020,Resources and Housing,Leeds Building Services,Supplies and Services,Operational Materials,205,27/03/2020,2003-00098,0.00,68.23,R,A J H  Pump Supply & Repair Ltd,No
Http://opendatacommunities.org/id/metropolitan-district-council/leeds,Leeds City Council,31/03/2020,Resources and Housing,Leeds Building Services,Supplies and Services,Operational Materials,205,27/03/2020,2003-00099,0.00,215.00,R,A J H  Pump Supply & Repair Ltd,No
Http://opendatacommunities.org/id/metropolitan-district-council/leeds,Leeds City Council,31/03/2020,Resources and Housing,Leeds Building Services,Supplies and Services,Operational Materials,205,27/03/2020,2003-00100,0.00,19.90,R,A J H  Pump Supply & Repair Ltd,No
Http://opendatacommunities.org/id/metropolitan-district-council/leeds,Leeds City Council,31/03/2020,Resources and Housing,Leeds Building Services,Supplies and Services,Operational Materials,205,27/03/2020,2003-00101,0.00,867.50,R,A J H  Pump Supply & Repair Ltd,No
Http://opendatacommunities.org/id/metropolitan-district-council/leeds,Leeds City Council,31/03/2020,Resources and Housing,Leeds Building Services,Supplies and Services,Operational Materials,205,27/03/2020,2003-00102,0.00,190.40,R,A J H  Pump Supply & Repair Ltd,No
Http://opendatacommunities.org/id/metropolitan-district-council/leeds,Leeds City Council,31/03/2020,Communities and Environment,Customer Access,Supplies and Services,Resaleable Materials,204,05/03/2020,2003-00103,0.00,88.08,R,A J Promotions,No
Http://opendatacommunities.org/id/metropolitan-district-council/leeds,Leeds City Council,31/03/2020,Communities and Environment,Customer Access,Supplies and Services,Other Hired And Contracted Services,265,20/03/2020,2003-00104,0.00,392.50,R,A J Promotions,No
Http://opendatacommunities.org/id/metropolitan-district-council/leeds,Leeds City Council,31/03/2020,Children and Families,Social Care,Third Party Payments,Services Rendered By Other Organisations,511,04/03/2020,2003-00105,0.00,624.00,R,REDACTED PERSONAL DATA,No
Http://opendatacommunities.org/id/metropolitan-district-council/leeds,Leeds City Council,31/03/2020,Children and Families,Social Care,Third Party Payments,Services Rendered By Other Organisations,511,06/03/2020,2003-00106,0.00,2322.00,R,REDACTED PERSONAL DATA,No
Http://opendatacommunities.org/id/metropolitan-district-council/leeds,Leeds City Council,31/03/2020,Children and Families,Social Care,Third Party Payments,Services Rendered By Other Organisations,511,10/03/2020,2003-00107,0.00,682.50,R,A Little Something Extra Ltd,No
Http://opendatacommunities.org/id/metropolitan-district-council/leeds,Leeds City Council,31/03/2020,Children and Families,Social Care,Third Party Payments,Services Rendered By Other Organisations,511,10/03/2020,2003-00108,0.00,770.00,R,A Little Something Extra Ltd,No
Http://opendatacommunities.org/id/metropolitan-district-council/leeds,Leeds City Council,31/03/2020,Children and Families,Social Care,Third Party Payments,Services Rendered By Other Organisations,511,10/03/2020,2003-00109,0.00,630.00,R,A Little Something Extra Ltd,No
Http://opendatacommunities.org/id/metropolitan-district-council/leeds,Leeds City Council,31/03/2020,Children and Families,Social Care,Third Party Payments,Services Rendered By Other Organisations,511,16/03/2020,2003-00110,0.00,472.50,R,A Little Something Extra Ltd,No
Http://opendatacommunities.org/id/metropolitan-district-council/leeds,Leeds City Council,31/03/2020,Children and Families,Social Care,Employees,Agency Staff,8,16/03/2020,2003-00111,0.00,262.50,R,A Little Something Extra Ltd,No
Http://opendatacommunities.org/id/metropolitan-district-council/leeds,Leeds City Council,31/03/2020,Children and Families,Social Care,Third Party Payments,Services Rendered By Other Organisations,511,16/03/2020,2003-00112,0.00,665.00,R,A Little Something Extra Ltd,No
Http://opendatacommunities.org/id/metropolitan-district-council/leeds,Leeds City Council,31/03/2020,Children and Families,Social Care,Third Party Payments,Services Rendered By Other Organisations,511,16/03/2020,2003-00113,0.00,630.00,R,A Little Something Extra Ltd,No
Http://opendatacommunities.org/id/metropolitan-district-council/leeds,Leeds City Council,31/03/2020,Communities and Environment,Customer Access,Supplies and Services,Bought In Professional Services,277,02/03/2020,2003-00114,0.00,18.00,R,A Mohammed,No
Http://opendatacommunities.org/id/metropolitan-district-council/leeds,Leeds City Council,31/03/2020,Communities and Environment,Customer Access,Supplies and Services,Bought In Professional Services,277,02/03/2020,2003-00115,0.00,18.00,R,A Mohammed,No
Http://opendatacommunities.org/id/metropolitan-district-council/leeds,Leeds City Council,31/03/2020,Communities and Environment,Customer Access,Supplies and Services,Bought In Professional Services,277,02/03/2020,2003-00116,0.00,18.00,R,A Mohammed,No
Http://opendatacommunities.org/id/metropolitan-district-council/leeds,Leeds City Council,31/03/2020,Communities and Environment,Customer Access,Supplies and Services,Bought In Professional Services,277,02/03/2020,2003-00117,0.00,18.00,R,A Mohammed,No
Http://opendatacommunities.org/id/metropolitan-district-council/leeds,Leeds City Council,31/03/2020,Communities and Environment,Customer Access,Supplies and Services,Bought In Professional Services,277,02/03/2020,2003-00118,0.00,18.00,R,A Mohammed,No
Http://opendatacommunities.org/id/metropolitan-district-council/leeds,Leeds City Council,31/03/2020,Communities and Environment,Customer Access,Supplies and Services,Bought In Professional Services,277,02/03/2020,2003-00119,0.00,36.00,R,A Mohammed,No
Http://opendatacommunities.org/id/metropolitan-district-council/leeds,Leeds City Council,31/03/2020,Communities and Environment,Customer Access,Supplies and Services,Bought In Professional Services,277,11/03/2020,2003-00120,0.00,18.00,R,A Mohammed,No
Http://opendatacommunities.org/id/metropolitan-district-council/leeds,Leeds City Council,31/03/2020,Communities and Environment,Customer Access,Supplies and Services,Bought In Professional Services,277,11/03/2020,2003-00121,0.00,49.50,R,A Mohammed,No
Http://opendatacommunities.org/id/metropolitan-district-council/leeds,Leeds City Council,31/03/2020,Communities and Environment,Customer Access,Supplies and Services,Bought In Professional Services,277,19/03/2020,2003-00122,0.00,18.00,R,A Mohammed,No
Http://opendatacommunities.org/id/metropolitan-district-council/leeds,Leeds City Council,31/03/2020,Communities and Environment,Customer Access,Supplies and Services,Bought In Professional Services,277,19/03/2020,2003-00123,0.00,18.00,R,A Mohammed,No
Http://opendatacommunities.org/id/metropolitan-district-council/leeds,Leeds City Council,31/03/2020,Communities and Environment,Customer Access,Supplies and Services,Bought In Professional Services,277,19/03/2020,2003-00124,0.00,31.50,R,A Mohammed,No
Http://opendatacommunities.org/id/metropolitan-district-council/leeds,Leeds City Council,31/03/2020,Communities and Environment,Customer Access,Supplies and Services,Bought In Professional Services,277,19/03/2020,2003-00125,0.00,31.50,R,A Mohammed,No
Http://opendatacommunities.org/id/metropolitan-district-council/leeds,Leeds City Council,31/03/2020,Communities and Environment,Customer Access,Supplies and Services,Bought In Professional Services,277,19/03/2020,2003-00126,0.00,18.00,R,A Mohammed,No
Http://opendatacommunities.org/id/metropolitan-district-council/leeds,Leeds City Council,31/03/2020,Communities and Environment,Customer Access,Supplies and Services,Bought In Professional Services,277,05/03/2020,2003-00127,0.00,18.00,R,A Musalam,No
Http://opendatacommunities.org/id/metropolitan-district-council/leeds,Leeds City Council,31/03/2020,Communities and Environment,Customer Access,Supplies and Services,Bought In Professional Services,277,05/03/2020,2003-00128,0.00,18.00,R,A Musalam,No
Http://opendatacommunities.org/id/metropolitan-district-council/leeds,Leeds City Council,31/03/2020,Children and Families,Social Care,Third Party Payments,Services Rendered By Other Organisations,511,04/03/2020,2003-00129,0.00,936.00,R,REDACTED PERSONAL DATA,No
Http://opendatacommunities.org/id/metropolitan-district-council/leeds,Leeds City Council,31/03/2020,Children and Families,Social Care,Third Party Payments,Services Rendered By Other Organisations,511,06/03/2020,2003-00130,0.00,286.20,R,REDACTED PERSONAL DATA,No
Http://opendatacommunities.org/id/metropolitan-district-council/leeds,Leeds City Council,31/03/2020,Children and Families,Social Care,Third Party Payments,Services Rendered By Other Organisations,511,06/03/2020,2003-00131,0.00,3870.00,R,REDACTED PERSONAL DATA,No
Http://opendatacommunities.org/id/metropolitan-district-council/leeds,Leeds City Council,31/03/2020,Communities and Environment,Customer Access,Supplies and Services,Bought In Professional Services,277,02/03/2020,2003-00132,0.00,18.00,R,A Namaki,No
Http://opendatacommunities.org/id/metropolitan-district-council/leeds,Leeds City Council,31/03/2020,Communities and Environment,Customer Access,Supplies and Services,Bought In Professional Services,277,02/03/2020,2003-00133,0.00,18.00,R,A Namaki,No
Http://opendatacommunities.org/id/metropolitan-district-council/leeds,Leeds City Council,31/03/2020,Communities and Environment,Customer Access,Supplies and Services,Bought In Professional Services,277,02/03/2020,2003-00134,0.00,18.00,R,A Namaki,No
Http://opendatacommunities.org/id/metropolitan-district-council/leeds,Leeds City Council,31/03/2020,Communities and Environment,Customer Access,Supplies and Services,Bought In Professional Services,277,02/03/2020,2003-00135,0.00,18.00,R,A Namaki,No
Http://opendatacommunities.org/id/metropolitan-district-council/leeds,Leeds City Council,31/03/2020,Communities and Environment,Customer Access,Supplies and Services,Bought In Professional Services,277,02/03/2020,2003-00136,0.00,18.00,R,A Namaki,No
Http://opendatacommunities.org/id/metropolitan-district-council/leeds,Leeds City Council,31/03/2020,Communities and Environment,Customer Access,Supplies and Services,Bought In Professional Services,277,02/03/2020,2003-00137,0.00,18.00,R,A Namaki,No
Http://opendatacommunities.org/id/metropolitan-district-council/leeds,Leeds City Council,31/03/2020,Communities and Environment,Customer Access,Supplies and Services,Bought In Professional Services,277,02/03/2020,2003-00138,0.00,18.00,R,A Namaki,No
Http://opendatacommunities.org/id/metropolitan-district-council/leeds,Leeds City Council,31/03/2020,Communities and Environment,Customer Access,Supplies and Services,Bought In Professional Services,277,02/03/2020,2003-00139,0.00,27.00,R,A Namaki,No
Http://opendatacommunities.org/id/metropolitan-district-council/leeds,Leeds City Council,31/03/2020,Communities and Environment,Customer Access,Supplies and Services,Bought In Professional Services,277,02/03/2020,2003-00140,0.00,27.00,R,A Namaki,No
Http://opendatacommunities.org/id/metropolitan-district-council/leeds,Leeds City Council,31/03/2020,Communities and Environment,Customer Access,Supplies and Services,Bought In Professional Services,277,02/03/2020,2003-00141,0.00,18.00,R,A Namaki,No
Http://opendatacommunities.org/id/metropolitan-district-council/leeds,Leeds City Council,31/03/2020,Communities and Environment,Customer Access,Supplies and Services,Bought In Professional Services,277,02/03/2020,2003-00142,0.00,18.00,R,A Namaki,No
Http://opendatacommunities.org/id/metropolitan-district-council/leeds,Leeds City Council,31/03/2020,Communities and Environment,Customer Access,Supplies and Services,Bought In Professional Services,277,02/03/2020,2003-00143,0.00,22.50,R,A Namaki,No
Http://opendatacommunities.org/id/metropolitan-district-council/leeds,Leeds City Council,31/03/2020,Communities and Environment,Customer Access,Supplies and Services,Bought In Professional Services,277,02/03/2020,2003-00144,0.00,18.00,R,A Namaki,No
Http://opendatacommunities.org/id/metropolitan-district-council/leeds,Leeds City Council,31/03/2020,Communities and Environment,Customer Access,Supplies and Services,Bought In Professional Services,277,02/03/2020,2003-00145,0.00,18.00,R,A Namaki,No
Http://opendatacommunities.org/id/metropolitan-district-council/leeds,Leeds City Council,31/03/2020,Communities and Environment,Customer Access,Supplies and Services,Bought In Professional Services,277,02/03/2020,2003-00146,0.00,22.50,R,A Namaki,No
Http://opendatacommunities.org/id/metropolitan-district-council/leeds,Leeds City Council,31/03/2020,Communities and Environment,Customer Access,Supplies and Services,Bought In Professional Services,277,02/03/2020,2003-00147,0.00,18.00,R,A Namaki,No
Http://opendatacommunities.org/id/metropolitan-district-council/leeds,Leeds City Council,31/03/2020,Communities and Environment,Customer Access,Supplies and Services,Bought In Professional Services,277,02/03/2020,2003-00148,0.00,18.00,R,A Namaki,No
Http://opendatacommunities.org/id/metropolitan-district-council/leeds,Leeds City Council,31/03/2020,Communities and Environment,Customer Access,Supplies and Services,Bought In Professional Services,277,02/03/2020,2003-00149,0.00,18.00,R,A Namaki,No
Http://opendatacommunities.org/id/metropolitan-district-council/leeds,Leeds City Council,31/03/2020,Communities and Environment,Customer Access,Supplies and Services,Bought In Professional Services,277,02/03/2020,2003-00150,0.00,18.00,R,A Namaki,No
Http://opendatacommunities.org/id/metropolitan-district-council/leeds,Leeds City Council,31/03/2020,Communities and Environment,Customer Access,Supplies and Services,Bought In Professional Services,277,02/03/2020,2003-00151,0.00,18.00,R,A Namaki,No
Http://opendatacommunities.org/id/metropolitan-district-council/leeds,Leeds City Council,31/03/2020,Communities and Environment,Customer Access,Supplies and Services,Bought In Professional Services,277,02/03/2020,2003-00152,0.00,18.00,R,A Namaki,No
Http://opendatacommunities.org/id/metropolitan-district-council/leeds,Leeds City Council,31/03/2020,Communities and Environment,Customer Access,Supplies and Services,Bought In Professional Services,277,02/03/2020,2003-00153,0.00,18.00,R,A Namaki,No
Http://opendatacommunities.org/id/metropolitan-district-council/leeds,Leeds City Council,31/03/2020,Communities and Environment,Customer Access,Supplies and Services,Bought In Professional Services,277,02/03/2020,2003-00154,0.00,31.50,R,A Namaki,No
Http://opendatacommunities.org/id/metropolitan-district-council/leeds,Leeds City Council,31/03/2020,Communities and Environment,Customer Access,Supplies and Services,Bought In Professional Services,277,02/03/2020,2003-00155,0.00,18.00,R,A Namaki,No
Http://opendatacommunities.org/id/metropolitan-district-council/leeds,Leeds City Council,31/03/2020,Communities and Environment,Customer Access,Supplies and Services,Bought In Professional Services,277,06/03/2020,2003-00156,0.00,18.00,R,A Namaki,No
Http://opendatacommunities.org/id/metropolitan-district-council/leeds,Leeds City Council,31/03/2020,Communities and Environment,Customer Access,Supplies and Services,Bought In Professional Services,277,06/03/2020,2003-00157,0.00,18.00,R,A Namaki,No
Http://opendatacommunities.org/id/metropolitan-district-council/leeds,Leeds City Council,31/03/2020,Communities and Environment,Parks and Countryside,Supplies and Services,Operational Materials,205,18/03/2020,2003-00158,0.00,1324.00,R,A Newton,No
Http://opendatacommunities.org/id/metropolitan-district-council/leeds,Leeds City Council,31/03/2020,Children and Families,Social Care,Third Party Payments,Contact,548,06/03/2020,2003-00159,0.00,50.00,R,REDACTED PERSONAL DATA,No
Http://opendatacommunities.org/id/metropolitan-district-council/leeds,Leeds City Council,31/03/2020,Resources and Housing,HRA Housing Leeds,Capital,Other Costs,7,12/03/2020,2003-00160,0.00,100.00,C,REDACTED PERSONAL DATA,No
Http://opendatacommunities.org/id/metropolitan-district-council/leeds,Leeds City Council,31/03/2020,Resources and Housing,HRA Housing Leeds,Capital,Other Costs,7,05/03/2020,2003-00161,0.00,249.22,C,REDACTED PERSONAL DATA,No
Http://opendatacommunities.org/id/metropolitan-district-council/leeds,Leeds City Council,31/03/2020,Resources and Housing,HRA Housing Leeds,Capital,Other Costs,7,02/03/2020,2003-00162,0.00,80.00,C,REDACTED PERSONAL DATA,No
Http://opendatacommunities.org/id/metropolitan-district-council/leeds,Leeds City Council,31/03/2020,Children and Families,Social Care,Third Party Payments,Services Rendered By Other Organisations,511,04/03/2020,2003-00163,0.00,312.00,R,REDACTED PERSONAL DATA,No
Http://opendatacommunities.org/id/metropolitan-district-council/leeds,Leeds City Council,31/03/2020,Children and Families,Social Care,Third Party Payments,Services Rendered By Other Organisations,511,06/03/2020,2003-00164,0.00,258.00,R,REDACTED PERSONAL DATA,No
Http://opendatacommunities.org/id/metropolitan-district-council/leeds,Leeds City Council,31/03/2020,Resources and Housing,Shared Services,Supplies and Services,Other Hired And Contracted Services,265,03/03/2020,2003-00165,0.00,175.00,R,A Star Couriers Ltd,No
Http://opendatacommunities.org/id/metropolitan-district-council/leeds,Leeds City Council,31/03/2020,Communities and Environment,Communities,Supplies and Services,Other Hired And Contracted Services,265,10/03/2020,2003-00166,0.00,200.00,R,REDACTED PERSONAL DATA,No
Http://opendatacommunities.org/id/metropolitan-district-council/leeds,Leeds City Council,31/03/2020,Children and Families,Social Care,Third Party Payments,Independent Fostering Agencies,509,06/03/2020,2003-00167,0.00,1440.00,R,A Taxis,No
Http://opendatacommunities.org/id/metropolitan-district-council/leeds,Leeds City Council,31/03/2020,Children and Families,Social Care,Third Party Payments,Independent Fostering Agencies,509,27/03/2020,2003-00168,0.00,1080.00,R,A Taxis,No
Http://opendatacommunities.org/id/metropolitan-district-council/leeds,Leeds City Council,31/03/2020,Resources and Housing,Strategic Housing Partnership & Support,Supplies and Services,Other Hired And Contracted Services,265,20/03/2020,2003-00169,0.00,650.00,R,REDACTED PERSONAL DATA,No
Http://opendatacommunities.org/id/metropolitan-district-council/leeds,Leeds City Council,31/03/2020,Children and Families,Social Care,Third Party Payments,Services Rendered By Other Organisations,511,06/03/2020,2003-00170,0.00,516.00,R,REDACTED PERSONAL DATA,No
Http://opendatacommunities.org/id/metropolitan-district-council/leeds,Leeds City Council,31/03/2020,Children and Families,Social Care,Third Party Payments,Services Rendered By Other Organisations,511,06/03/2020,2003-00171,0.00,774.00,R,REDACTED PERSONAL DATA,No
Http://opendatacommunities.org/id/metropolitan-district-council/leeds,Leeds City Council,31/03/2020,Children and Families,Social Care,Third Party Payments,General External Residential Placements,507,02/03/2020,2003-00172,0.00,13084.00,R,A Wilderness Way Ltd,No
Http://opendatacommunities.org/id/metropolitan-district-council/leeds,Leeds City Council,31/03/2020,Children and Families,Social Care,Third Party Payments,General External Residential Placements,507,02/03/2020,2003-00173,0.00,560.00,R,A Wilderness Way Ltd,No
Http://opendatacommunities.org/id/metropolitan-district-council/leeds,Leeds City Council,31/03/2020,Children and Families,Social Care,Third Party Payments,General External Residential Placements,507,02/03/2020,2003-00174,0.00,240.00,R,A Wilderness Way Ltd,No
Http://opendatacommunities.org/id/metropolitan-district-council/leeds,Leeds City Council,31/03/2020,Children and Families,Social Care,Third Party Payments,General External Residential Placements,507,04/03/2020,2003-00175,0.00,657.45,R,A Wilderness Way Ltd,No
Http://opendatacommunities.org/id/metropolitan-district-council/leeds,Leeds City Council,31/03/2020,Children and Families,Social Care,Third Party Payments,General External Residential Placements,507,04/03/2020,2003-00176,0.00,129.60,R,A Wilderness Way Ltd,No
Http://opendatacommunities.org/id/metropolitan-district-council/leeds,Leeds City Council,31/03/2020,Children and Families,Social Care,Third Party Payments,General External Residential Placements,507,06/03/2020,2003-00177,0.00,28785.67,R,A Wilderness Way Ltd,No
Http://opendatacommunities.org/id/metropolitan-district-council/leeds,Leeds City Council,31/03/2020,Children and Families,Social Care,Third Party Payments,General External Residential Placements,507,13/03/2020,2003-00178,0.00,6542.00,R,A Wilderness Way Ltd,No
Http://opendatacommunities.org/id/metropolitan-district-council/leeds,Leeds City Council,31/03/2020,Children and Families,Social Care,Third Party Payments,General External Residential Placements,507,26/03/2020,2003-00179,0.00,26928.53,R,A Wilderness Way Ltd,No
Http://opendatacommunities.org/id/metropolitan-district-council/leeds,Leeds City Council,31/03/2020,Children and Families,Social Care,Third Party Payments,General External Residential Placements,507,26/03/2020,2003-00180,0.00,6541.99,R,A Wilderness Way Ltd,No
Http://opendatacommunities.org/id/metropolitan-district-council/leeds,Leeds City Council,31/03/2020,Children and Families,Social Care,Third Party Payments,General External Residential Placements,507,26/03/2020,2003-00181,0.00,400.00,R,A Wilderness Way Ltd,No
Http://opendatacommunities.org/id/metropolitan-district-council/leeds,Leeds City Council,31/03/2020,Children and Families,Social Care,Third Party Payments,General External Residential Placements,507,30/03/2020,2003-00182,0.00,28785.67,R,A Wilderness Way Ltd,No
Http://opendatacommunities.org/id/metropolitan-district-council/leeds,Leeds City Council,31/03/2020,Resources and Housing,HRA Housing Leeds,Capital,Other Costs,7,12/03/2020,2003-00183,0.00,80.00,C,REDACTED PERSONAL DATA,No
Http://opendatacommunities.org/id/metropolitan-district-council/leeds,Leeds City Council,31/03/2020,Resources and Housing,Leeds Building Services,Supplies and Services,Other Hired And Contracted Services,265,06/03/2020,2003-00184,0.00,5502.50,R,A1 Stair Lift Services,No
Http://opendatacommunities.org/id/metropolitan-district-council/leeds,Leeds City Council,31/03/2020,Resources and Housing,Leeds Building Services,Supplies and Services,Other Hired And Contracted Services,265,12/03/2020,2003-00185,0.00,200.00,R,A1 Stair Lift Services,No
Http://opendatacommunities.org/id/metropolitan-district-council/leeds,Leeds City Council,31/03/2020,Children and Families,Social Care  ,Supplies and Services,Teaching Materials,202,27/02/2020,2003-00186,0.00,248.00,R,A2b Office Supplies,Yes
Http://opendatacommunities.org/id/metropolitan-district-council/leeds,Leeds City Council As Accountable Body,31/03/2020,Social Services Pooled Budgets,Leeds Community Equip Store Pooled Budgt,Supplies and Services,Other Equipment,203,06/03/2020,2003-00187,0.00,664.00,R,Aat (Gb) Ltd,No
Http://opendatacommunities.org/id/metropolitan-district-council/leeds,Leeds City Council As Accountable Body,31/03/2020,Social Services Pooled Budgets,Leeds Community Equip Store Pooled Budgt,Supplies and Services,Other Equipment,203,06/03/2020,2003-00188,0.00,687.00,R,Aat (Gb) Ltd,No
Http://opendatacommunities.org/id/metropolitan-district-council/leeds,Leeds City Council As Accountable Body,31/03/2020,Social Services Pooled Budgets,Jcs For People With Learning Disabilitie,Supplies and Services,Other Equipment,203,13/03/2020,2003-00189,0.00,340.00,R,Aat (Gb) Ltd,No
Http://opendatacommunities.org/id/metropolitan-district-council/leeds,Leeds City Council As Accountable Body,31/03/2020,Social Services Pooled Budgets,Leeds Community Equip Store Pooled Budgt,Supplies and Services,Other Equipment,203,13/03/2020,2003-00190,0.00,664.00,R,Aat (Gb) Ltd,No
Http://opendatacommunities.org/id/metropolitan-district-council/leeds,Leeds City Council As Accountable Body,31/03/2020,Social Services Pooled Budgets,Leeds Community Equip Store Pooled Budgt,Supplies and Services,Other Equipment,203,27/03/2020,2003-00191,0.00,444.00,R,Aat (Gb) Ltd,No
Http://opendatacommunities.org/id/metropolitan-district-council/leeds,Leeds City Council,31/03/2020,Adults and Health,Social Services Support Services,Transport,Public Transport Expenses,310,04/03/2020,2003-00192,0.00,304.00,R,Ab Cars,No
Http://opendatacommunities.org/id/metropolitan-district-council/leeds,Leeds City Council,31/03/2020,City Development,Highways  ,Supplies and Services,Postages,212,25/02/2020,2003-00193,0.00,16.50,R,Abacus Express,Yes
Http://opendatacommunities.org/id/metropolitan-district-council/leeds,Leeds City Council,31/03/2020,Children and Families,Learning,Supplies and Services,Other Hired And Contracted Services,265,04/03/2020,2003-00194,0.00,197.00,R,Abbey Multi Academy Trust,No
Http://opendatacommunities.org/id/metropolitan-district-council/leeds,Leeds City Council,31/03/2020,Children and Families,Learning,Supplies and Services,Other Hired And Contracted Services,265,05/03/2020,2003-00195,0.00,160.15,R,Abbey Multi Academy Trust.,No
Http://opendatacommunities.org/id/metropolitan-district-council/leeds,Leeds City Council,31/03/2020,Children and Families,Learning,Supplies and Services,Other Hired And Contracted Services,265,05/03/2020,2003-00196,0.00,173.50,R,Abbey Multi Academy Trust.,No
Http://opendatacommunities.org/id/metropolitan-district-council/leeds,Leeds City Council,31/03/2020,Children and Families,Learning,Supplies and Services,Other Hired And Contracted Services,265,05/03/2020,2003-00197,0.00,397.10,R,Abbey Multi Academy Trust.,No
Http://opendatacommunities.org/id/metropolitan-district-council/leeds,Leeds City Council,31/03/2020,Children and Families,Social Care,Supplies and Services,Other Hired And Contracted Services,265,05/03/2020,2003-00198,0.00,875.00,R,Abbey Multi Academy Trust.,No
Http://opendatacommunities.org/id/metropolitan-district-council/leeds,Leeds City Council,31/03/2020,Children and Families,Learning,Supplies and Services,Other Hired And Contracted Services,265,05/03/2020,2003-00199,0.00,85.00,R,Abbey Multi Academy Trust.,No
Http://opendatacommunities.org/id/metropolitan-district-council/leeds,Leeds City Council,31/03/2020,Children and Families,Learning,Supplies and Services,Other Hired And Contracted Services,265,27/03/2020,2003-00200,0.00,110.00,R,Abbey Multi Academy Trust.,No
Http://opendatacommunities.org/id/metropolitan-district-council/leeds,Leeds City Council,31/03/2020,Children and Families,Social Care,Third Party Payments,Allowances,546,20/03/2020,2003-00201,0.00,502.71,R,ABBIE O'MAHONY,No
Http://opendatacommunities.org/id/metropolitan-district-council/leeds,Leeds City Council,31/03/2020,Children and Families,Social Care,Third Party Payments,Services Rendered By Other Organisations,511,04/03/2020,2003-00202,0.00,3432.00,R,Abc Daycare And Ozone Out Of School,No
Http://opendatacommunities.org/id/metropolitan-district-council/leeds,Leeds City Council,31/03/2020,Children and Families,Social Care,Third Party Payments,Services Rendered By Other Organisations,511,06/03/2020,2003-00203,0.00,286.20,R,Abc Daycare And Ozone Out Of School,No
Http://opendatacommunities.org/id/metropolitan-district-council/leeds,Leeds City Council,31/03/2020,Children and Families,Social Care,Third Party Payments,Services Rendered By Other Organisations,511,06/03/2020,2003-00204,0.00,8528.33,R,Abc Daycare And Ozone Out Of School,No
Http://opendatacommunities.org/id/metropolitan-district-council/leeds,Leeds City Council,31/03/2020,Children and Families,Social Care,Third Party Payments,Services Rendered By Other Organisations,511,06/03/2020,2003-00205,0.00,477.00,R,Abc Nursery At Lufc,No
Http://opendatacommunities.org/id/metropolitan-district-council/leeds,Leeds City Council,31/03/2020,Children and Families,Social Care,Third Party Payments,Services Rendered By Other Organisations,511,06/03/2020,2003-00206,0.00,11997.00,R,Abc Nursery At Lufc,No
Http://opendatacommunities.org/id/metropolitan-district-council/leeds,Leeds City Council,31/03/2020,Children and Families,Social Care,Third Party Payments,Services Rendered By Other Organisations,511,04/03/2020,2003-00207,0.00,3744.00,R,Abc@D'S Childcare,No
Http://opendatacommunities.org/id/metropolitan-district-council/leeds,Leeds City Council,31/03/2020,Children and Families,Social Care,Third Party Payments,Services Rendered By Other Organisations,511,06/03/2020,2003-00208,0.00,95.40,R,Abc@D'S Childcare,No
Http://opendatacommunities.org/id/metropolitan-district-council/leeds,Leeds City Council,31/03/2020,Children and Families,Social Care,Third Party Payments,Services Rendered By Other Organisations,511,06/03/2020,2003-00209,0.00,8385.00,R,Abc@D'S Childcare,No
Http://opendatacommunities.org/id/metropolitan-district-council/leeds,Leeds City Council,31/03/2020,Communities and Environment,Customer Access,Supplies and Services,Bought In Professional Services,277,02/03/2020,2003-00210,0.00,18.00,R,Abdul Kalam,No
Http://opendatacommunities.org/id/metropolitan-district-council/leeds,Leeds City Council,31/03/2020,Communities and Environment,Customer Access,Supplies and Services,Bought In Professional Services,277,02/03/2020,2003-00211,0.00,18.00,R,Abdul Kalam,No
Http://opendatacommunities.org/id/metropolitan-district-council/leeds,Leeds City Council,31/03/2020,Communities and Environment,Customer Access,Supplies and Services,Bought In Professional Services,277,02/03/2020,2003-00212,0.00,18.00,R,Abdul Kalam,No
Http://opendatacommunities.org/id/metropolitan-district-council/leeds,Leeds City Council,31/03/2020,Communities and Environment,Customer Access,Supplies and Services,Bought In Professional Services,277,06/03/2020,2003-00213,0.00,27.00,R,Abdul Kalam,No
Http://opendatacommunities.org/id/metropolitan-district-council/leeds,Leeds City Council,31/03/2020,Communities and Environment,Customer Access,Supplies and Services,Bought In Professional Services,277,06/03/2020,2003-00214,0.00,18.00,R,Abdul Kalam,No
Http://opendatacommunities.org/id/metropolitan-district-council/leeds,Leeds City Council,31/03/2020,Communities and Environment,Customer Access,Supplies and Services,Bought In Professional Services,277,06/03/2020,2003-00215,0.00,22.50,R,Abdul Kalam,No
Http://opendatacommunities.org/id/metropolitan-district-council/leeds,Leeds City Council,31/03/2020,Communities and Environment,Customer Access,Supplies and Services,Bought In Professional Services,277,06/03/2020,2003-00216,0.00,18.00,R,Abdul Kalam,No
Http://opendatacommunities.org/id/metropolitan-district-council/leeds,Leeds City Council,31/03/2020,Communities and Environment,Customer Access,Supplies and Services,Bought In Professional Services,277,06/03/2020,2003-00217,0.00,18.00,R,Abdul Kalam,No
Http://opendatacommunities.org/id/metropolitan-district-council/leeds,Leeds City Council,31/03/2020,Communities and Environment,Customer Access,Supplies and Services,Bought In Professional Services,277,11/03/2020,2003-00218,0.00,18.00,R,Abdul Kalam,No
Http://opendatacommunities.org/id/metropolitan-district-council/leeds,Leeds City Council,31/03/2020,Communities and Environment,Customer Access,Supplies and Services,Bought In Professional Services,277,11/03/2020,2003-00219,0.00,27.00,R,Abdul Kalam,No
Http://opendatacommunities.org/id/metropolitan-district-council/leeds,Leeds City Council,31/03/2020,Communities and Environment,Customer Access,Supplies and Services,Bought In Professional Services,277,11/03/2020,2003-00220,0.00,18.00,R,Abdul Kalam,No
Http://opendatacommunities.org/id/metropolitan-district-council/leeds,Leeds City Council,31/03/2020,Communities and Environment,Customer Access,Supplies and Services,Bought In Professional Services,277,11/03/2020,2003-00221,0.00,18.00,R,Abdul Kalam,No
Http://opendatacommunities.org/id/metropolitan-district-council/leeds,Leeds City Council,31/03/2020,Communities and Environment,Customer Access,Supplies and Services,Bought In Professional Services,277,19/03/2020,2003-00222,0.00,18.00,R,Abdul Kalam,No
Http://opendatacommunities.org/id/metropolitan-district-council/leeds,Leeds City Council,31/03/2020,Communities and Environment,Customer Access,Supplies and Services,Bought In Professional Services,277,19/03/2020,2003-00223,0.00,49.50,R,Abdul Kalam,No
Http://opendatacommunities.org/id/metropolitan-district-council/leeds,Leeds City Council,31/03/2020,Communities and Environment,Customer Access,Supplies and Services,Bought In Professional Services,277,19/03/2020,2003-00224,0.00,18.00,R,Abdul Kalam,No
Http://opendatacommunities.org/id/metropolitan-district-council/leeds,Leeds City Council,31/03/2020,Communities and Environment,Customer Access,Supplies and Services,Bought In Professional Services,277,19/03/2020,2003-00225,0.00,18.00,R,Abdul Kalam,No
Http://opendatacommunities.org/id/metropolitan-district-council/leeds,Leeds City Council,31/03/2020,Communities and Environment,Customer Access,Supplies and Services,Bought In Professional Services,277,19/03/2020,2003-00226,0.00,18.00,R,Abdul Kalam,No
Http://opendatacommunities.org/id/metropolitan-district-council/leeds,Leeds City Council,31/03/2020,Communities and Environment,Customer Access,Supplies and Services,Bought In Professional Services,277,19/03/2020,2003-00227,0.00,18.00,R,Abdul Kalam,No
Http://opendatacommunities.org/id/metropolitan-district-council/leeds,Leeds City Council,31/03/2020,Communities and Environment,Customer Access,Supplies and Services,Bought In Professional Services,277,19/03/2020,2003-00228,0.00,18.00,R,Abdul Kalam,No
Http://opendatacommunities.org/id/metropolitan-district-council/leeds,Leeds City Council,31/03/2020,Resources and Housing,Sustainable Energy & Climate Change,Capital,Other Costs,7,02/03/2020,2003-00229,0.00,10000.00,C,REDACTED COMMERCIAL CONFIDENTIALITY,No
Http://opendatacommunities.org/id/metropolitan-district-council/leeds,Leeds City Council,31/03/2020,Communities and Environment,Customer Access,Supplies and Services,Bought In Professional Services,277,02/03/2020,2003-00230,0.00,18.00,R,Abdulahad Denha,No
Http://opendatacommunities.org/id/metropolitan-district-council/leeds,Leeds City Council,31/03/2020,Communities and Environment,Customer Access,Supplies and Services,Bought In Professional Services,277,02/03/2020,2003-00231,0.00,72.00,R,Abdulahad Denha,No
Http://opendatacommunities.org/id/metropolitan-district-council/leeds,Leeds City Council,31/03/2020,Communities and Environment,Customer Access,Supplies and Services,Bought In Professional Services,277,06/03/2020,2003-00232,0.00,18.00,R,Abdulahad Denha,No
Http://opendatacommunities.org/id/metropolitan-district-council/leeds,Leeds City Council,31/03/2020,Communities and Environment,Customer Access,Supplies and Services,Bought In Professional Services,277,11/03/2020,2003-00233,0.00,18.00,R,Abdulahad Denha,No
Http://opendatacommunities.org/id/metropolitan-district-council/leeds,Leeds City Council,31/03/2020,Communities and Environment,Customer Access,Supplies and Services,Bought In Professional Services,277,11/03/2020,2003-00234,0.00,18.00,R,Abdulahad Denha,No
Http://opendatacommunities.org/id/metropolitan-district-council/leeds,Leeds City Council,31/03/2020,Communities and Environment,Customer Access,Supplies and Services,Bought In Professional Services,277,19/03/2020,2003-00235,0.00,22.50,R,Abdulahad Denha,No
Http://opendatacommunities.org/id/metropolitan-district-council/leeds,Leeds City Council,31/03/2020,Communities and Environment,Customer Access,Supplies and Services,Bought In Professional Services,277,19/03/2020,2003-00236,0.00,18.00,R,Abdulahad Denha,No
Http://opendatacommunities.org/id/metropolitan-district-council/leeds,Leeds City Council,31/03/2020,Communities and Environment,Customer Access,Supplies and Services,Bought In Professional Services,277,06/03/2020,2003-00237,0.00,18.00,R,Abdulrahim Dastyar,No
Http://opendatacommunities.org/id/metropolitan-district-council/leeds,Leeds City Council,31/03/2020,Communities and Environment,Customer Access,Supplies and Services,Bought In Professional Services,277,06/03/2020,2003-00238,0.00,22.50,R,Abdulrahim Dastyar,No
Http://opendatacommunities.org/id/metropolitan-district-council/leeds,Leeds City Council,31/03/2020,Communities and Environment,Customer Access,Supplies and Services,Bought In Professional Services,277,11/03/2020,2003-00239,0.00,18.00,R,Abdulrahim Dastyar,No
Http://opendatacommunities.org/id/metropolitan-district-council/leeds,Leeds City Council,31/03/2020,Communities and Environment,Customer Access,Supplies and Services,Bought In Professional Services,277,11/03/2020,2003-00240,0.00,27.00,R,Abdulrahim Dastyar,No
Http://opendatacommunities.org/id/metropolitan-district-council/leeds,Leeds City Council,31/03/2020,Communities and Environment,Customer Access,Supplies and Services,Bought In Professional Services,277,11/03/2020,2003-00241,0.00,18.00,R,Abdulrahim Dastyar,No
Http://opendatacommunities.org/id/metropolitan-district-council/leeds,Leeds City Council,31/03/2020,Adults and Health,Services For Older People - 65 And Over,Third Party Payments,Nursing Home,570,04/03/2020,2003-00242,0.00,48926.85,R,Aberford Hall,No
Http://opendatacommunities.org/id/metropolitan-district-council/leeds,Leeds City Council,31/03/2020,Adults and Health,Services For Older People - 65 And Over,Third Party Payments,Nursing Care Dementia,574,04/03/2020,2003-00243,0.00,963.54,R,Aberford Hall,No
Http://opendatacommunities.org/id/metropolitan-district-council/leeds,Leeds City Council,31/03/2020,Resources and Housing,Leeds Building Services,Supplies and Services,Operational Materials,205,27/03/2020,2003-00244,0.00,281.04,R,Abi Garage Doors Ltd,No
Http://opendatacommunities.org/id/metropolitan-district-council/leeds,Leeds City Council,31/03/2020,Resources and Housing,Leeds Building Services,Supplies and Services,Operational Materials,205,27/03/2020,2003-00245,0.00,10.82,R,Abi Garage Doors Ltd,No
Http://opendatacommunities.org/id/metropolitan-district-council/leeds,Leeds City Council,31/03/2020,Communities and Environment,Parks and Countryside,Supplies and Services,Operational Materials,205,31/03/2020,2003-00246,0.00,1166.00,R,Abram Pulman & Sons Limited,No
Http://opendatacommunities.org/id/metropolitan-district-council/leeds,Leeds City Council,31/03/2020,Adults and Health,Services For Adults Under 65 Mental/Dis,Third Party Payments,Fees - Level 4,520,06/03/2020,2003-00247,0.00,205.10,R,Abubaker Denja Mohammed,No
Http://opendatacommunities.org/id/metropolitan-district-council/leeds,Leeds City Council,31/03/2020,Adults and Health,Services For Adults Under 65 Mental/Dis,Third Party Payments,Fees - Level 4,520,06/03/2020,2003-00248,0.00,202.52,R,Abubaker Denja Mohammed,No
Http://opendatacommunities.org/id/metropolitan-district-council/leeds,Leeds City Council,31/03/2020,Adults and Health,Services For Adults Under 65 Mental/Dis,Third Party Payments,Fees - Level 4,520,06/03/2020,2003-00249,0.00,177.15,R,Abubaker Denja Mohammed,No
Http://opendatacommunities.org/id/metropolitan-district-council/leeds,Leeds City Council,31/03/2020,Adults and Health,Services For Adults Under 65 Mental/Dis,Third Party Payments,Fees - Level 4,520,06/03/2020,2003-00250,0.00,175.00,R,Abubaker Denja Mohammed,No
Http://opendatacommunities.org/id/metropolitan-district-council/leeds,Leeds City Council,31/03/2020,Adults and Health,Services For Adults Under 65 Mental/Dis,Third Party Payments,Fees - Level 4,520,06/03/2020,2003-00251,0.00,211.12,R,Abubaker Denja Mohammed,No
Http://opendatacommunities.org/id/metropolitan-district-council/leeds,Leeds City Council,31/03/2020,Adults and Health,Services For Adults Under 65 Mental/Dis,Third Party Payments,Fees - Level 4,520,06/03/2020,2003-00252,0.00,175.00,R,Abubaker Denja Mohammed,No
Http://opendatacommunities.org/id/metropolitan-district-council/leeds,Leeds City Council,31/03/2020,City Development,Libraries  Arts & Heritage,Supplies and Services,Advertising,211,27/03/2020,2003-00253,0.00,275.00,R,Ac Winter,No
Http://opendatacommunities.org/id/metropolitan-district-council/leeds,Leeds City Council,31/03/2020,Communities and Environment,Parks and Countryside,Supplies and Services,Advertising,211,27/03/2020,2003-00254,0.00,167.00,R,Ac Winter,No
Http://opendatacommunities.org/id/metropolitan-district-council/leeds,Leeds City Council,31/03/2020,Communities and Environment,Parks and Countryside,Supplies and Services,Advertising,211,27/03/2020,2003-00255,0.00,120.00,R,Ac Winter,No
Http://opendatacommunities.org/id/metropolitan-district-council/leeds,Leeds City Council,31/03/2020,Resources and Housing,Strategic Housing Partnership & Support,Supplies and Services,Other Hired And Contracted Services,265,12/03/2020,2003-00256,0.00,171.04,R,Accent Foundation Ltd,No
Http://opendatacommunities.org/id/metropolitan-district-council/leeds,Leeds City Council,31/03/2020,Resources and Housing,Technology,Supplies and Services,Computer Software & Equipment,214,12/03/2020,2003-00257,0.00,5162.60,R,Accenture (Uk) Ltd,No
Http://opendatacommunities.org/id/metropolitan-district-council/leeds,Leeds City Council,31/03/2020,Resources and Housing,Human Resources  ,Employees,Best Value Training,70,11/02/2020,2003-00258,0.00,35.00,R,Access Association,Yes
Http://opendatacommunities.org/id/metropolitan-district-council/leeds,Leeds City Council,31/03/2020,Communities and Environment,Community Safety,Supplies and Services,Telephones,213,04/03/2020,2003-00259,0.00,1434.86,R,Access Hire Nationwide Ltd,No
Http://opendatacommunities.org/id/metropolitan-district-council/leeds,Leeds City Council,31/03/2020,Communities and Environment,Community Safety,Supplies and Services,Telephones,213,30/03/2020,2003-00260,0.00,1342.29,R,Access Hire Nationwide Ltd,No
Http://opendatacommunities.org/id/metropolitan-district-council/leeds,Leeds City Council,31/03/2020,Communities and Environment,Customer Access  ,Supplies and Services,Operational Materials,205,31/01/2020,2003-00261,0.00,4.88,R,Access Locksmiths,Yes
Http://opendatacommunities.org/id/metropolitan-district-council/leeds,Leeds City Council,31/03/2020,Communities and Environment,Environmental Action (City Centre)  ,Supplies and Services,Operational Furniture And Equipment,203,31/01/2020,2003-00262,0.00,73.76,R,Access Locksmiths,Yes
Http://opendatacommunities.org/id/metropolitan-district-council/leeds,Leeds City Council,31/03/2020,Resources and Housing,Commercial Services  ,Supplies and Services,Operational Materials,205,21/02/2020,2003-00263,0.00,1521.88,R,Access Locksmiths,Yes
Http://opendatacommunities.org/id/metropolitan-district-council/leeds,Leeds City Council,31/03/2020,Resources and Housing,Commercial Services  ,Supplies and Services,Operational Materials,205,21/02/2020,2003-00264,0.00,506.92,R,Access Locksmiths,Yes
Http://opendatacommunities.org/id/metropolitan-district-council/leeds,Leeds City Council,31/03/2020,Strategic Landlord,Housing Management,Premises,Highways Drainage Cleaning,146,04/03/2020,2003-00265,0.00,10.40,R,Access Locksmiths (Leeds) Limited,No
Http://opendatacommunities.org/id/metropolitan-district-council/leeds,Leeds City Council,31/03/2020,Resources and Housing,Leeds Building Services,Supplies and Services,Operational Materials,205,06/03/2020,2003-00266,0.00,8.44,R,Access Locksmiths (Leeds) Limited,No
Http://opendatacommunities.org/id/metropolitan-district-council/leeds,Leeds City Council,31/03/2020,Resources and Housing,Leeds Building Services,Supplies and Services,Operational Materials,205,06/03/2020,2003-00267,0.00,2.00,R,Access Locksmiths (Leeds) Limited,No
Http://opendatacommunities.org/id/metropolitan-district-council/leeds,Leeds City Council,31/03/2020,Resources and Housing,Leeds Building Services,Supplies and Services,Operational Materials,205,06/03/2020,2003-00268,0.00,7.50,R,Access Locksmiths (Leeds) Limited,No
Http://opendatacommunities.org/id/metropolitan-district-council/leeds,Leeds City Council,31/03/2020,Resources and Housing,Leeds Building Services,Supplies and Services,Operational Materials,205,06/03/2020,2003-00269,0.00,13.70,R,Access Locksmiths (Leeds) Limited,No
Http://opendatacommunities.org/id/metropolitan-district-council/leeds,Leeds City Council,31/03/2020,Resources and Housing,Leeds Building Services,Supplies and Services,Operational Materials,205,06/03/2020,2003-00270,0.00,22.54,R,Access Locksmiths (Leeds) Limited,No
Http://opendatacommunities.org/id/metropolitan-district-council/leeds,Leeds City Council,31/03/2020,Resources and Housing,Leeds Building Services,Supplies and Services,Operational Materials,205,06/03/2020,2003-00271,0.00,16.50,R,Access Locksmiths (Leeds) Limited,No
Http://opendatacommunities.org/id/metropolitan-district-council/leeds,Leeds City Council,31/03/2020,Resources and Housing,Leeds Building Services,Supplies and Services,Operational Materials,205,06/03/2020,2003-00272,0.00,15.12,R,Access Locksmiths (Leeds) Limited,No
Http://opendatacommunities.org/id/metropolitan-district-council/leeds,Leeds City Council,31/03/2020,Resources and Housing,Leeds Building Services,Supplies and Services,Operational Materials,205,06/03/2020,2003-00273,0.00,14.49,R,Access Locksmiths (Leeds) Limited,No
Http://opendatacommunities.org/id/metropolitan-district-council/leeds,Leeds City Council,31/03/2020,Resources and Housing,Leeds Building Services,Supplies and Services,Operational Materials,205,06/03/2020,2003-00274,0.00,151.80,R,Access Locksmiths (Leeds) Limited,No
Http://opendatacommunities.org/id/metropolitan-district-council/leeds,Leeds City Council,31/03/2020,Resources and Housing,Leeds Building Services,Supplies and Services,Operational Materials,205,06/03/2020,2003-00275,0.00,62.83,R,Access Locksmiths (Leeds) Limited,No
Http://opendatacommunities.org/id/metropolitan-district-council/leeds,Leeds City Council,31/03/2020,Resources and Housing,Leeds Building Services,Supplies and Services,Operational Materials,205,06/03/2020,2003-00276,0.00,28.77,R,Access Locksmiths (Leeds) Limited,No
Http://opendatacommunities.org/id/metropolitan-district-council/leeds,Leeds City Council,31/03/2020,Resources and Housing,Leeds Building Services,Supplies and Services,Operational Materials,205,06/03/2020,2003-00277,0.00,24.63,R,Access Locksmiths (Leeds) Limited,No
Http://opendatacommunities.org/id/metropolitan-district-council/leeds,Leeds City Council,31/03/2020,Strategic Landlord,Housing Management,Premises,Fixtures & Fittings,131,06/03/2020,2003-00278,0.00,258.00,R,Access Locksmiths (Leeds) Limited,No
Http://opendatacommunities.org/id/metropolitan-district-council/leeds,Leeds City Council,31/03/2020,Resources and Housing,Leeds Building Services,Supplies and Services,Operational Materials,205,06/03/2020,2003-00279,0.00,8.20,R,Access Locksmiths (Leeds) Limited,No
Http://opendatacommunities.org/id/metropolitan-district-council/leeds,Leeds City Council,31/03/2020,Resources and Housing,Leeds Building Services,Supplies and Services,Operational Materials,205,06/03/2020,2003-00280,0.00,24.60,R,Access Locksmiths (Leeds) Limited,No
Http://opendatacommunities.org/id/metropolitan-district-council/leeds,Leeds City Council,31/03/2020,Strategic Landlord,Property and Contracts,Premises,Maintenance Of Buildings,101,13/03/2020,2003-00281,0.00,191.86,R,Access Locksmiths (Leeds) Limited,No
Http://opendatacommunities.org/id/metropolitan-district-council/leeds,Leeds City Council,31/03/2020,Communities and Environment,Cleaner Neighbourhood Teams,Supplies and Services,Other Hired And Contracted Services,265,13/03/2020,2003-00282,0.00,6.80,R,Access Locksmiths (Leeds) Limited,No
Http://opendatacommunities.org/id/metropolitan-district-council/leeds,Leeds City Council,31/03/2020,Strategic Landlord,Housing Management,Supplies and Services,Resaleable Materials,204,13/03/2020,2003-00283,0.00,114.00,R,Access Locksmiths (Leeds) Limited,No
Http://opendatacommunities.org/id/metropolitan-district-council/leeds,Leeds City Council,31/03/2020,Strategic Landlord,Housing Management,Supplies and Services,Resaleable Materials,204,13/03/2020,2003-00284,0.00,114.00,R,Access Locksmiths (Leeds) Limited,No
Http://opendatacommunities.org/id/metropolitan-district-council/leeds,Leeds City Council,31/03/2020,Strategic Landlord,Property and Contracts,Premises,General Maintenance,104,13/03/2020,2003-00285,0.00,265.60,R,Access Locksmiths (Leeds) Limited,No
Http://opendatacommunities.org/id/metropolitan-district-council/leeds,Leeds City Council,31/03/2020,Strategic Landlord,Housing Management,Supplies and Services,Resaleable Materials,204,13/03/2020,2003-00286,0.00,228.00,R,Access Locksmiths (Leeds) Limited,No
Http://opendatacommunities.org/id/metropolitan-district-council/leeds,Leeds City Council,31/03/2020,Resources and Housing,Leeds Building Services,Supplies and Services,Operational Materials,205,20/03/2020,2003-00287,0.00,14.81,R,Access Locksmiths (Leeds) Limited,No
Http://opendatacommunities.org/id/metropolitan-district-council/leeds,Leeds City Council,31/03/2020,Resources and Housing,Leeds Building Services,Supplies and Services,Operational Materials,205,20/03/2020,2003-00288,0.00,17.50,R,Access Locksmiths (Leeds) Limited,No
Http://opendatacommunities.org/id/metropolitan-district-council/leeds,Leeds City Council,31/03/2020,Resources and Housing,Leeds Building Services,Supplies and Services,Operational Materials,205,20/03/2020,2003-00289,0.00,105.52,R,Access Locksmiths (Leeds) Limited,No
Http://opendatacommunities.org/id/metropolitan-district-council/leeds,Leeds City Council,31/03/2020,Resources and Housing,Leeds Building Services,Supplies and Services,Operational Materials,205,20/03/2020,2003-00290,0.00,94.50,R,Access Locksmiths (Leeds) Limited,No
Http://opendatacommunities.org/id/metropolitan-district-council/leeds,Leeds City Council,31/03/2020,Resources and Housing,Leeds Building Services,Supplies and Services,Operational Materials,205,20/03/2020,2003-00291,0.00,18.36,R,Access Locksmiths (Leeds) Limited,No
Http://opendatacommunities.org/id/metropolitan-district-council/leeds,Leeds City Council,31/03/2020,Resources and Housing,Leeds Building Services,Supplies and Services,Operational Materials,205,20/03/2020,2003-00292,0.00,23.69,R,Access Locksmiths (Leeds) Limited,No
Http://opendatacommunities.org/id/metropolitan-district-council/leeds,Leeds City Council,31/03/2020,Resources and Housing,Leeds Building Services,Supplies and Services,Operational Materials,205,20/03/2020,2003-00293,0.00,37.60,R,Access Locksmiths (Leeds) Limited,No
Http://opendatacommunities.org/id/metropolitan-district-council/leeds,Leeds City Council,31/03/2020,Resources and Housing,Leeds Building Services,Supplies and Services,Operational Materials,205,20/03/2020,2003-00294,0.00,78.20,R,Access Locksmiths (Leeds) Limited,No
Http://opendatacommunities.org/id/metropolitan-district-council/leeds,Leeds City Council,31/03/2020,Resources and Housing,Leeds Building Services,Supplies and Services,Operational Materials,205,20/03/2020,2003-00295,0.00,3.33,R,Access Locksmiths (Leeds) Limited,No
Http://opendatacommunities.org/id/metropolitan-district-council/leeds,Leeds City Council,31/03/2020,Resources and Housing,Leeds Building Services,Supplies and Services,Operational Materials,205,20/03/2020,2003-00296,0.00,40.80,R,Access Locksmiths (Leeds) Limited,No
Http://opendatacommunities.org/id/metropolitan-district-council/leeds,Leeds City Council,31/03/2020,Resources and Housing,Leeds Building Services,Supplies and Services,Operational Materials,205,20/03/2020,2003-00297,0.00,132.75,R,Access Locksmiths (Leeds) Limited,No
Http://opendatacommunities.org/id/metropolitan-district-council/leeds,Leeds City Council,31/03/2020,Resources and Housing,Leeds Building Services,Supplies and Services,Operational Materials,205,20/03/2020,2003-00298,0.00,39.45,R,Access Locksmiths (Leeds) Limited,No
Http://opendatacommunities.org/id/metropolitan-district-council/leeds,Leeds City Council,31/03/2020,Resources and Housing,Leeds Building Services,Supplies and Services,Operational Materials,205,20/03/2020,2003-00299,0.00,8.54,R,Access Locksmiths (Leeds) Limited,No
Http://opendatacommunities.org/id/metropolitan-district-council/leeds,Leeds City Council,31/03/2020,Communities and Environment,Waste Management,Supplies and Services,Operational Furniture And Equipment,203,20/03/2020,2003-00300,0.00,572.50,R,Access Locksmiths (Leeds) Limited,No
Http://opendatacommunities.org/id/metropolitan-district-council/leeds,Leeds City Council,31/03/2020,Strategic Landlord,Housing Management,Premises,General Maintenance,104,20/03/2020,2003-00301,0.00,15.00,R,Access Locksmiths (Leeds) Limited,No
Http://opendatacommunities.org/id/metropolitan-district-council/leeds,Leeds City Council,31/03/2020,Strategic Landlord,Housing Management,Supplies and Services,Resaleable Materials,204,20/03/2020,2003-00302,0.00,171.00,R,Access Locksmiths (Leeds) Limited,No
Http://opendatacommunities.org/id/metropolitan-district-council/leeds,Leeds City Council,31/03/2020,Strategic Landlord,Property and Contracts,Premises,Electricity,124,25/03/2020,2003-00303,0.00,230.40,R,Access Locksmiths (Leeds) Limited,No
Http://opendatacommunities.org/id/metropolitan-district-council/leeds,Leeds City Council,31/03/2020,Strategic Landlord,Property and Contracts,Premises,Electricity,124,25/03/2020,2003-00304,0.00,509.52,R,Access Locksmiths (Leeds) Limited,No
Http://opendatacommunities.org/id/metropolitan-district-council/leeds,Leeds City Council,31/03/2020,Strategic Landlord,Strategic,Premises,Maintenance Of Buildings,101,27/03/2020,2003-00305,0.00,30.00,R,Access Locksmiths (Leeds) Limited,No
Http://opendatacommunities.org/id/metropolitan-district-council/leeds,Leeds City Council,31/03/2020,Strategic Landlord,Housing Management,Premises,General Maintenance,104,27/03/2020,2003-00306,0.00,342.00,R,Access Locksmiths (Leeds) Limited,No
Http://opendatacommunities.org/id/metropolitan-district-council/leeds,Leeds City Council,31/03/2020,Strategic Landlord,Housing Management,Supplies and Services,Resaleable Materials,204,30/03/2020,2003-00307,0.00,114.00,R,Access Locksmiths (Leeds) Limited,No
Http://opendatacommunities.org/id/metropolitan-district-council/leeds,Leeds City Council,31/03/2020,Communities and Environment,Environmental Action (City Centre),Supplies and Services,CCTV,252,31/03/2020,2003-00308,0.00,1944.00,R,Accesscctv,No
Http://opendatacommunities.org/id/metropolitan-district-council/leeds,Leeds City Council,31/03/2020,City Development,Recreation,Supplies and Services,Operational Furniture And Equipment,203,05/03/2020,2003-00309,0.00,93.00,R,Ace Container Services Limited,No
Http://opendatacommunities.org/id/metropolitan-district-council/leeds,Leeds City Council,31/03/2020,City Development,Recreation,Supplies and Services,Operational Furniture And Equipment,203,27/03/2020,2003-00310,0.00,87.00,R,Ace Container Services Limited,No
Http://opendatacommunities.org/id/metropolitan-district-council/leeds,Leeds City Council,31/03/2020,City Development,Recreation,Transport,External Hire -Occasional,304,27/03/2020,2003-00311,0.00,128.65,R,Ace Container Services Limited,No
Http://opendatacommunities.org/id/metropolitan-district-council/leeds,Leeds City Council,31/03/2020,Communities and Environment,Waste Management,Supplies and Services,Other Hired And Contracted Services,265,05/03/2020,2003-00312,0.00,200.00,R,Acorn Analytical Services Limited,No
Http://opendatacommunities.org/id/metropolitan-district-council/leeds,Leeds City Council,31/03/2020,City Development,Libraries  Arts & Heritage,Supplies and Services,Other Hired And Contracted Services,265,13/03/2020,2003-00313,0.00,380.00,R,Acorn Construction (Yorkshire) Ltd,No
Http://opendatacommunities.org/id/metropolitan-district-council/leeds,Leeds City Council,31/03/2020,Adults and Health,Services For Older People - 65 And Over,Third Party Payments,Residential Care Dementia,571,04/03/2020,2003-00314,0.00,1521.16,R,Acorn Nursing Home,No
Http://opendatacommunities.org/id/metropolitan-district-council/leeds,Leeds City Council,31/03/2020,Adults and Health,Services For Older People - 65 And Over,Third Party Payments,Nursing Care Dementia,574,04/03/2020,2003-00315,0.00,1646.24,R,Acorn Nursing Home,No
Http://opendatacommunities.org/id/metropolitan-district-council/leeds,Leeds City Council,31/03/2020,Children and Families,Social Care,Third Party Payments,Services Rendered By Other Organisations,511,04/03/2020,2003-00316,0.00,208.00,R,Acorns Nursery,No
Http://opendatacommunities.org/id/metropolitan-district-council/leeds,Leeds City Council,31/03/2020,Children and Families,Social Care,Third Party Payments,Services Rendered By Other Organisations,511,06/03/2020,2003-00317,0.00,13851.73,R,Acorns Nursery,No
Http://opendatacommunities.org/id/metropolitan-district-council/leeds,Leeds City Council,31/03/2020,Children and Families,Learning  ,Supplies and Services,Teaching Furniture & Equipment,207,10/02/2020,2003-00318,0.00,-10.76,R,Acp* Musicroom.Com,Yes
Http://opendatacommunities.org/id/metropolitan-district-council/leeds,Leeds City Council,31/03/2020,Adults and Health,Services For Older People - 65 And Over,Third Party Payments,Nursing Home,570,04/03/2020,2003-00319,0.00,52787.47,R,Acre Green,No
Http://opendatacommunities.org/id/metropolitan-district-council/leeds,Leeds City Council,31/03/2020,Adults and Health,Services For Older People - 65 And Over,Third Party Payments,Residential,580,04/03/2020,2003-00320,0.00,5901.80,R,Acre Green,No
Http://opendatacommunities.org/id/metropolitan-district-council/leeds,Leeds City Council,31/03/2020,Adults and Health,Services For Older People Under 65 P/Dis,Third Party Payments,Nursing Home,570,04/03/2020,2003-00321,0.00,2268.00,R,Acre Green,No
Http://opendatacommunities.org/id/metropolitan-district-council/leeds,Leeds City Council,31/03/2020,Adults and Health,Services For Older People Under 65 P/Dis,Third Party Payments,Residential,580,04/03/2020,2003-00322,0.00,1574.20,R,Acre Green,No
Http://opendatacommunities.org/id/metropolitan-district-council/leeds,Leeds City Council,31/03/2020,Children and Families,Social Care,Third Party Payments,Services Rendered By Other Organisations,511,04/03/2020,2003-00323,0.00,6240.00,R,Acre Wood Day Nursery,No
Http://opendatacommunities.org/id/metropolitan-district-council/leeds,Leeds City Council,31/03/2020,Children and Families,Social Care,Third Party Payments,Services Rendered By Other Organisations,511,06/03/2020,2003-00324,0.00,6966.00,R,Acre Wood Day Nursery,No
Http://opendatacommunities.org/id/metropolitan-district-council/leeds,Leeds City Council,31/03/2020,Resources and Housing,Commercial Services  ,Supplies and Services,Computer Software & Equipment,214,04/02/2020,2003-00325,0.00,13.59,R,Acs Business Supplies Lt,Yes
Http://opendatacommunities.org/id/metropolitan-district-council/leeds,Leeds City Council,31/03/2020,Resources and Housing,Leeds Building Services,Supplies and Services,Other Hired And Contracted Services,265,06/03/2020,2003-00326,0.00,176.70,R,Actavo Hire And Sales Uk Limited,No
Http://opendatacommunities.org/id/metropolitan-district-council/leeds,Leeds City Council,31/03/2020,Children and Families,Social Care,Third Party Payments,Independent Fostering Agencies,509,11/03/2020,2003-00327,0.00,-4776.48,R,Action For Children,No
Http://opendatacommunities.org/id/metropolitan-district-council/leeds,Leeds City Council,31/03/2020,Children and Families,Social Care,Third Party Payments,Independent Fostering Agencies,509,11/03/2020,2003-00328,0.00,-1540.80,R,Action For Children,No
Http://opendatacommunities.org/id/metropolitan-district-council/leeds,Leeds City Council,31/03/2020,Children and Families,Social Care,Third Party Payments,Independent Fostering Agencies,509,11/03/2020,2003-00329,0.00,4776.48,R,Action For Children,No
Http://opendatacommunities.org/id/metropolitan-district-council/leeds,Leeds City Council,31/03/2020,Children and Families,Social Care,Third Party Payments,Independent Fostering Agencies,509,11/03/2020,2003-00330,0.00,1540.80,R,Action For Children,No
Http://opendatacommunities.org/id/metropolitan-district-council/leeds,Leeds City Council,31/03/2020,Children and Families,Social Care,Third Party Payments,Independent Fostering Agencies,509,20/03/2020,2003-00331,0.00,5163.67,R,Action For Children Services Ltd,No
Http://opendatacommunities.org/id/metropolitan-district-council/leeds,Leeds City Council,31/03/2020,Children and Families,Social Care,Third Party Payments,Independent Fostering Agencies,509,20/03/2020,2003-00332,0.00,4830.53,R,Action For Children Services Ltd,No
Http://opendatacommunities.org/id/metropolitan-district-council/leeds,Leeds City Council,31/03/2020,Children and Families,Social Care,Third Party Payments,Independent Fostering Agencies,509,20/03/2020,2003-00333,0.00,-4776.48,R,Action For Children Services Ltd,No
Http://opendatacommunities.org/id/metropolitan-district-council/leeds,Leeds City Council,31/03/2020,Children and Families,Social Care,Third Party Payments,Independent Fostering Agencies,509,20/03/2020,2003-00334,0.00,-4776.48,R,Action For Children Services Ltd,No
Http://opendatacommunities.org/id/metropolitan-district-council/leeds,Leeds City Council,31/03/2020,Insurance,Insurance,Supplies and Services,Insurance Claims,248,16/03/2020,2003-00335,0.00,245.63,R,Active Cleaning Solutions Ltd,No
Http://opendatacommunities.org/id/metropolitan-district-council/leeds,Leeds City Council,31/03/2020,Children and Families,Social Care,Third Party Payments,Services Rendered By Other Organisations,511,04/03/2020,2003-00336,0.00,624.00,R,Active Kids Yeadon Llp,No
Http://opendatacommunities.org/id/metropolitan-district-council/leeds,Leeds City Council,31/03/2020,Children and Families,Social Care,Third Party Payments,Services Rendered By Other Organisations,511,06/03/2020,2003-00337,0.00,8574.20,R,Active Kids Yeadon Llp,No
Http://opendatacommunities.org/id/metropolitan-district-council/leeds,Leeds City Council,31/03/2020,Children and Families,Social Care,Third Party Payments,Services Rendered By Other Organisations,511,06/03/2020,2003-00338,0.00,615.00,R,Active Kids Yeadon Llp,No
Http://opendatacommunities.org/id/metropolitan-district-council/leeds,Leeds City Council,31/03/2020,Adults and Health,Services For Adults Under 65 Mental/Dis,Third Party Payments,Sheltered Accommodation,569,04/03/2020,2003-00339,0.00,5603.84,R,Active Pathways,No
Http://opendatacommunities.org/id/metropolitan-district-council/leeds,Leeds City Council As Accountable Body,31/03/2020,Social Services Pooled Budgets,Jcs For People With Learning Disabilitie,Third Party Payments,Sheltered Accommodation,569,04/03/2020,2003-00340,0.00,14009.66,R,Active Pathways,No
Http://opendatacommunities.org/id/metropolitan-district-council/leeds,Leeds City Council,31/03/2020,Communities and Environment,Waste Management,Supplies and Services,Recycling & Reuse Charges,234,04/03/2020,2003-00341,0.00,7704.25,R,Acumen Waste Services Ltd,No
Http://opendatacommunities.org/id/metropolitan-district-council/leeds,Leeds City Council,31/03/2020,Communities and Environment,Cleaner Neighbourhood Teams,Premises,Removal Of Workplace Waste,126,04/03/2020,2003-00342,0.00,116.60,R,Acumen Waste Services Ltd,No
Http://opendatacommunities.org/id/metropolitan-district-council/leeds,Leeds City Council,31/03/2020,Communities and Environment,Cleaner Neighbourhood Teams,Premises,Removal Of Workplace Waste,126,04/03/2020,2003-00343,0.00,116.60,R,Acumen Waste Services Ltd,No
Http://opendatacommunities.org/id/metropolitan-district-council/leeds,Leeds City Council,31/03/2020,Communities and Environment,Cleaner Neighbourhood Teams,Premises,Removal Of Workplace Waste,126,04/03/2020,2003-00344,0.00,116.60,R,Acumen Waste Services Ltd,No
Http://opendatacommunities.org/id/metropolitan-district-council/leeds,Leeds City Council,31/03/2020,Communities and Environment,Cleaner Neighbourhood Teams,Premises,Removal Of Workplace Waste,126,06/03/2020,2003-00345,0.00,116.60,R,Acumen Waste Services Ltd,No
Http://opendatacommunities.org/id/metropolitan-district-council/leeds,Leeds City Council,31/03/2020,Communities and Environment,Waste Management,Supplies and Services,Recycling & Reuse Charges,234,12/03/2020,2003-00346,0.00,5983.44,R,Acumen Waste Services Ltd,No
Http://opendatacommunities.org/id/metropolitan-district-council/leeds,Leeds City Council,31/03/2020,Communities and Environment,Cleaner Neighbourhood Teams,Premises,Removal Of Workplace Waste,126,12/03/2020,2003-00347,0.00,116.60,R,Acumen Waste Services Ltd,No
Http://opendatacommunities.org/id/metropolitan-district-council/leeds,Leeds City Council,31/03/2020,Communities and Environment,Cleaner Neighbourhood Teams,Premises,Removal Of Workplace Waste,126,12/03/2020,2003-00348,0.00,116.60,R,Acumen Waste Services Ltd,No
Http://opendatacommunities.org/id/metropolitan-district-council/leeds,Leeds City Council,31/03/2020,Communities and Environment,Cleaner Neighbourhood Teams,Premises,Removal Of Workplace Waste,126,12/03/2020,2003-00349,0.00,116.60,R,Acumen Waste Services Ltd,No
Http://opendatacommunities.org/id/metropolitan-district-council/leeds,Leeds City Council,31/03/2020,Communities and Environment,Cleaner Neighbourhood Teams,Premises,Removal Of Workplace Waste,126,12/03/2020,2003-00350,0.00,116.60,R,Acumen Waste Services Ltd,No
Http://opendatacommunities.org/id/metropolitan-district-council/leeds,Leeds City Council,31/03/2020,Communities and Environment,Cleaner Neighbourhood Teams,Premises,Removal Of Workplace Waste,126,18/03/2020,2003-00351,0.00,116.60,R,Acumen Waste Services Ltd,No
Http://opendatacommunities.org/id/metropolitan-district-council/leeds,Leeds City Council,31/03/2020,Communities and Environment,Cleaner Neighbourhood Teams,Premises,Removal Of Workplace Waste,126,18/03/2020,2003-00352,0.00,116.60,R,Acumen Waste Services Ltd,No
Http://opendatacommunities.org/id/metropolitan-district-council/leeds,Leeds City Council,31/03/2020,Communities and Environment,Waste Management,Supplies and Services,Recycling & Reuse Charges,234,18/03/2020,2003-00353,0.00,7759.65,R,Acumen Waste Services Ltd,No
Http://opendatacommunities.org/id/metropolitan-district-council/leeds,Leeds City Council,31/03/2020,Communities and Environment,Cleaner Neighbourhood Teams,Premises,Removal Of Workplace Waste,126,20/03/2020,2003-00354,0.00,116.60,R,Acumen Waste Services Ltd,No
Http://opendatacommunities.org/id/metropolitan-district-council/leeds,Leeds City Council,31/03/2020,Communities and Environment,Cleaner Neighbourhood Teams,Premises,Removal Of Workplace Waste,126,20/03/2020,2003-00355,0.00,116.60,R,Acumen Waste Services Ltd,No
Http://opendatacommunities.org/id/metropolitan-district-council/leeds,Leeds City Council,31/03/2020,Communities and Environment,Cleaner Neighbourhood Teams,Premises,Removal Of Workplace Waste,126,25/03/2020,2003-00356,0.00,116.60,R,Acumen Waste Services Ltd,No
Http://opendatacommunities.org/id/metropolitan-district-council/leeds,Leeds City Council,31/03/2020,Communities and Environment,Waste Management,Supplies and Services,Recycling & Reuse Charges,234,25/03/2020,2003-00357,0.00,3926.70,R,Acumen Waste Services Ltd,No
Http://opendatacommunities.org/id/metropolitan-district-council/leeds,Leeds City Council,31/03/2020,Communities and Environment,Cleaner Neighbourhood Teams,Premises,Removal Of Workplace Waste,126,25/03/2020,2003-00358,0.00,116.60,R,Acumen Waste Services Ltd,No
Http://opendatacommunities.org/id/metropolitan-district-council/leeds,Leeds City Council,31/03/2020,Communities and Environment,Cleaner Neighbourhood Teams,Premises,Removal Of Workplace Waste,126,25/03/2020,2003-00359,0.00,116.60,R,Acumen Waste Services Ltd,No
Http://opendatacommunities.org/id/metropolitan-district-council/leeds,Leeds City Council,31/03/2020,Communities and Environment,Cleaner Neighbourhood Teams,Premises,Removal Of Workplace Waste,126,25/03/2020,2003-00360,0.00,116.60,R,Acumen Waste Services Ltd,No
Http://opendatacommunities.org/id/metropolitan-district-council/leeds,Leeds City Council,31/03/2020,Communities and Environment,Cleaner Neighbourhood Teams,Premises,Removal Of Workplace Waste,126,25/03/2020,2003-00361,0.00,116.60,R,Acumen Waste Services Ltd,No
Http://opendatacommunities.org/id/metropolitan-district-council/leeds,Leeds City Council,31/03/2020,Communities and Environment,Cleaner Neighbourhood Teams,Premises,Removal Of Workplace Waste,126,27/03/2020,2003-00362,0.00,116.60,R,Acumen Waste Services Ltd,No
Http://opendatacommunities.org/id/metropolitan-district-council/leeds,Leeds City Council,31/03/2020,Resources and Housing,Shared Services,Supplies and Services,Operational Materials,205,06/03/2020,2003-00363,0.00,366.60,R,Ad3 Envelope Printers Limited,No
Http://opendatacommunities.org/id/metropolitan-district-council/leeds,Leeds City Council,31/03/2020,Resources and Housing,Shared Services,Supplies and Services,Other Hired And Contracted Services,265,27/03/2020,2003-00364,0.00,459.61,R,Ad3 Envelope Printers Limited,No
Http://opendatacommunities.org/id/metropolitan-district-council/leeds,Leeds City Council,31/03/2020,Resources and Housing,Shared Services,Supplies and Services,Other Hired And Contracted Services,265,27/03/2020,2003-00365,0.00,113.14,R,Ad3 Envelope Printers Limited,No
Http://opendatacommunities.org/id/metropolitan-district-council/leeds,Leeds City Council,31/03/2020,Resources and Housing,Shared Services,Supplies and Services,Other Hired And Contracted Services,265,27/03/2020,2003-00366,0.00,113.14,R,Ad3 Envelope Printers Limited,No
Http://opendatacommunities.org/id/metropolitan-district-council/leeds,Leeds City Council,31/03/2020,Adults and Health,Services For Older People - 65 And Over,Third Party Payments,Nursing Home,570,04/03/2020,2003-00367,0.00,2480.00,R,Adbolton Hall,No
Http://opendatacommunities.org/id/metropolitan-district-council/leeds,Leeds City Council,31/03/2020,City Development,Asset Management Services,Support Services,Legal Disbursements,411,27/03/2020,2003-00368,0.00,18060.07,R,Addleshaw Goddard Llp,No
Http://opendatacommunities.org/id/metropolitan-district-council/leeds,Leeds City Council,31/03/2020,Communities and Environment,Car Parking Services,Income,Penalties  Fines & Car Parking Charges,934,13/03/2020,2003-00369,0.00,4.00,R,REDACTED PERSONAL DATA,No
Http://opendatacommunities.org/id/metropolitan-district-council/leeds,Leeds City Council,31/03/2020,Resources and Housing,Technology  ,Employees,Agency Staff,8,14/02/2020,2003-00370,0.00,33.33,R,Adecco Alfred Marks,Yes
Http://opendatacommunities.org/id/metropolitan-district-council/leeds,Leeds City Council,31/03/2020,Resources and Housing,Technology  ,Employees,Agency Staff,8,14/02/2020,2003-00371,0.00,165.53,R,Adecco Alfred Marks,Yes
Http://opendatacommunities.org/id/metropolitan-district-council/leeds,Leeds City Council,31/03/2020,Resources and Housing,Technology  ,Employees,Agency Staff,8,21/02/2020,2003-00372,0.00,67045.84,R,Adecco Alfred Marks,Yes
Http://opendatacommunities.org/id/metropolitan-district-council/leeds,Leeds City Council,31/03/2020,Strategic Accounts,Miscellaneous,Supplies and Services,Non-Recurring Grants,227,09/03/2020,2003-00373,0.00,200.00,R,Adel & District Horticultural Society,No
Http://opendatacommunities.org/id/metropolitan-district-council/leeds,Leeds City Council,31/03/2020,Children and Families,Social Care,Third Party Payments,Services Rendered By Voluntary Sector,505,06/03/2020,2003-00374,0.00,572.40,R,Adel Pre School,No
Http://opendatacommunities.org/id/metropolitan-district-council/leeds,Leeds City Council,31/03/2020,Children and Families,Social Care,Third Party Payments,Services Rendered By Voluntary Sector,505,06/03/2020,2003-00375,0.00,9855.60,R,Adel Pre School,No
Http://opendatacommunities.org/id/metropolitan-district-council/leeds,Leeds City Council,31/03/2020,Communities and Environment,Elections  Licensing and Registration,Income,Admissions  Booking Fees & Ticket Sales,933,19/03/2020,2003-00376,0.00,195.00,R,REDACTED PERSONAL DATA,No
Http://opendatacommunities.org/id/metropolitan-district-council/leeds,Leeds City Council,31/03/2020,City Development,Recreation,Supplies and Services,Bought In Professional Services,277,27/03/2020,2003-00377,0.00,160.00,R,Adele Battersby,No
Http://opendatacommunities.org/id/metropolitan-district-council/leeds,Leeds City Council,31/03/2020,Children and Families,Social Care,Third Party Payments,Services Rendered By Other Organisations,511,04/03/2020,2003-00378,0.00,624.00,R,REDACTED PERSONAL DATA,No
Http://opendatacommunities.org/id/metropolitan-district-council/leeds,Leeds City Council,31/03/2020,Resources and Housing,Digital and Information Services,Capital,Other Costs,7,03/03/2020,2003-00379,0.00,6000.00,C,Adele Sanders,No
Http://opendatacommunities.org/id/metropolitan-district-council/leeds,Leeds City Council,31/03/2020,Children and Families,Social Care,Third Party Payments,Services Rendered By Other Organisations,511,06/03/2020,2003-00380,0.00,739.60,R,REDACTED PERSONAL DATA,No
Http://opendatacommunities.org/id/metropolitan-district-council/leeds,Leeds City Council,31/03/2020,Resources and Housing,Commercial Services,Supplies and Services,Food & Drink,231,06/03/2020,2003-00381,0.00,255.37,R,Adelie Foods Ltd,No
Http://opendatacommunities.org/id/metropolitan-district-council/leeds,Leeds City Council,31/03/2020,Resources and Housing,Commercial Services,Supplies and Services,Food & Drink,231,06/03/2020,2003-00382,0.00,331.87,R,Adelie Foods Ltd,No
Http://opendatacommunities.org/id/metropolitan-district-council/leeds,Leeds City Council,31/03/2020,Resources and Housing,Commercial Services,Supplies and Services,Food & Drink,231,13/03/2020,2003-00383,0.00,303.57,R,Adelie Foods Ltd,No
Http://opendatacommunities.org/id/metropolitan-district-council/leeds,Leeds City Council,31/03/2020,Resources and Housing,Commercial Services,Supplies and Services,Food & Drink,231,13/03/2020,2003-00384,0.00,159.40,R,Adelie Foods Ltd,No
Http://opendatacommunities.org/id/metropolitan-district-council/leeds,Leeds City Council,31/03/2020,Resources and Housing,Commercial Services,Supplies and Services,Food & Drink,231,20/03/2020,2003-00385,0.00,232.97,R,Adelie Foods Ltd,No
Http://opendatacommunities.org/id/metropolitan-district-council/leeds,Leeds City Council,31/03/2020,Resources and Housing,Commercial Services,Supplies and Services,Food & Drink,231,23/03/2020,2003-00386,0.00,284.41,R,Adelie Foods Ltd,No
Http://opendatacommunities.org/id/metropolitan-district-council/leeds,Leeds City Council,31/03/2020,Resources and Housing,Commercial Services,Supplies and Services,Food & Drink,231,25/03/2020,2003-00387,0.00,266.05,R,Adelie Foods Ltd,No
Http://opendatacommunities.org/id/metropolitan-district-council/leeds,Leeds City Council,31/03/2020,Resources and Housing,Commercial Services,Supplies and Services,Food & Drink,231,25/03/2020,2003-00388,0.00,296.98,R,Adelie Foods Ltd,No
Http://opendatacommunities.org/id/metropolitan-district-council/leeds,Leeds City Council,31/03/2020,Resources and Housing,Commercial Services,Supplies and Services,Food & Drink,231,27/03/2020,2003-00389,0.00,370.70,R,Adelie Foods Ltd,No
Http://opendatacommunities.org/id/metropolitan-district-council/leeds,Leeds City Council,31/03/2020,Resources and Housing,Commercial Services,Supplies and Services,Food & Drink,231,30/03/2020,2003-00390,0.00,9.30,R,Adelie Foods Ltd,No
Http://opendatacommunities.org/id/metropolitan-district-council/leeds,Leeds City Council,31/03/2020,Resources and Housing,Leeds Building Services,Supplies and Services,Operational Materials,205,03/03/2020,2003-00391,0.00,112.44,R,Adi Global,No
Http://opendatacommunities.org/id/metropolitan-district-council/leeds,Leeds City Council,31/03/2020,Resources and Housing,Leeds Building Services,Supplies and Services,Operational Materials,205,04/03/2020,2003-00392,0.00,306.32,R,Adi Global,No
Http://opendatacommunities.org/id/metropolitan-district-council/leeds,Leeds City Council,31/03/2020,Resources and Housing,Leeds Building Services,Supplies and Services,Stores - Central And Other Depots,5,09/03/2020,2003-00393,0.00,61.83,R,Adi Global,No
Http://opendatacommunities.org/id/metropolitan-district-council/leeds,Leeds City Council,31/03/2020,Resources and Housing,Leeds Building Services,Supplies and Services,Stores - Central And Other Depots,5,09/03/2020,2003-00394,0.00,1209.37,R,Adi Global,No
Http://opendatacommunities.org/id/metropolitan-district-council/leeds,Leeds City Council,31/03/2020,Resources and Housing,Leeds Building Services,Supplies and Services,Operational Materials,205,10/03/2020,2003-00395,0.00,227.94,R,Adi Global,No
Http://opendatacommunities.org/id/metropolitan-district-council/leeds,Leeds City Council,31/03/2020,Resources and Housing,Leeds Building Services,Supplies and Services,Operational Materials,205,11/03/2020,2003-00396,0.00,460.38,R,Adi Global,No
Http://opendatacommunities.org/id/metropolitan-district-council/leeds,Leeds City Council,31/03/2020,Resources and Housing,Leeds Building Services,Supplies and Services,Operational Materials,205,18/03/2020,2003-00397,0.00,13.76,R,Adi Global,No
Http://opendatacommunities.org/id/metropolitan-district-council/leeds,Leeds City Council,31/03/2020,Resources and Housing,Leeds Building Services,Supplies and Services,Operational Materials,205,18/03/2020,2003-00398,0.00,35.49,R,Adi Global,No
Http://opendatacommunities.org/id/metropolitan-district-council/leeds,Leeds City Council,31/03/2020,Resources and Housing,Leeds Building Services,Supplies and Services,Stores - Central And Other Depots,5,20/03/2020,2003-00399,0.00,82.40,R,Adi Global,No
Http://opendatacommunities.org/id/metropolitan-district-council/leeds,Leeds City Council,31/03/2020,Resources and Housing,Leeds Building Services,Supplies and Services,Operational Materials,205,23/03/2020,2003-00400,0.00,89.98,R,Adi Global,No
Http://opendatacommunities.org/id/metropolitan-district-council/leeds,Leeds City Council,31/03/2020,Resources and Housing,Leeds Building Services,Supplies and Services,Operational Materials,205,26/03/2020,2003-00401,0.00,67.43,R,Adi Global,No
Http://opendatacommunities.org/id/metropolitan-district-council/leeds,Leeds City Council,31/03/2020,Resources and Housing,Leeds Building Services,Supplies and Services,Operational Materials,205,27/03/2020,2003-00402,0.00,14.85,R,Adi Global,No
Http://opendatacommunities.org/id/metropolitan-district-council/leeds,Leeds City Council,31/03/2020,Resources and Housing,Leeds Building Services,Supplies and Services,Operational Materials,205,27/03/2020,2003-00403,0.00,1212.16,R,Adi Global,No
Http://opendatacommunities.org/id/metropolitan-district-council/leeds,Leeds City Council,31/03/2020,Resources and Housing,Leeds Building Services,Supplies and Services,Operational Materials,205,27/03/2020,2003-00404,0.00,1220.56,R,Adi Global,No
Http://opendatacommunities.org/id/metropolitan-district-council/leeds,Leeds City Council,31/03/2020,Resources and Housing,Leeds Building Services,Supplies and Services,Operational Materials,205,27/03/2020,2003-00405,0.00,896.02,R,Adi Global,No
Http://opendatacommunities.org/id/metropolitan-district-council/leeds,Leeds City Council,31/03/2020,Communities and Environment,Community Safety  ,Supplies and Services,Other Hired And Contracted Services,265,12/02/2020,2003-00406,0.00,64.99,R,Adi-Gardiner Ltd,Yes
Http://opendatacommunities.org/id/metropolitan-district-council/leeds,Leeds City Council,31/03/2020,City Development,Libraries  Arts & Heritage  ,Supplies and Services,Computer Software & Equipment,214,02/02/2020,2003-00407,0.00,9.98,R,Adobe Photogphy Plan,Yes
Http://opendatacommunities.org/id/metropolitan-district-council/leeds,Leeds City Council,31/03/2020,Children and Families,Social Care,Third Party Payments,Independent Fostering Agencies,509,06/03/2020,2003-00408,0.00,3377.14,R,Adolescent And Childrens Trust,No
Http://opendatacommunities.org/id/metropolitan-district-council/leeds,Leeds City Council,31/03/2020,Children and Families,Social Care,Third Party Payments,Independent Fostering Agencies,509,06/03/2020,2003-00409,0.00,3309.60,R,Adolescent And Childrens Trust,No
Http://opendatacommunities.org/id/metropolitan-district-council/leeds,Leeds City Council,31/03/2020,Children and Families,Social Care,Third Party Payments,Independent Fostering Agencies,509,06/03/2020,2003-00410,0.00,3309.60,R,Adolescent And Childrens Trust,No
Http://opendatacommunities.org/id/metropolitan-district-council/leeds,Leeds City Council,31/03/2020,Children and Families,Social Care,Third Party Payments,Independent Fostering Agencies,509,06/03/2020,2003-00411,0.00,3576.16,R,Adolescent And Childrens Trust,No
Http://opendatacommunities.org/id/metropolitan-district-council/leeds,Leeds City Council,31/03/2020,Children and Families,Social Care,Third Party Payments,Independent Fostering Agencies,509,06/03/2020,2003-00412,0.00,3576.16,R,Adolescent And Childrens Trust,No
Http://opendatacommunities.org/id/metropolitan-district-council/leeds,Leeds City Council,31/03/2020,Children and Families,Social Care,Third Party Payments,Independent Fostering Agencies,509,06/03/2020,2003-00413,0.00,3309.60,R,Adolescent And Childrens Trust,No
Http://opendatacommunities.org/id/metropolitan-district-council/leeds,Leeds City Council,31/03/2020,Children and Families,Social Care,Third Party Payments,Independent Fostering Agencies,509,06/03/2020,2003-00414,0.00,3309.60,R,Adolescent And Childrens Trust,No
Http://opendatacommunities.org/id/metropolitan-district-council/leeds,Leeds City Council,31/03/2020,Children and Families,Social Care,Third Party Payments,Independent Fostering Agencies,509,06/03/2020,2003-00415,0.00,3309.60,R,Adolescent And Childrens Trust,No
Http://opendatacommunities.org/id/metropolitan-district-council/leeds,Leeds City Council,31/03/2020,Children and Families,Social Care,Third Party Payments,Independent Fostering Agencies,509,06/03/2020,2003-00416,0.00,3309.60,R,Adolescent And Childrens Trust,No
Http://opendatacommunities.org/id/metropolitan-district-council/leeds,Leeds City Council,31/03/2020,Children and Families,Social Care,Third Party Payments,Independent Fostering Agencies,509,06/03/2020,2003-00417,0.00,3309.60,R,Adolescent And Childrens Trust,No
Http://opendatacommunities.org/id/metropolitan-district-council/leeds,Leeds City Council,31/03/2020,Children and Families,Social Care,Third Party Payments,Independent Fostering Agencies,509,09/03/2020,2003-00418,0.00,2945.00,R,Adolescent And Childrens Trust,No
Http://opendatacommunities.org/id/metropolitan-district-council/leeds,Leeds City Council,31/03/2020,Children and Families,Social Care,Third Party Payments,Independent Fostering Agencies,509,10/03/2020,2003-00419,0.00,808.30,R,Adolescent And Childrens Trust,No
Http://opendatacommunities.org/id/metropolitan-district-council/leeds,Leeds City Council,31/03/2020,Children and Families,Social Care,Third Party Payments,Independent Fostering Agencies,509,11/03/2020,2003-00420,0.00,808.30,R,Adolescent And Childrens Trust,No
Http://opendatacommunities.org/id/metropolitan-district-council/leeds,Leeds City Council,31/03/2020,Children and Families,Social Care,Third Party Payments,Independent Fostering Agencies,509,11/03/2020,2003-00421,0.00,588.82,R,Adolescent And Childrens Trust,No
Http://opendatacommunities.org/id/metropolitan-district-council/leeds,Leeds City Council As Accountable Body,31/03/2020,Social Services Pooled Budgets,Jcs For People With Learning Disabilitie,Third Party Payments,Residential,580,09/03/2020,2003-00422,0.00,28702.96,R,Adrian House,No
Http://opendatacommunities.org/id/metropolitan-district-council/leeds,Leeds City Council,31/03/2020,Children and Families,Social Care,Third Party Payments,Placement Support,550,06/03/2020,2003-00423,0.00,50.00,R,REDACTED PERSONAL DATA,No
Http://opendatacommunities.org/id/metropolitan-district-council/leeds,Leeds City Council As Accountable Body,31/03/2020,Social Services Pooled Budgets,Jcs For People With Learning Disabilitie,Third Party Payments,Residential,580,06/03/2020,2003-00424,0.00,1332.24,R,Adult Placement Services,No
Http://opendatacommunities.org/id/metropolitan-district-council/leeds,Leeds City Council As Accountable Body,31/03/2020,Social Services Pooled Budgets,Jcs For People With Learning Disabilitie,Third Party Payments,Residential,580,20/03/2020,2003-00425,0.00,1332.24,R,Adult Placement Services,No
Http://opendatacommunities.org/id/metropolitan-district-council/leeds,Leeds City Council,31/03/2020,City Development,Libraries  Arts & Heritage,Supplies and Services,Other Hired And Contracted Services,265,12/03/2020,2003-00426,0.00,90.00,R,Advance Stocks Ltd,No
Http://opendatacommunities.org/id/metropolitan-district-council/leeds,Leeds City Council,31/03/2020,City Development,Libraries  Arts & Heritage,Supplies and Services,External Audit Fees,261,17/03/2020,2003-00427,0.00,90.00,R,Advance Stocks Ltd,No
Http://opendatacommunities.org/id/metropolitan-district-council/leeds,Leeds City Council,31/03/2020,City Development,Recreation,Supplies and Services,External Audit Fees,261,27/03/2020,2003-00428,0.00,135.00,R,Advance Stocks Ltd,No
Http://opendatacommunities.org/id/metropolitan-district-council/leeds,Leeds City Council,31/03/2020,City Development,Recreation,Supplies and Services,External Audit Fees,261,27/03/2020,2003-00429,0.00,90.00,R,Advance Stocks Ltd,No
Http://opendatacommunities.org/id/metropolitan-district-council/leeds,Leeds City Council,31/03/2020,Communities and Environment,Parks and Countryside,Capital,Other Costs,7,16/03/2020,2003-00430,0.00,9112.00,C,Advanced Diesel Engineering,No
Http://opendatacommunities.org/id/metropolitan-district-council/leeds,Leeds City Council,31/03/2020,City Development,Recreation  ,Premises,First Aid Requisites,128,06/02/2020,2003-00431,0.00,185.32,R,Advanced Moulds Ltd,Yes
Http://opendatacommunities.org/id/metropolitan-district-council/leeds,Leeds City Council As Accountable Body,31/03/2020,Social Services Pooled Budgets,Jcs For People With Learning Disabilitie,Third Party Payments,Residential,580,04/03/2020,2003-00432,0.00,17213.56,R,Advitam Ltd,No
Http://opendatacommunities.org/id/metropolitan-district-council/leeds,Leeds City Council As Accountable Body,31/03/2020,Social Services Pooled Budgets,Jcs For People With Learning Disabilitie,Third Party Payments,Other Agency Services,561,26/03/2020,2003-00433,0.00,45.00,R,Advonet,No
Http://opendatacommunities.org/id/metropolitan-district-council/leeds,Leeds City Council,31/03/2020,Children and Families,Social Care,Third Party Payments,Placement Support,550,30/03/2020,2003-00434,0.00,445.05,R,Advonet,No
Http://opendatacommunities.org/id/metropolitan-district-council/leeds,Leeds City Council As Accountable Body,31/03/2020,Social Services Pooled Budgets,Jcs For People With Learning Disabilitie,Third Party Payments,Other Agency Services,561,31/03/2020,2003-00435,0.00,22.50,R,Advonet,No
Http://opendatacommunities.org/id/metropolitan-district-council/leeds,Leeds City Council,31/03/2020,Adults and Health,Services For Adults Under 65 Mental/Dis,Third Party Payments,Fees - Level 4,520,10/03/2020,2003-00436,0.00,234.62,R,Ae Bia Assessments Limited,No
Http://opendatacommunities.org/id/metropolitan-district-council/leeds,Leeds City Council,31/03/2020,Adults and Health,Services For Adults Under 65 Mental/Dis,Third Party Payments,Fees - Level 4,520,10/03/2020,2003-00437,0.00,198.00,R,Ae Bia Assessments Limited,No
Http://opendatacommunities.org/id/metropolitan-district-council/leeds,Leeds City Council,31/03/2020,Adults and Health,Services For Adults Under 65 Mental/Dis,Third Party Payments,Fees - Level 4,520,10/03/2020,2003-00438,0.00,198.00,R,Ae Bia Assessments Limited,No
Http://opendatacommunities.org/id/metropolitan-district-council/leeds,Leeds City Council,31/03/2020,Adults and Health,Services For Adults Under 65 Mental/Dis,Third Party Payments,Fees - Level 4,520,10/03/2020,2003-00439,0.00,198.00,R,Ae Bia Assessments Limited,No
Http://opendatacommunities.org/id/metropolitan-district-council/leeds,Leeds City Council,31/03/2020,Adults and Health,Services For Adults Under 65 Mental/Dis,Third Party Payments,Fees - Level 4,520,10/03/2020,2003-00440,0.00,198.00,R,Ae Bia Assessments Limited,No
Http://opendatacommunities.org/id/metropolitan-district-council/leeds,Leeds City Council,31/03/2020,Adults and Health,Services For Adults Under 65 Mental/Dis,Third Party Payments,Fees - Level 4,520,11/03/2020,2003-00441,0.00,235.47,R,Ae Bia Assessments Limited,No
Http://opendatacommunities.org/id/metropolitan-district-council/leeds,Leeds City Council,31/03/2020,Adults and Health,Services For Adults Under 65 Mental/Dis,Third Party Payments,Fees - Level 4,520,11/03/2020,2003-00442,0.00,234.62,R,Ae Bia Assessments Limited,No
Http://opendatacommunities.org/id/metropolitan-district-council/leeds,Leeds City Council,31/03/2020,Adults and Health,Services For Adults Under 65 Mental/Dis,Third Party Payments,Fees - Level 4,520,11/03/2020,2003-00443,0.00,198.00,R,Ae Bia Assessments Limited,No
Http://opendatacommunities.org/id/metropolitan-district-council/leeds,Leeds City Council,31/03/2020,Adults and Health,Services For Adults Under 65 Mental/Dis,Third Party Payments,Fees - Level 4,520,11/03/2020,2003-00444,0.00,198.00,R,Ae Bia Assessments Limited,No
Http://opendatacommunities.org/id/metropolitan-district-council/leeds,Leeds City Council,31/03/2020,Adults and Health,Services For Adults Under 65 Mental/Dis,Third Party Payments,Fees - Level 4,520,17/03/2020,2003-00445,0.00,242.70,R,Ae Bia Assessments Limited,No
Http://opendatacommunities.org/id/metropolitan-district-council/leeds,Leeds City Council,31/03/2020,Adults and Health,Services For Adults Under 65 Mental/Dis,Third Party Payments,Fees - Level 4,520,17/03/2020,2003-00446,0.00,198.00,R,Ae Bia Assessments Limited,No
Http://opendatacommunities.org/id/metropolitan-district-council/leeds,Leeds City Council,31/03/2020,Adults and Health,Services For Adults Under 65 Mental/Dis,Third Party Payments,Fees - Level 4,520,17/03/2020,2003-00447,0.00,198.00,R,Ae Bia Assessments Limited,No
Http://opendatacommunities.org/id/metropolitan-district-council/leeds,Leeds City Council,31/03/2020,Adults and Health,Services For Adults Under 65 Mental/Dis,Third Party Payments,Fees - Level 4,520,17/03/2020,2003-00448,0.00,234.62,R,Ae Bia Assessments Limited,No
Http://opendatacommunities.org/id/metropolitan-district-council/leeds,Leeds City Council,31/03/2020,Adults and Health,Services For Adults Under 65 Mental/Dis,Third Party Payments,Fees - Level 4,520,17/03/2020,2003-00449,0.00,234.62,R,Ae Bia Assessments Limited,No
Http://opendatacommunities.org/id/metropolitan-district-council/leeds,Leeds City Council,31/03/2020,City Development,Highways,Capital,Other Costs,7,02/03/2020,2003-00450,0.00,32633.18,C,Aecom Limited,No
Http://opendatacommunities.org/id/metropolitan-district-council/leeds,Leeds City Council,31/03/2020,City Development,Highways,Capital,Other Costs,7,12/03/2020,2003-00451,0.00,43993.38,C,Aecom Limited,No
Http://opendatacommunities.org/id/metropolitan-district-council/leeds,Leeds City Council,31/03/2020,City Development,Highways,Capital,Other Costs,7,19/03/2020,2003-00452,0.00,35578.10,C,Aecom Limited,No
Http://opendatacommunities.org/id/metropolitan-district-council/leeds,Leeds City Council,31/03/2020,City Development,Libraries  Arts & Heritage,Support Services,Internal Incometo City  Development,891,10/03/2020,2003-00453,0.00,-605.00,R,Aeg Presents,No
Http://opendatacommunities.org/id/metropolitan-district-council/leeds,Leeds City Council,31/03/2020,City Development,Libraries  Arts & Heritage,Income,Arts/Sports Facility Hire,920,10/03/2020,2003-00454,0.00,-3646.98,R,Aeg Presents,No
Http://opendatacommunities.org/id/metropolitan-district-council/leeds,Leeds City Council,31/03/2020,City Development,Libraries  Arts & Heritage,Income,Other cultural & rec fees & charges,924,10/03/2020,2003-00455,0.00,-1565.00,R,Aeg Presents,No
Http://opendatacommunities.org/id/metropolitan-district-council/leeds,Leeds City Council,31/03/2020,City Development,Libraries  Arts & Heritage,Income,Admissions  Booking Fees & Ticket Sales,933,10/03/2020,2003-00456,0.00,21825.88,R,Aeg Presents,No
Http://opendatacommunities.org/id/metropolitan-district-council/leeds,Leeds City Council,31/03/2020,City Development,Libraries  Arts & Heritage,Income,Advertising,969,10/03/2020,2003-00457,0.00,-500.00,R,Aeg Presents,No
Http://opendatacommunities.org/id/metropolitan-district-council/leeds,Leeds City Council,31/03/2020,City Development,Libraries  Arts & Heritage,Income,Other Income,973,10/03/2020,2003-00458,0.00,-1609.11,R,Aeg Presents,No
Http://opendatacommunities.org/id/metropolitan-district-council/leeds,Leeds City Council,31/03/2020,Adults and Health,Services For Adults Under 65 Mental/Dis,Third Party Payments,Home Care,568,05/03/2020,2003-00459,0.00,403.20,R,Aegis Care Solutions Ltd,No
Http://opendatacommunities.org/id/metropolitan-district-council/leeds,Leeds City Council,31/03/2020,Adults and Health,Services For Adults Under 65 Mental/Dis,Third Party Payments,Home Care,568,05/03/2020,2003-00460,0.00,935.00,R,Aegis Care Solutions Ltd,No
Http://opendatacommunities.org/id/metropolitan-district-council/leeds,Leeds City Council,31/03/2020,Adults and Health,Services For Adults Under 65 Mental/Dis,Third Party Payments,Home Care,568,05/03/2020,2003-00461,0.00,427.20,R,Aegis Care Solutions Ltd,No
Http://opendatacommunities.org/id/metropolitan-district-council/leeds,Leeds City Council,31/03/2020,Adults and Health,Services For Adults Under 65 Mental/Dis,Third Party Payments,Home Care,568,05/03/2020,2003-00462,0.00,981.20,R,Aegis Care Solutions Ltd,No
Http://opendatacommunities.org/id/metropolitan-district-council/leeds,Leeds City Council,31/03/2020,Adults and Health,Services For Adults Under 65 Mental/Dis,Third Party Payments,Home Care,568,05/03/2020,2003-00463,0.00,356.00,R,Aegis Care Solutions Ltd,No
Http://opendatacommunities.org/id/metropolitan-district-council/leeds,Leeds City Council,31/03/2020,Adults and Health,Services For Adults Under 65 Mental/Dis,Third Party Payments,Home Care,568,05/03/2020,2003-00464,0.00,4594.40,R,Aegis Care Solutions Ltd,No
Http://opendatacommunities.org/id/metropolitan-district-council/leeds,Leeds City Council,31/03/2020,Adults and Health,Services For Adults Under 65 Mental/Dis,Third Party Payments,Home Care,568,05/03/2020,2003-00465,0.00,813.90,R,Aegis Care Solutions Ltd,No
Http://opendatacommunities.org/id/metropolitan-district-council/leeds,Leeds City Council As Accountable Body,31/03/2020,Social Services Pooled Budgets,Jcs For People With Learning Disabilitie,Third Party Payments,Home Care,568,06/03/2020,2003-00466,0.00,1251.00,R,Aegis Care Solutions Ltd,No
Http://opendatacommunities.org/id/metropolitan-district-council/leeds,Leeds City Council As Accountable Body,31/03/2020,Social Services Pooled Budgets,Jcs For People With Learning Disabilitie,Third Party Payments,Residential,580,13/03/2020,2003-00467,0.00,514.40,R,Aegis Care Solutions Ltd,No
Http://opendatacommunities.org/id/metropolitan-district-council/leeds,Leeds City Council As Accountable Body,31/03/2020,Social Services Pooled Budgets,Jcs For People With Learning Disabilitie,Third Party Payments,Home Care,568,03/03/2020,2003-00468,0.00,1110.00,R,Affinity Trust,No
Http://opendatacommunities.org/id/metropolitan-district-council/leeds,Leeds City Council As Accountable Body,31/03/2020,Social Services Pooled Budgets,Jcs For People With Learning Disabilitie,Third Party Payments,Home Care,568,03/03/2020,2003-00469,0.00,1062.67,R,Affinity Trust,No
Http://opendatacommunities.org/id/metropolitan-district-council/leeds,Leeds City Council As Accountable Body,31/03/2020,Social Services Pooled Budgets,Jcs For People With Learning Disabilitie,Third Party Payments,Home Care,568,03/03/2020,2003-00470,0.00,511.36,R,Affinity Trust,No
Http://opendatacommunities.org/id/metropolitan-district-council/leeds,Leeds City Council As Accountable Body,31/03/2020,Social Services Pooled Budgets,Jcs For People With Learning Disabilitie,Third Party Payments,Home Care,568,03/03/2020,2003-00471,0.00,239.70,R,Affinity Trust,No
Http://opendatacommunities.org/id/metropolitan-district-council/leeds,Leeds City Council As Accountable Body,31/03/2020,Social Services Pooled Budgets,Jcs For People With Learning Disabilitie,Third Party Payments,Day Centre,564,03/03/2020,2003-00472,0.00,364.56,R,Affinity Trust,No
Http://opendatacommunities.org/id/metropolitan-district-council/leeds,Leeds City Council As Accountable Body,31/03/2020,Social Services Pooled Budgets,Jcs For People With Learning Disabilitie,Third Party Payments,Home Care,568,03/03/2020,2003-00473,0.00,1270.50,R,Affinity Trust,No
Http://opendatacommunities.org/id/metropolitan-district-council/leeds,Leeds City Council As Accountable Body,31/03/2020,Social Services Pooled Budgets,Jcs For People With Learning Disabilitie,Third Party Payments,Home Care,568,03/03/2020,2003-00474,0.00,908.28,R,Affinity Trust,No
Http://opendatacommunities.org/id/metropolitan-district-council/leeds,Leeds City Council As Accountable Body,31/03/2020,Social Services Pooled Budgets,Jcs For People With Learning Disabilitie,Third Party Payments,Home Care,568,03/03/2020,2003-00475,0.00,639.20,R,Affinity Trust,No
Http://opendatacommunities.org/id/metropolitan-district-council/leeds,Leeds City Council As Accountable Body,31/03/2020,Social Services Pooled Budgets,Jcs For People With Learning Disabilitie,Third Party Payments,Home Care,568,03/03/2020,2003-00476,0.00,399.50,R,Affinity Trust,No
Http://opendatacommunities.org/id/metropolitan-district-council/leeds,Leeds City Council As Accountable Body,31/03/2020,Social Services Pooled Budgets,Jcs For People With Learning Disabilitie,Third Party Payments,Home Care,568,03/03/2020,2003-00477,0.00,306.00,R,Affinity Trust,No
Http://opendatacommunities.org/id/metropolitan-district-council/leeds,Leeds City Council As Accountable Body,31/03/2020,Social Services Pooled Budgets,Jcs For People With Learning Disabilitie,Third Party Payments,Home Care,568,03/03/2020,2003-00478,0.00,926.84,R,Affinity Trust,No
Http://opendatacommunities.org/id/metropolitan-district-council/leeds,Leeds City Council As Accountable Body,31/03/2020,Social Services Pooled Budgets,Jcs For People With Learning Disabilitie,Third Party Payments,Home Care,568,03/03/2020,2003-00479,0.00,3028.21,R,Affinity Trust,No
Http://opendatacommunities.org/id/metropolitan-district-council/leeds,Leeds City Council As Accountable Body,31/03/2020,Social Services Pooled Budgets,Jcs For People With Learning Disabilitie,Third Party Payments,Home Care,568,03/03/2020,2003-00480,0.00,306.48,R,Affinity Trust,No
Http://opendatacommunities.org/id/metropolitan-district-council/leeds,Leeds City Council As Accountable Body,31/03/2020,Social Services Pooled Budgets,Jcs For People With Learning Disabilitie,Third Party Payments,Home Care,568,03/03/2020,2003-00481,0.00,857.82,R,Affinity Trust,No
Http://opendatacommunities.org/id/metropolitan-district-council/leeds,Leeds City Council As Accountable Body,31/03/2020,Social Services Pooled Budgets,Jcs For People With Learning Disabilitie,Third Party Payments,Home Care,568,03/03/2020,2003-00482,0.00,958.80,R,Affinity Trust,No
Http://opendatacommunities.org/id/metropolitan-district-council/leeds,Leeds City Council As Accountable Body,31/03/2020,Social Services Pooled Budgets,Jcs For People With Learning Disabilitie,Third Party Payments,Home Care,568,03/03/2020,2003-00483,0.00,1022.72,R,Affinity Trust,No
Http://opendatacommunities.org/id/metropolitan-district-council/leeds,Leeds City Council As Accountable Body,31/03/2020,Social Services Pooled Budgets,Jcs For People With Learning Disabilitie,Third Party Payments,Home Care,568,03/03/2020,2003-00484,0.00,607.24,R,Affinity Trust,No
Http://opendatacommunities.org/id/metropolitan-district-council/leeds,Leeds City Council As Accountable Body,31/03/2020,Social Services Pooled Budgets,Jcs For People With Learning Disabilitie,Third Party Payments,Home Care,568,03/03/2020,2003-00485,0.00,191.76,R,Affinity Trust,No
Http://opendatacommunities.org/id/metropolitan-district-council/leeds,Leeds City Council As Accountable Body,31/03/2020,Social Services Pooled Budgets,Jcs For People With Learning Disabilitie,Third Party Payments,Home Care,568,03/03/2020,2003-00486,0.00,922.85,R,Affinity Trust,No
Http://opendatacommunities.org/id/metropolitan-district-council/leeds,Leeds City Council As Accountable Body,31/03/2020,Social Services Pooled Budgets,Jcs For People With Learning Disabilitie,Third Party Payments,Home Care,568,03/03/2020,2003-00487,0.00,239.70,R,Affinity Trust,No
Http://opendatacommunities.org/id/metropolitan-district-council/leeds,Leeds City Council As Accountable Body,31/03/2020,Social Services Pooled Budgets,Jcs For People With Learning Disabilitie,Third Party Payments,Home Care,568,03/03/2020,2003-00488,0.00,240.00,R,Affinity Trust,No
Http://opendatacommunities.org/id/metropolitan-district-council/leeds,Leeds City Council As Accountable Body,31/03/2020,Social Services Pooled Budgets,Jcs For People With Learning Disabilitie,Third Party Payments,Home Care,568,03/03/2020,2003-00489,0.00,463.42,R,Affinity Trust,No
Http://opendatacommunities.org/id/metropolitan-district-council/leeds,Leeds City Council As Accountable Body,31/03/2020,Social Services Pooled Budgets,Jcs For People With Learning Disabilitie,Third Party Payments,Home Care,568,04/03/2020,2003-00490,0.00,1390.26,R,Affinity Trust,No
Http://opendatacommunities.org/id/metropolitan-district-council/leeds,Leeds City Council As Accountable Body,31/03/2020,Social Services Pooled Budgets,Jcs For People With Learning Disabilitie,Third Party Payments,Home Care,568,04/03/2020,2003-00491,0.00,399.50,R,Affinity Trust,No
Http://opendatacommunities.org/id/metropolitan-district-council/leeds,Leeds City Council,31/03/2020,Adults and Health,Services For Older People - 65 And Over,Third Party Payments,Home Care,568,06/03/2020,2003-00492,0.00,255.68,R,Affinity Trust,No
Http://opendatacommunities.org/id/metropolitan-district-council/leeds,Leeds City Council,31/03/2020,Adults and Health,Services For Adults Under 65 Mental/Dis,Third Party Payments,Home Care,568,11/03/2020,2003-00493,0.00,439.45,R,Affinity Trust,No
Http://opendatacommunities.org/id/metropolitan-district-council/leeds,Leeds City Council,31/03/2020,Adults and Health,Services For Older People Under 65 P/Dis,Third Party Payments,Home Care,568,11/03/2020,2003-00494,0.00,857.82,R,Affinity Trust,No
Http://opendatacommunities.org/id/metropolitan-district-council/leeds,Leeds City Council As Accountable Body,31/03/2020,Social Services Pooled Budgets,Jcs For People With Learning Disabilitie,Third Party Payments,Day Centre,564,12/03/2020,2003-00495,0.00,9142.77,R,Affinity Trust,No
Http://opendatacommunities.org/id/metropolitan-district-council/leeds,Leeds City Council,31/03/2020,Adults and Health,Services For Older People - 65 And Over,Third Party Payments,HCAIT Community Support,575,16/03/2020,2003-00496,0.00,575.28,R,Affinity Trust,No
Http://opendatacommunities.org/id/metropolitan-district-council/leeds,Leeds City Council As Accountable Body,31/03/2020,Social Services Pooled Budgets,Jcs For People With Learning Disabilitie,Third Party Payments,Home Care,568,18/03/2020,2003-00497,0.00,319.60,R,Affinity Trust,No
Http://opendatacommunities.org/id/metropolitan-district-council/leeds,Leeds City Council,31/03/2020,Adults and Health,Services For Adults Under 65 Mental/Dis,Third Party Payments,HCAIT Community Support,575,18/03/2020,2003-00498,0.00,336.40,R,Affinity Trust,No
Http://opendatacommunities.org/id/metropolitan-district-council/leeds,Leeds City Council As Accountable Body,31/03/2020,Social Services Pooled Budgets,Jcs For People With Learning Disabilitie,Third Party Payments,Day Centre,564,24/03/2020,2003-00499,0.00,416.64,R,Affinity Trust,No
Http://opendatacommunities.org/id/metropolitan-district-council/leeds,Leeds City Council As Accountable Body,31/03/2020,Social Services Pooled Budgets,Jcs For People With Learning Disabilitie,Third Party Payments,Home Care,568,24/03/2020,2003-00500,0.00,1501.50,R,Affinity Trust,No
Http://opendatacommunities.org/id/metropolitan-district-council/leeds,Leeds City Council As Accountable Body,31/03/2020,Social Services Pooled Budgets,Jcs For People With Learning Disabilitie,Third Party Payments,Home Care,568,24/03/2020,2003-00501,0.00,1404.47,R,Affinity Trust,No
Http://opendatacommunities.org/id/metropolitan-district-council/leeds,Leeds City Council As Accountable Body,31/03/2020,Social Services Pooled Budgets,Jcs For People With Learning Disabilitie,Third Party Payments,Home Care,568,24/03/2020,2003-00502,0.00,639.20,R,Affinity Trust,No
Http://opendatacommunities.org/id/metropolitan-district-council/leeds,Leeds City Council As Accountable Body,31/03/2020,Social Services Pooled Budgets,Jcs For People With Learning Disabilitie,Third Party Payments,Home Care,568,24/03/2020,2003-00503,0.00,647.19,R,Affinity Trust,No
Http://opendatacommunities.org/id/metropolitan-district-council/leeds,Leeds City Council As Accountable Body,31/03/2020,Social Services Pooled Budgets,Jcs For People With Learning Disabilitie,Third Party Payments,Home Care,568,24/03/2020,2003-00504,0.00,408.00,R,Affinity Trust,No
Http://opendatacommunities.org/id/metropolitan-district-council/leeds,Leeds City Council As Accountable Body,31/03/2020,Social Services Pooled Budgets,Jcs For People With Learning Disabilitie,Third Party Payments,Home Care,568,24/03/2020,2003-00505,0.00,2676.65,R,Affinity Trust,No
Http://opendatacommunities.org/id/metropolitan-district-council/leeds,Leeds City Council As Accountable Body,31/03/2020,Social Services Pooled Budgets,Jcs For People With Learning Disabilitie,Third Party Payments,Home Care,568,24/03/2020,2003-00506,0.00,204.32,R,Affinity Trust,No
Http://opendatacommunities.org/id/metropolitan-district-council/leeds,Leeds City Council As Accountable Body,31/03/2020,Social Services Pooled Budgets,Jcs For People With Learning Disabilitie,Third Party Payments,Home Care,568,24/03/2020,2003-00507,0.00,941.92,R,Affinity Trust,No
Http://opendatacommunities.org/id/metropolitan-district-council/leeds,Leeds City Council As Accountable Body,31/03/2020,Social Services Pooled Budgets,Jcs For People With Learning Disabilitie,Third Party Payments,Home Care,568,24/03/2020,2003-00508,0.00,1038.70,R,Affinity Trust,No
Http://opendatacommunities.org/id/metropolitan-district-council/leeds,Leeds City Council As Accountable Body,31/03/2020,Social Services Pooled Budgets,Jcs For People With Learning Disabilitie,Third Party Payments,Home Care,568,24/03/2020,2003-00509,0.00,958.80,R,Affinity Trust,No
Http://opendatacommunities.org/id/metropolitan-district-council/leeds,Leeds City Council As Accountable Body,31/03/2020,Social Services Pooled Budgets,Jcs For People With Learning Disabilitie,Third Party Payments,Home Care,568,24/03/2020,2003-00510,0.00,703.12,R,Affinity Trust,No
Http://opendatacommunities.org/id/metropolitan-district-council/leeds,Leeds City Council As Accountable Body,31/03/2020,Social Services Pooled Budgets,Jcs For People With Learning Disabilitie,Third Party Payments,Home Care,568,24/03/2020,2003-00511,0.00,319.60,R,Affinity Trust,No
Http://opendatacommunities.org/id/metropolitan-district-council/leeds,Leeds City Council As Accountable Body,31/03/2020,Social Services Pooled Budgets,Jcs For People With Learning Disabilitie,Third Party Payments,Home Care,568,24/03/2020,2003-00512,0.00,918.85,R,Affinity Trust,No
Http://opendatacommunities.org/id/metropolitan-district-council/leeds,Leeds City Council As Accountable Body,31/03/2020,Social Services Pooled Budgets,Jcs For People With Learning Disabilitie,Third Party Payments,Home Care,568,24/03/2020,2003-00513,0.00,319.60,R,Affinity Trust,No
Http://opendatacommunities.org/id/metropolitan-district-council/leeds,Leeds City Council As Accountable Body,31/03/2020,Social Services Pooled Budgets,Jcs For People With Learning Disabilitie,Third Party Payments,Home Care,568,24/03/2020,2003-00514,0.00,1584.00,R,Affinity Trust,No
Http://opendatacommunities.org/id/metropolitan-district-council/leeds,Leeds City Council As Accountable Body,31/03/2020,Social Services Pooled Budgets,Jcs For People With Learning Disabilitie,Third Party Payments,Home Care,568,24/03/2020,2003-00515,0.00,958.80,R,Affinity Trust,No
Http://opendatacommunities.org/id/metropolitan-district-council/leeds,Leeds City Council As Accountable Body,31/03/2020,Social Services Pooled Budgets,Jcs For People With Learning Disabilitie,Third Party Payments,Home Care,568,24/03/2020,2003-00516,0.00,1022.72,R,Affinity Trust,No
Http://opendatacommunities.org/id/metropolitan-district-council/leeds,Leeds City Council As Accountable Body,31/03/2020,Social Services Pooled Budgets,Jcs For People With Learning Disabilitie,Third Party Payments,Home Care,568,24/03/2020,2003-00517,0.00,255.68,R,Affinity Trust,No
Http://opendatacommunities.org/id/metropolitan-district-council/leeds,Leeds City Council As Accountable Body,31/03/2020,Social Services Pooled Budgets,Jcs For People With Learning Disabilitie,Third Party Payments,Home Care,568,24/03/2020,2003-00518,0.00,1106.62,R,Affinity Trust,No
Http://opendatacommunities.org/id/metropolitan-district-council/leeds,Leeds City Council As Accountable Body,31/03/2020,Social Services Pooled Budgets,Jcs For People With Learning Disabilitie,Third Party Payments,Home Care,568,24/03/2020,2003-00519,0.00,33.08,R,Affinity Trust,No
Http://opendatacommunities.org/id/metropolitan-district-council/leeds,Leeds City Council As Accountable Body,31/03/2020,Social Services Pooled Budgets,Jcs For People With Learning Disabilitie,Third Party Payments,Home Care,568,24/03/2020,2003-00520,0.00,1980.00,R,Affinity Trust,No
Http://opendatacommunities.org/id/metropolitan-district-council/leeds,Leeds City Council As Accountable Body,31/03/2020,Social Services Pooled Budgets,Jcs For People With Learning Disabilitie,Third Party Payments,Day Centre,564,24/03/2020,2003-00521,0.00,416.64,R,Affinity Trust,No
Http://opendatacommunities.org/id/metropolitan-district-council/leeds,Leeds City Council As Accountable Body,31/03/2020,Social Services Pooled Budgets,Jcs For People With Learning Disabilitie,Third Party Payments,Home Care,568,24/03/2020,2003-00522,0.00,102.16,R,Affinity Trust,No
Http://opendatacommunities.org/id/metropolitan-district-council/leeds,Leeds City Council As Accountable Body,31/03/2020,Social Services Pooled Budgets,Jcs For People With Learning Disabilitie,Third Party Payments,Home Care,568,25/03/2020,2003-00523,0.00,1030.71,R,Affinity Trust,No
Http://opendatacommunities.org/id/metropolitan-district-council/leeds,Leeds City Council As Accountable Body,31/03/2020,Social Services Pooled Budgets,Jcs For People With Learning Disabilitie,Third Party Payments,Home Care,568,26/03/2020,2003-00524,0.00,63.92,R,Affinity Trust,No
Http://opendatacommunities.org/id/metropolitan-district-council/leeds,Leeds City Council As Accountable Body,31/03/2020,Social Services Pooled Budgets,Jcs For People With Learning Disabilitie,Third Party Payments,Home Care,568,27/03/2020,2003-00525,0.00,1440.00,R,Affinity Trust,No
Http://opendatacommunities.org/id/metropolitan-district-council/leeds,Leeds City Council As Accountable Body,31/03/2020,Social Services Pooled Budgets,Jcs For People With Learning Disabilitie,Third Party Payments,Day Centre,564,27/03/2020,2003-00526,0.00,795.33,R,Affinity Trust,No
Http://opendatacommunities.org/id/metropolitan-district-council/leeds,Leeds City Council As Accountable Body,31/03/2020,Social Services Pooled Budgets,Jcs For People With Learning Disabilitie,Third Party Payments,Home Care,568,27/03/2020,2003-00527,0.00,1950.00,R,Affinity Trust,No
Http://opendatacommunities.org/id/metropolitan-district-council/leeds,Leeds City Council As Accountable Body,31/03/2020,Social Services Pooled Budgets,Jcs For People With Learning Disabilitie,Third Party Payments,Home Care,568,27/03/2020,2003-00528,0.00,1560.00,R,Affinity Trust,No
Http://opendatacommunities.org/id/metropolitan-district-council/leeds,Leeds City Council As Accountable Body,31/03/2020,Social Services Pooled Budgets,Jcs For People With Learning Disabilitie,Third Party Payments,Home Care,568,27/03/2020,2003-00529,0.00,2752.80,R,Affinity Trust,No
Http://opendatacommunities.org/id/metropolitan-district-council/leeds,Leeds City Council As Accountable Body,31/03/2020,Social Services Pooled Budgets,Jcs For People With Learning Disabilitie,Third Party Payments,Home Care,568,27/03/2020,2003-00530,0.00,1871.55,R,Affinity Trust,No
Http://opendatacommunities.org/id/metropolitan-district-council/leeds,Leeds City Council As Accountable Body,31/03/2020,Social Services Pooled Budgets,Jcs For People With Learning Disabilitie,Third Party Payments,Home Care,568,27/03/2020,2003-00531,0.00,1980.00,R,Affinity Trust,No
Http://opendatacommunities.org/id/metropolitan-district-council/leeds,Leeds City Council As Accountable Body,31/03/2020,Social Services Pooled Budgets,Jcs For People With Learning Disabilitie,Third Party Payments,Home Care,568,27/03/2020,2003-00532,0.00,2031.48,R,Affinity Trust,No
Http://opendatacommunities.org/id/metropolitan-district-council/leeds,Leeds City Council As Accountable Body,31/03/2020,Social Services Pooled Budgets,Jcs For People With Learning Disabilitie,Transfer Payments,Personal Budgets,627,27/03/2020,2003-00533,0.00,594.06,R,Affinity Trust,No
Http://opendatacommunities.org/id/metropolitan-district-council/leeds,Leeds City Council As Accountable Body,31/03/2020,Social Services Pooled Budgets,Jcs For People With Learning Disabilitie,Third Party Payments,Home Care,568,27/03/2020,2003-00534,0.00,525.72,R,Affinity Trust,No
Http://opendatacommunities.org/id/metropolitan-district-council/leeds,Leeds City Council As Accountable Body,31/03/2020,Social Services Pooled Budgets,Jcs For People With Learning Disabilitie,Third Party Payments,Home Care,568,27/03/2020,2003-00535,0.00,754.20,R,Affinity Trust,No
Http://opendatacommunities.org/id/metropolitan-district-council/leeds,Leeds City Council As Accountable Body,31/03/2020,Social Services Pooled Budgets,Jcs For People With Learning Disabilitie,Third Party Payments,Home Care,568,27/03/2020,2003-00536,0.00,1697.31,R,Affinity Trust,No
Http://opendatacommunities.org/id/metropolitan-district-council/leeds,Leeds City Council As Accountable Body,31/03/2020,Social Services Pooled Budgets,Jcs For People With Learning Disabilitie,Third Party Payments,Home Care,568,27/03/2020,2003-00537,0.00,1005.60,R,Affinity Trust,No
Http://opendatacommunities.org/id/metropolitan-district-council/leeds,Leeds City Council As Accountable Body,31/03/2020,Social Services Pooled Budgets,Jcs For People With Learning Disabilitie,Third Party Payments,Home Care,568,27/03/2020,2003-00538,0.00,360.00,R,Affinity Trust,No
Http://opendatacommunities.org/id/metropolitan-district-council/leeds,Leeds City Council As Accountable Body,31/03/2020,Social Services Pooled Budgets,Jcs For People With Learning Disabilitie,Third Party Payments,Day Centre,564,27/03/2020,2003-00539,0.00,714.78,R,Affinity Trust,No
Http://opendatacommunities.org/id/metropolitan-district-council/leeds,Leeds City Council As Accountable Body,31/03/2020,Social Services Pooled Budgets,Jcs For People With Learning Disabilitie,Third Party Payments,Day Centre,564,27/03/2020,2003-00540,0.00,2346.40,R,Affinity Trust,No
Http://opendatacommunities.org/id/metropolitan-district-council/leeds,Leeds City Council As Accountable Body,31/03/2020,Social Services Pooled Budgets,Jcs For People With Learning Disabilitie,Third Party Payments,Day Centre,564,27/03/2020,2003-00541,0.00,1175.94,R,Affinity Trust,No
Http://opendatacommunities.org/id/metropolitan-district-council/leeds,Leeds City Council,31/03/2020,Adults and Health,Services For Older People Under 65 P/Dis,Third Party Payments,Home Care,568,27/03/2020,2003-00542,0.00,537.32,R,Affinity Trust,No
Http://opendatacommunities.org/id/metropolitan-district-council/leeds,Leeds City Council As Accountable Body,31/03/2020,Social Services Pooled Budgets,Jcs For People With Learning Disabilitie,Third Party Payments,Home Care,568,27/03/2020,2003-00543,0.00,1446.19,R,Affinity Trust,No
Http://opendatacommunities.org/id/metropolitan-district-council/leeds,Leeds City Council As Accountable Body,31/03/2020,Social Services Pooled Budgets,Jcs For People With Learning Disabilitie,Third Party Payments,Home Care,568,27/03/2020,2003-00544,0.00,575.28,R,Affinity Trust,No
Http://opendatacommunities.org/id/metropolitan-district-council/leeds,Leeds City Council As Accountable Body,31/03/2020,Social Services Pooled Budgets,Jcs For People With Learning Disabilitie,Third Party Payments,Home Care,568,27/03/2020,2003-00545,0.00,974.78,R,Affinity Trust,No
Http://opendatacommunities.org/id/metropolitan-district-council/leeds,Leeds City Council As Accountable Body,31/03/2020,Social Services Pooled Budgets,Jcs For People With Learning Disabilitie,Third Party Payments,Day Centre,564,27/03/2020,2003-00546,0.00,416.64,R,Affinity Trust,No
Http://opendatacommunities.org/id/metropolitan-district-council/leeds,Leeds City Council As Accountable Body,31/03/2020,Social Services Pooled Budgets,Jcs For People With Learning Disabilitie,Third Party Payments,Home Care,568,27/03/2020,2003-00547,0.00,1485.00,R,Affinity Trust,No
Http://opendatacommunities.org/id/metropolitan-district-council/leeds,Leeds City Council As Accountable Body,31/03/2020,Social Services Pooled Budgets,Jcs For People With Learning Disabilitie,Third Party Payments,Home Care,568,27/03/2020,2003-00548,0.00,1211.04,R,Affinity Trust,No
Http://opendatacommunities.org/id/metropolitan-district-council/leeds,Leeds City Council As Accountable Body,31/03/2020,Social Services Pooled Budgets,Jcs For People With Learning Disabilitie,Third Party Payments,Home Care,568,27/03/2020,2003-00549,0.00,767.04,R,Affinity Trust,No
Http://opendatacommunities.org/id/metropolitan-district-council/leeds,Leeds City Council As Accountable Body,31/03/2020,Social Services Pooled Budgets,Jcs For People With Learning Disabilitie,Third Party Payments,Home Care,568,27/03/2020,2003-00550,0.00,559.30,R,Affinity Trust,No
Http://opendatacommunities.org/id/metropolitan-district-council/leeds,Leeds City Council As Accountable Body,31/03/2020,Social Services Pooled Budgets,Jcs For People With Learning Disabilitie,Third Party Payments,Home Care,568,27/03/2020,2003-00551,0.00,204.00,R,Affinity Trust,No
Http://opendatacommunities.org/id/metropolitan-district-council/leeds,Leeds City Council As Accountable Body,31/03/2020,Social Services Pooled Budgets,Jcs For People With Learning Disabilitie,Third Party Payments,Home Care,568,27/03/2020,2003-00552,0.00,1086.64,R,Affinity Trust,No
Http://opendatacommunities.org/id/metropolitan-district-council/leeds,Leeds City Council As Accountable Body,31/03/2020,Social Services Pooled Budgets,Jcs For People With Learning Disabilitie,Third Party Payments,Home Care,568,27/03/2020,2003-00553,0.00,2748.56,R,Affinity Trust,No
Http://opendatacommunities.org/id/metropolitan-district-council/leeds,Leeds City Council As Accountable Body,31/03/2020,Social Services Pooled Budgets,Jcs For People With Learning Disabilitie,Third Party Payments,Home Care,568,27/03/2020,2003-00554,0.00,204.32,R,Affinity Trust,No
Http://opendatacommunities.org/id/metropolitan-district-council/leeds,Leeds City Council As Accountable Body,31/03/2020,Social Services Pooled Budgets,Jcs For People With Learning Disabilitie,Third Party Payments,Home Care,568,27/03/2020,2003-00555,0.00,1042.84,R,Affinity Trust,No
Http://opendatacommunities.org/id/metropolitan-district-council/leeds,Leeds City Council As Accountable Body,31/03/2020,Social Services Pooled Budgets,Jcs For People With Learning Disabilitie,Third Party Payments,Home Care,568,27/03/2020,2003-00556,0.00,958.80,R,Affinity Trust,No
Http://opendatacommunities.org/id/metropolitan-district-council/leeds,Leeds City Council As Accountable Body,31/03/2020,Social Services Pooled Budgets,Jcs For People With Learning Disabilitie,Third Party Payments,Home Care,568,27/03/2020,2003-00557,0.00,767.04,R,Affinity Trust,No
Http://opendatacommunities.org/id/metropolitan-district-council/leeds,Leeds City Council As Accountable Body,31/03/2020,Social Services Pooled Budgets,Jcs For People With Learning Disabilitie,Third Party Payments,Home Care,568,27/03/2020,2003-00558,0.00,639.20,R,Affinity Trust,No
Http://opendatacommunities.org/id/metropolitan-district-council/leeds,Leeds City Council,31/03/2020,Adults and Health,Services For Adults Under 65 Mental/Dis,Third Party Payments,Home Care,568,27/03/2020,2003-00559,0.00,599.25,R,Affinity Trust,No
Http://opendatacommunities.org/id/metropolitan-district-council/leeds,Leeds City Council,31/03/2020,Adults and Health,Services For Older People Under 65 P/Dis,Third Party Payments,Home Care,568,27/03/2020,2003-00560,0.00,941.92,R,Affinity Trust,No
Http://opendatacommunities.org/id/metropolitan-district-council/leeds,Leeds City Council,31/03/2020,Adults and Health,Services For Older People - 65 And Over,Third Party Payments,Home Care,568,27/03/2020,2003-00561,0.00,511.36,R,Affinity Trust,No
Http://opendatacommunities.org/id/metropolitan-district-council/leeds,Leeds City Council,31/03/2020,Adults and Health,Services For Older People Under 65 P/Dis,Third Party Payments,Sheltered Accommodation,569,04/03/2020,2003-00562,0.00,7610.40,R,Affinity Trust North Divisional Office,No
Http://opendatacommunities.org/id/metropolitan-district-council/leeds,Leeds City Council As Accountable Body,31/03/2020,Social Services Pooled Budgets,Jcs For People With Learning Disabilitie,Third Party Payments,Sheltered Accommodation,569,04/03/2020,2003-00563,0.00,119573.36,R,Affinity Trust North Divisional Office,No
Http://opendatacommunities.org/id/metropolitan-district-council/leeds,Leeds City Council,31/03/2020,Communities and Environment,Parks And Countryside  ,Transport,External Hire -Occasional,304,24/02/2020,2003-00564,0.00,950.00,R,Afi Uplift,Yes
Http://opendatacommunities.org/id/metropolitan-district-council/leeds,Leeds City Council,31/03/2020,Communities and Environment,Parks And Countryside  ,Transport,External Hire -Occasional,304,24/02/2020,2003-00565,0.00,760.00,R,Afi Uplift,Yes
Http://opendatacommunities.org/id/metropolitan-district-council/leeds,Leeds City Council,31/03/2020,Communities and Environment,Parks And Countryside  ,Transport,External Hire -Occasional,304,24/02/2020,2003-00566,0.00,950.00,R,Afi Uplift,Yes
Http://opendatacommunities.org/id/metropolitan-district-council/leeds,Leeds City Council,31/03/2020,Communities and Environment,Parks And Countryside  ,Transport,External Hire -Occasional,304,24/02/2020,2003-00567,0.00,950.00,R,Afi Uplift,Yes
Http://opendatacommunities.org/id/metropolitan-district-council/leeds,Leeds City Council,31/03/2020,Communities and Environment,Parks And Countryside  ,Transport,External Hire -Occasional,304,24/02/2020,2003-00568,0.00,950.00,R,Afi Uplift,Yes
Http://opendatacommunities.org/id/metropolitan-district-council/leeds,Leeds City Council,31/03/2020,Adults and Health,Other Adult Services,Supplies and Services,Commissioned Services,264,04/03/2020,2003-00569,0.00,7041.00,R,Age Uk Leeds,No
Http://opendatacommunities.org/id/metropolitan-district-council/leeds,Leeds City Council,31/03/2020,Adults and Health,Other Adult Services,Supplies and Services,Commissioned Services,264,04/03/2020,2003-00570,0.00,10042.00,R,Age Uk Leeds,No
Http://opendatacommunities.org/id/metropolitan-district-council/leeds,Leeds City Council,31/03/2020,Adults and Health,Social Services Support Services,Premises,Hire of meeting rooms,143,27/03/2020,2003-00571,0.00,100.00,R,Age Uk Leeds Enterprises,No
Http://opendatacommunities.org/id/metropolitan-district-council/leeds,Leeds City Council,31/03/2020,Insurance,Insurance,Supplies and Services,Insurance Claims,248,31/03/2020,2003-00572,0.00,2510.26,R,Ageas Insurance Ltd,No
Http://opendatacommunities.org/id/metropolitan-district-council/leeds,Leeds City Council,31/03/2020,City Development,Highways,Capital,Construction,3,02/03/2020,2003-00573,0.00,160368.17,C,Aggregate Industries Uk Ltd,No
Http://opendatacommunities.org/id/metropolitan-district-council/leeds,Leeds City Council,31/03/2020,City Development,Highways,Supplies and Services,Corporate Initatives & Savings Targets,250,26/03/2020,2003-00574,0.00,2097.64,R,Aggregate Industries Uk Ltd,No
Http://opendatacommunities.org/id/metropolitan-district-council/leeds,Leeds City Council As Accountable Body,31/03/2020,Social Services Pooled Budgets,Jcs For People With Learning Disabilitie,Third Party Payments,Home Care,568,13/03/2020,2003-00575,0.00,101.53,R,Agh Solutions Ltd,No
Http://opendatacommunities.org/id/metropolitan-district-council/leeds,Leeds City Council,31/03/2020,City Development,Economic Development,Supplies and Services,Consultancy Services,259,13/03/2020,2003-00576,0.00,5000.00,R,Ahead Partnership Ltd,No
Http://opendatacommunities.org/id/metropolitan-district-council/leeds,Leeds City Council,31/03/2020,Communities and Environment,Customer Access,Supplies and Services,Bought In Professional Services,277,02/03/2020,2003-00577,0.00,27.00,R,Ahmed Moustafa Moustafa Mousa,No
Http://opendatacommunities.org/id/metropolitan-district-council/leeds,Leeds City Council,31/03/2020,Communities and Environment,Customer Access,Supplies and Services,Bought In Professional Services,277,02/03/2020,2003-00578,0.00,18.00,R,Ahmed Moustafa Moustafa Mousa,No
Http://opendatacommunities.org/id/metropolitan-district-council/leeds,Leeds City Council,31/03/2020,Communities and Environment,Customer Access,Supplies and Services,Bought In Professional Services,277,02/03/2020,2003-00579,0.00,18.00,R,Ahmed Moustafa Moustafa Mousa,No
Http://opendatacommunities.org/id/metropolitan-district-council/leeds,Leeds City Council,31/03/2020,Communities and Environment,Customer Access,Supplies and Services,Bought In Professional Services,277,02/03/2020,2003-00580,0.00,36.00,R,Ahmed Moustafa Moustafa Mousa,No
Http://opendatacommunities.org/id/metropolitan-district-council/leeds,Leeds City Council,31/03/2020,Communities and Environment,Customer Access,Supplies and Services,Bought In Professional Services,277,02/03/2020,2003-00581,0.00,31.50,R,Ahmed Moustafa Moustafa Mousa,No
Http://opendatacommunities.org/id/metropolitan-district-council/leeds,Leeds City Council,31/03/2020,Communities and Environment,Customer Access,Supplies and Services,Bought In Professional Services,277,06/03/2020,2003-00582,0.00,22.50,R,Ahmed Moustafa Moustafa Mousa,No
Http://opendatacommunities.org/id/metropolitan-district-council/leeds,Leeds City Council,31/03/2020,Communities and Environment,Customer Access,Supplies and Services,Bought In Professional Services,277,06/03/2020,2003-00583,0.00,18.00,R,Ahmed Moustafa Moustafa Mousa,No
Http://opendatacommunities.org/id/metropolitan-district-council/leeds,Leeds City Council,31/03/2020,Communities and Environment,Customer Access,Supplies and Services,Bought In Professional Services,277,06/03/2020,2003-00584,0.00,18.00,R,Ahmed Moustafa Moustafa Mousa,No
Http://opendatacommunities.org/id/metropolitan-district-council/leeds,Leeds City Council,31/03/2020,Communities and Environment,Customer Access,Supplies and Services,Bought In Professional Services,277,06/03/2020,2003-00585,0.00,31.50,R,Ahmed Moustafa Moustafa Mousa,No
Http://opendatacommunities.org/id/metropolitan-district-council/leeds,Leeds City Council,31/03/2020,Communities and Environment,Customer Access,Supplies and Services,Bought In Professional Services,277,06/03/2020,2003-00586,0.00,49.50,R,Ahmed Moustafa Moustafa Mousa,No
Http://opendatacommunities.org/id/metropolitan-district-council/leeds,Leeds City Council,31/03/2020,Communities and Environment,Customer Access,Supplies and Services,Bought In Professional Services,277,11/03/2020,2003-00587,0.00,28.20,R,Ahmed Moustafa Moustafa Mousa,No
Http://opendatacommunities.org/id/metropolitan-district-council/leeds,Leeds City Council,31/03/2020,Communities and Environment,Customer Access,Supplies and Services,Bought In Professional Services,277,19/03/2020,2003-00588,0.00,22.70,R,Ahmed Moustafa Moustafa Mousa,No
Http://opendatacommunities.org/id/metropolitan-district-council/leeds,Leeds City Council,31/03/2020,Communities and Environment,Customer Access,Supplies and Services,Bought In Professional Services,277,19/03/2020,2003-00589,0.00,31.50,R,Ahmed Moustafa Moustafa Mousa,No
Http://opendatacommunities.org/id/metropolitan-district-council/leeds,Leeds City Council As Accountable Body,31/03/2020,Social Services Pooled Budgets,Leeds Community Equip Store Pooled Budgt,Supplies and Services,Other Equipment,203,19/03/2020,2003-00590,0.00,-715.00,R,Aidapt Bathrooms Ltd,No
Http://opendatacommunities.org/id/metropolitan-district-council/leeds,Leeds City Council As Accountable Body,31/03/2020,Social Services Pooled Budgets,Leeds Community Equip Store Pooled Budgt,Supplies and Services,Other Equipment,203,19/03/2020,2003-00591,0.00,-357.50,R,Aidapt Bathrooms Ltd,No
Http://opendatacommunities.org/id/metropolitan-district-council/leeds,Leeds City Council As Accountable Body,31/03/2020,Social Services Pooled Budgets,Leeds Community Equip Store Pooled Budgt,Supplies and Services,Other Equipment,203,19/03/2020,2003-00592,0.00,773.70,R,Aidapt Bathrooms Ltd,No
Http://opendatacommunities.org/id/metropolitan-district-council/leeds,Leeds City Council As Accountable Body,31/03/2020,Social Services Pooled Budgets,Leeds Community Equip Store Pooled Budgt,Supplies and Services,Other Equipment,203,19/03/2020,2003-00593,0.00,108.30,R,Aidapt Bathrooms Ltd,No
Http://opendatacommunities.org/id/metropolitan-district-council/leeds,Leeds City Council As Accountable Body,31/03/2020,Social Services Pooled Budgets,Leeds Community Equip Store Pooled Budgt,Supplies and Services,Other Equipment,203,19/03/2020,2003-00594,0.00,2251.75,R,Aidapt Bathrooms Ltd,No
Http://opendatacommunities.org/id/metropolitan-district-council/leeds,Leeds City Council As Accountable Body,31/03/2020,Social Services Pooled Budgets,Leeds Community Equip Store Pooled Budgt,Supplies and Services,Other Equipment,203,30/03/2020,2003-00595,0.00,1890.20,R,Aidapt Bathrooms Ltd,No
Http://opendatacommunities.org/id/metropolitan-district-council/leeds,Leeds City Council As Accountable Body,31/03/2020,Social Services Pooled Budgets,Leeds Community Equip Store Pooled Budgt,Supplies and Services,Other Equipment,203,30/03/2020,2003-00596,0.00,799.60,R,Aidapt Bathrooms Ltd,No
Http://opendatacommunities.org/id/metropolitan-district-council/leeds,Leeds City Council As Accountable Body,31/03/2020,Social Services Pooled Budgets,Leeds Community Equip Store Pooled Budgt,Supplies and Services,Other Equipment,203,30/03/2020,2003-00597,0.00,1760.00,R,Aidapt Bathrooms Ltd,No
Http://opendatacommunities.org/id/metropolitan-district-council/leeds,Leeds City Council As Accountable Body,31/03/2020,Social Services Pooled Budgets,Leeds Community Equip Store Pooled Budgt,Supplies and Services,Other Equipment,203,30/03/2020,2003-00598,0.00,2335.19,R,Aidapt Bathrooms Ltd,No
Http://opendatacommunities.org/id/metropolitan-district-council/leeds,Leeds City Council As Accountable Body,31/03/2020,Social Services Pooled Budgets,Leeds Community Equip Store Pooled Budgt,Supplies and Services,Other Equipment,203,30/03/2020,2003-00599,0.00,357.50,R,Aidapt Bathrooms Ltd,No
Http://opendatacommunities.org/id/metropolitan-district-council/leeds,Leeds City Council As Accountable Body,31/03/2020,Social Services Pooled Budgets,Leeds Community Equip Store Pooled Budgt,Supplies and Services,Other Equipment,203,30/03/2020,2003-00600,0.00,1430.00,R,Aidapt Bathrooms Ltd,No
Http://opendatacommunities.org/id/metropolitan-district-council/leeds,Leeds City Council As Accountable Body,31/03/2020,Social Services Pooled Budgets,Leeds Community Equip Store Pooled Budgt,Supplies and Services,Other Equipment,203,30/03/2020,2003-00601,0.00,71.50,R,Aidapt Bathrooms Ltd,No
Http://opendatacommunities.org/id/metropolitan-district-council/leeds,Leeds City Council,31/03/2020,Resources and Housing,Commercial Services  ,Supplies and Services,Operational Materials,205,19/02/2020,2003-00602,0.00,122.31,R,Air Force Pneumatics And,Yes
Http://opendatacommunities.org/id/metropolitan-district-council/leeds,Leeds City Council,31/03/2020,Communities and Environment,Environmental Health,Supplies and Services,Other Hired And Contracted Services,265,30/03/2020,2003-00603,0.00,10.45,R,Air Liquide Uk,No
Http://opendatacommunities.org/id/metropolitan-district-council/leeds,Leeds City Council,31/03/2020,Communities and Environment,Environmental Health,Supplies and Services,Other Hired And Contracted Services,265,30/03/2020,2003-00604,0.00,10.45,R,Air Liquide Uk,No
Http://opendatacommunities.org/id/metropolitan-district-council/leeds,Leeds City Council,31/03/2020,Communities and Environment,Environmental Health,Supplies and Services,Other Hired And Contracted Services,265,30/03/2020,2003-00605,0.00,15.93,R,Air Liquide Uk,No
Http://opendatacommunities.org/id/metropolitan-district-council/leeds,Leeds City Council,31/03/2020,Communities and Environment,Environmental Health,Supplies and Services,Other Hired And Contracted Services,265,30/03/2020,2003-00606,0.00,73.15,R,Air Liquide Uk,No
Http://opendatacommunities.org/id/metropolitan-district-council/leeds,Leeds City Council,31/03/2020,Children and Families,Social Care  ,Third Party Payments,Section 17,551,19/02/2020,2003-00607,0.00,278.31,R,Airbnb * Hmc9kmf5jb,Yes
Http://opendatacommunities.org/id/metropolitan-district-council/leeds,Leeds City Council,31/03/2020,Resources and Housing,Commercial Services  ,Supplies and Services,Operational Materials,205,25/02/2020,2003-00608,0.00,38.98,R,Aire Bearings,Yes
Http://opendatacommunities.org/id/metropolitan-district-council/leeds,Leeds City Council,31/03/2020,Communities and Environment,Parks and Countryside,Supplies and Services,Other Hired And Contracted Services,265,03/03/2020,2003-00609,0.00,9245.00,R,Aire Valley Tree Services Ltd,No
Http://opendatacommunities.org/id/metropolitan-district-council/leeds,Leeds City Council,31/03/2020,Communities and Environment,Parks and Countryside,Supplies and Services,Other Hired And Contracted Services,265,25/03/2020,2003-00610,0.00,895.00,R,Aire Valley Tree Services Ltd,No
Http://opendatacommunities.org/id/metropolitan-district-council/leeds,Leeds City Council,31/03/2020,Adults and Health,Services For Older People - 65 And Over,Third Party Payments,Residential Care Dementia,571,04/03/2020,2003-00611,0.00,47456.82,R,Aire View Residential Home,No
Http://opendatacommunities.org/id/metropolitan-district-council/leeds,Leeds City Council,31/03/2020,Adults and Health,Services For Older People - 65 And Over,Third Party Payments,Residential,580,04/03/2020,2003-00612,0.00,50035.96,R,Aire View Residential Home,No
Http://opendatacommunities.org/id/metropolitan-district-council/leeds,Leeds City Council,31/03/2020,Strategic Accounts,Miscellaneous,Supplies and Services,Non-Recurring Grants,227,02/03/2020,2003-00613,0.00,140.00,R,Aireborough Civic Society,No
Http://opendatacommunities.org/id/metropolitan-district-council/leeds,Leeds City Council,31/03/2020,Resources and Housing,Human Resources,Employees,Occupational Health,85,25/03/2020,2003-00614,0.00,115.00,R,Aireborough Family Practice,No
Http://opendatacommunities.org/id/metropolitan-district-council/leeds,Leeds City Council,31/03/2020,City Development,Recreation  ,Supplies and Services,Hospitality,255,14/02/2020,2003-00615,0.00,2.04,R,Aireborough Leisure Centr,Yes
Http://opendatacommunities.org/id/metropolitan-district-council/leeds,Leeds City Council,31/03/2020,Adults and Health,Services For Older People - 65 And Over,Third Party Payments,Residential Care Dementia,571,04/03/2020,2003-00616,0.00,1471.16,R,Airedale Care Home,No
Http://opendatacommunities.org/id/metropolitan-district-council/leeds,Leeds City Council,31/03/2020,Adults and Health,Services For Older People - 65 And Over,Third Party Payments,Residential,580,04/03/2020,2003-00617,0.00,17827.04,R,Airedale Care Home,No
Http://opendatacommunities.org/id/metropolitan-district-council/leeds,Leeds City Council,31/03/2020,Resources and Housing,Leeds Building Services,Supplies and Services,Other Hired And Contracted Services,265,12/03/2020,2003-00618,0.00,5224.00,R,Airedale Catering Equipment Ltd,No
Http://opendatacommunities.org/id/metropolitan-district-council/leeds,Leeds City Council,31/03/2020,Resources and Housing,Leeds Building Services,Supplies and Services,Other Hired And Contracted Services,265,16/03/2020,2003-00619,0.00,2880.00,R,Airedale Catering Equipment Ltd,No
Http://opendatacommunities.org/id/metropolitan-district-council/leeds,Leeds City Council,31/03/2020,Resources and Housing,Commercial Services,Supplies and Services,Operational Furniture And Equipment,203,18/03/2020,2003-00620,0.00,3048.00,R,Airedale Catering Equipment Ltd,No
Http://opendatacommunities.org/id/metropolitan-district-council/leeds,Leeds City Council,31/03/2020,Resources and Housing,Leeds Building Services,Supplies and Services,Other Hired And Contracted Services,265,18/03/2020,2003-00621,0.00,1105.00,R,Airedale Catering Equipment Ltd,No
Http://opendatacommunities.org/id/metropolitan-district-council/leeds,Leeds City Council,31/03/2020,Resources and Housing,Commercial Services,Premises,Fixtures & Fittings,131,25/03/2020,2003-00622,0.00,19133.00,R,Airedale Catering Equipment Ltd,No
Http://opendatacommunities.org/id/metropolitan-district-council/leeds,Leeds City Council,31/03/2020,Adults and Health,Assessment And Care Management,Employees,Training Costs,71,11/03/2020,2003-00623,0.00,90.00,R,Airedale Community Trading (Act) Ltd,No
Http://opendatacommunities.org/id/metropolitan-district-council/leeds,Leeds City Council,31/03/2020,Children and Families,Social Care  ,Transport,Public Transport Expenses,310,24/02/2020,2003-00624,0.00,12.95,R,Airpay Global Limited,Yes
Http://opendatacommunities.org/id/metropolitan-district-council/leeds,Leeds City Council,31/03/2020,Adults and Health,Services For Adults Under 65 Mental/Dis,Third Party Payments,Services Provided By Other NHS Bodies,522,13/03/2020,2003-00625,0.00,243.80,R,Ait Mitra Limited,No
Http://opendatacommunities.org/id/metropolitan-district-council/leeds,Leeds City Council,31/03/2020,Adults and Health,Services For Adults Under 65 Mental/Dis,Third Party Payments,Services Provided By Other NHS Bodies,522,13/03/2020,2003-00626,0.00,239.50,R,Ait Mitra Limited,No
Http://opendatacommunities.org/id/metropolitan-district-council/leeds,Leeds City Council,31/03/2020,Adults and Health,Services For Adults Under 65 Mental/Dis,Third Party Payments,Services Provided By Other NHS Bodies,522,13/03/2020,2003-00627,0.00,175.00,R,Ait Mitra Limited,No
Http://opendatacommunities.org/id/metropolitan-district-council/leeds,Leeds City Council,31/03/2020,Adults and Health,Services For Adults Under 65 Mental/Dis,Third Party Payments,Services Provided By Other NHS Bodies,522,13/03/2020,2003-00628,0.00,175.00,R,Ait Mitra Limited,No
Http://opendatacommunities.org/id/metropolitan-district-council/leeds,Leeds City Council,31/03/2020,Adults and Health,Services For Adults Under 65 Mental/Dis,Third Party Payments,Services Provided By Other NHS Bodies,522,13/03/2020,2003-00629,0.00,175.00,R,Ait Mitra Limited,No
Http://opendatacommunities.org/id/metropolitan-district-council/leeds,Leeds City Council,31/03/2020,Adults and Health,Services For Adults Under 65 Mental/Dis,Third Party Payments,Services Provided By Other NHS Bodies,522,13/03/2020,2003-00630,0.00,175.00,R,Ait Mitra Limited,No
Http://opendatacommunities.org/id/metropolitan-district-council/leeds,Leeds City Council,31/03/2020,Adults and Health,Services For Adults Under 65 Mental/Dis,Third Party Payments,Services Provided By Other NHS Bodies,522,13/03/2020,2003-00631,0.00,175.00,R,Ait Mitra Limited,No
Http://opendatacommunities.org/id/metropolitan-district-council/leeds,Leeds City Council,31/03/2020,Adults and Health,Services For Adults Under 65 Mental/Dis,Third Party Payments,Services Provided By Other NHS Bodies,522,13/03/2020,2003-00632,0.00,175.00,R,Ait Mitra Limited,No
Http://opendatacommunities.org/id/metropolitan-district-council/leeds,Leeds City Council,31/03/2020,Adults and Health,Services For Adults Under 65 Mental/Dis,Third Party Payments,Services Provided By Other NHS Bodies,522,13/03/2020,2003-00633,0.00,175.00,R,Ait Mitra Limited,No
Http://opendatacommunities.org/id/metropolitan-district-council/leeds,Leeds City Council,31/03/2020,Adults and Health,Services For Adults Under 65 Mental/Dis,Third Party Payments,Services Provided By Other NHS Bodies,522,13/03/2020,2003-00634,0.00,175.00,R,Ait Mitra Limited,No
Http://opendatacommunities.org/id/metropolitan-district-council/leeds,Leeds City Council,31/03/2020,Adults and Health,Services For Adults Under 65 Mental/Dis,Third Party Payments,Services Provided By Other NHS Bodies,522,13/03/2020,2003-00635,0.00,175.00,R,Ait Mitra Limited,No
Http://opendatacommunities.org/id/metropolitan-district-council/leeds,Leeds City Council,31/03/2020,Adults and Health,Services For Adults Under 65 Mental/Dis,Third Party Payments,Services Provided By Other NHS Bodies,522,13/03/2020,2003-00636,0.00,175.00,R,Ait Mitra Limited,No
Http://opendatacommunities.org/id/metropolitan-district-council/leeds,Leeds City Council,31/03/2020,Adults and Health,Services For Adults Under 65 Mental/Dis,Third Party Payments,Services Provided By Other NHS Bodies,522,13/03/2020,2003-00637,0.00,175.00,R,Ait Mitra Limited,No
Http://opendatacommunities.org/id/metropolitan-district-council/leeds,Leeds City Council,31/03/2020,Adults and Health,Services For Adults Under 65 Mental/Dis,Third Party Payments,Services Provided By Other NHS Bodies,522,20/03/2020,2003-00638,0.00,239.50,R,Ait Mitra Limited,No
Http://opendatacommunities.org/id/metropolitan-district-council/leeds,Leeds City Council,31/03/2020,Adults and Health,Services For Adults Under 65 Mental/Dis,Third Party Payments,Services Provided By Other NHS Bodies,522,20/03/2020,2003-00639,0.00,175.00,R,Ait Mitra Limited,No
Http://opendatacommunities.org/id/metropolitan-district-council/leeds,Leeds City Council,31/03/2020,Adults and Health,Services For Adults Under 65 Mental/Dis,Third Party Payments,Services Provided By Other NHS Bodies,522,20/03/2020,2003-00640,0.00,175.00,R,Ait Mitra Limited,No
Http://opendatacommunities.org/id/metropolitan-district-council/leeds,Leeds City Council,31/03/2020,Adults and Health,Services For Adults Under 65 Mental/Dis,Third Party Payments,Services Provided By Other NHS Bodies,522,20/03/2020,2003-00641,0.00,175.00,R,Ait Mitra Limited,No
Http://opendatacommunities.org/id/metropolitan-district-council/leeds,Leeds City Council,31/03/2020,Adults and Health,Services For Adults Under 65 Mental/Dis,Third Party Payments,Services Provided By Other NHS Bodies,522,20/03/2020,2003-00642,0.00,175.00,R,Ait Mitra Limited,No
Http://opendatacommunities.org/id/metropolitan-district-council/leeds,Leeds City Council,31/03/2020,Adults and Health,Services For Adults Under 65 Mental/Dis,Third Party Payments,Services Provided By Other NHS Bodies,522,20/03/2020,2003-00643,0.00,175.00,R,Ait Mitra Limited,No
Http://opendatacommunities.org/id/metropolitan-district-council/leeds,Leeds City Council,31/03/2020,Adults and Health,Services For Adults Under 65 Mental/Dis,Third Party Payments,Services Provided By Other NHS Bodies,522,20/03/2020,2003-00644,0.00,175.00,R,Ait Mitra Limited,No
Http://opendatacommunities.org/id/metropolitan-district-council/leeds,Leeds City Council,31/03/2020,Adults and Health,Services For Adults Under 65 Mental/Dis,Third Party Payments,Services Provided By Other NHS Bodies,522,20/03/2020,2003-00645,0.00,175.00,R,Ait Mitra Limited,No
Http://opendatacommunities.org/id/metropolitan-district-council/leeds,Leeds City Council,31/03/2020,Adults and Health,Services For Adults Under 65 Mental/Dis,Third Party Payments,Services Provided By Other NHS Bodies,522,20/03/2020,2003-00646,0.00,175.00,R,Ait Mitra Limited,No
Http://opendatacommunities.org/id/metropolitan-district-council/leeds,Leeds City Council,31/03/2020,Adults and Health,Services For Adults Under 65 Mental/Dis,Third Party Payments,Services Provided By Other NHS Bodies,522,20/03/2020,2003-00647,0.00,175.00,R,Ait Mitra Limited,No
Http://opendatacommunities.org/id/metropolitan-district-council/leeds,Leeds City Council,31/03/2020,Adults and Health,Services For Adults Under 65 Mental/Dis,Third Party Payments,Services Provided By Other NHS Bodies,522,20/03/2020,2003-00648,0.00,175.00,R,Ait Mitra Limited,No
Http://opendatacommunities.org/id/metropolitan-district-council/leeds,Leeds City Council As Accountable Body,31/03/2020,Social Services Pooled Budgets,Jcs For People With Learning Disabilitie,Third Party Payments,Residential,580,04/03/2020,2003-00649,0.00,6464.04,R,Aitch Care Homes,No
Http://opendatacommunities.org/id/metropolitan-district-council/leeds,Leeds City Council,31/03/2020,Communities and Environment,Parks And Countryside  ,Supplies and Services,Operational Materials,205,10/02/2020,2003-00650,0.00,448.00,R,Aitkens Sportsturf Limite,Yes
Http://opendatacommunities.org/id/metropolitan-district-council/leeds,Leeds City Council,31/03/2020,Communities and Environment,Parks and Countryside,Supplies and Services,Operational Materials,205,06/03/2020,2003-00651,0.00,692.50,R,Aitkens Sportsturf Ltd,No
Http://opendatacommunities.org/id/metropolitan-district-council/leeds,Leeds City Council,31/03/2020,Resources and Housing,Commercial Services,Supplies and Services,Other Hired And Contracted Services,265,11/03/2020,2003-00652,0.00,525.00,R,REDACTED PERSONAL DATA,No
Http://opendatacommunities.org/id/metropolitan-district-council/leeds,Leeds City Council,31/03/2020,Resources and Housing,Commercial Services,Supplies and Services,Other Hired And Contracted Services,265,11/03/2020,2003-00653,0.00,675.00,R,REDACTED PERSONAL DATA,No
Http://opendatacommunities.org/id/metropolitan-district-council/leeds,Leeds City Council,31/03/2020,Resources and Housing,Leeds Building Services,Supplies and Services,Operational Furniture And Equipment,203,04/03/2020,2003-00654,0.00,36.90,R,Ajm Fixings & Power Tools Ltd,No
Http://opendatacommunities.org/id/metropolitan-district-council/leeds,Leeds City Council,31/03/2020,Resources and Housing,Leeds Building Services,Supplies and Services,Operational Furniture And Equipment,203,06/03/2020,2003-00655,0.00,314.27,R,Ajm Fixings & Power Tools Ltd,No
Http://opendatacommunities.org/id/metropolitan-district-council/leeds,Leeds City Council,31/03/2020,Resources and Housing,Leeds Building Services,Supplies and Services,Operational Materials,205,06/03/2020,2003-00656,0.00,60.22,R,Ajm Fixings & Power Tools Ltd,No
Http://opendatacommunities.org/id/metropolitan-district-council/leeds,Leeds City Council,31/03/2020,Resources and Housing,Leeds Building Services,Supplies and Services,Operational Furniture And Equipment,203,11/03/2020,2003-00657,0.00,978.00,R,Ajm Fixings & Power Tools Ltd,No
Http://opendatacommunities.org/id/metropolitan-district-council/leeds,Leeds City Council,31/03/2020,Resources and Housing,Leeds Building Services,Supplies and Services,Operational Furniture And Equipment,203,20/03/2020,2003-00658,0.00,428.35,R,Ajm Fixings & Power Tools Ltd,No
Http://opendatacommunities.org/id/metropolitan-district-council/leeds,Leeds City Council,31/03/2020,Resources and Housing,Leeds Building Services,Supplies and Services,Stores - Central And Other Depots,5,20/03/2020,2003-00659,0.00,487.25,R,Ajm Fixings & Power Tools Ltd,No
Http://opendatacommunities.org/id/metropolitan-district-council/leeds,Leeds City Council,31/03/2020,Resources and Housing,Leeds Building Services,Supplies and Services,Operational Materials,205,20/03/2020,2003-00660,0.00,650.62,R,Ajm Fixings & Power Tools Ltd,No
Http://opendatacommunities.org/id/metropolitan-district-council/leeds,Leeds City Council,31/03/2020,Resources and Housing,Leeds Building Services,Supplies and Services,Operational Furniture And Equipment,203,20/03/2020,2003-00661,0.00,1410.82,R,Ajm Fixings & Power Tools Ltd,No
Http://opendatacommunities.org/id/metropolitan-district-council/leeds,Leeds City Council,31/03/2020,Resources and Housing,Leeds Building Services,Supplies and Services,Operational Furniture And Equipment,203,20/03/2020,2003-00662,0.00,936.00,R,Ajm Fixings & Power Tools Ltd,No
Http://opendatacommunities.org/id/metropolitan-district-council/leeds,Leeds City Council,31/03/2020,Resources and Housing,Leeds Building Services,Supplies and Services,Operational Furniture And Equipment,203,20/03/2020,2003-00663,0.00,471.99,R,Ajm Fixings & Power Tools Ltd,No
Http://opendatacommunities.org/id/metropolitan-district-council/leeds,Leeds City Council,31/03/2020,Resources and Housing,Leeds Building Services,Supplies and Services,Stores - Central And Other Depots,5,20/03/2020,2003-00664,0.00,913.30,R,Ajm Fixings & Power Tools Ltd,No
Http://opendatacommunities.org/id/metropolitan-district-council/leeds,Leeds City Council,31/03/2020,Resources and Housing,Leeds Building Services,Supplies and Services,Operational Furniture And Equipment,203,26/03/2020,2003-00665,0.00,13.00,R,Ajm Fixings & Power Tools Ltd,No
Http://opendatacommunities.org/id/metropolitan-district-council/leeds,Leeds City Council,31/03/2020,Resources and Housing,Leeds Building Services,Supplies and Services,Operational Furniture And Equipment,203,26/03/2020,2003-00666,0.00,1502.00,R,Ajm Fixings & Power Tools Ltd,No
Http://opendatacommunities.org/id/metropolitan-district-council/leeds,Leeds City Council,31/03/2020,Resources and Housing,Leeds Building Services,Supplies and Services,Operational Furniture And Equipment,203,26/03/2020,2003-00667,0.00,928.00,R,Ajm Fixings & Power Tools Ltd,No
Http://opendatacommunities.org/id/metropolitan-district-council/leeds,Leeds City Council,31/03/2020,Resources and Housing,Leeds Building Services,Supplies and Services,Other Hired And Contracted Services,265,27/03/2020,2003-00668,0.00,211.00,R,Ajm Fixings & Power Tools Ltd,No
Http://opendatacommunities.org/id/metropolitan-district-council/leeds,Leeds City Council,31/03/2020,Resources and Housing,Strategic Housing Partnerships,Capital,Construction,3,05/03/2020,2003-00669,0.00,15000.00,C,Akr Construction Ltd,No
Http://opendatacommunities.org/id/metropolitan-district-council/leeds,Leeds City Council,31/03/2020,Resources and Housing,Strategic Housing Partnerships,Capital,Construction,3,19/03/2020,2003-00670,0.00,7500.00,C,Akr Construction Ltd,No
Http://opendatacommunities.org/id/metropolitan-district-council/leeds,Leeds City Council,31/03/2020,Resources and Housing,Strategic Housing Partnerships,Capital,Construction,3,19/03/2020,2003-00671,0.00,4000.00,C,Akr Construction Ltd,No
Http://opendatacommunities.org/id/metropolitan-district-council/leeds,Leeds City Council,31/03/2020,Resources and Housing,Strategic Housing Partnerships,Capital,Construction,3,27/03/2020,2003-00672,0.00,11500.00,C,Akr Construction Ltd,No
Http://opendatacommunities.org/id/metropolitan-district-council/leeds,Leeds City Council,31/03/2020,Resources and Housing,Commercial Services,Supplies and Services,Other Hired And Contracted Services,265,13/03/2020,2003-00673,0.00,291.00,R,Akua Uk Ltd,No
Http://opendatacommunities.org/id/metropolitan-district-council/leeds,Leeds City Council,31/03/2020,Communities and Environment,Waste Management,Employees,Occupational Health,85,31/03/2020,2003-00674,0.00,85.00,R,REDACTED PERSONAL DATA,No
Http://opendatacommunities.org/id/metropolitan-district-council/leeds,Leeds City Council,31/03/2020,Children and Families,Social Care,Third Party Payments,Services Rendered By Other Organisations,511,09/03/2020,2003-00675,0.00,17100.00,R,Alasdair Cant & Associates Ltd,No
Http://opendatacommunities.org/id/metropolitan-district-council/leeds,Leeds City Council,31/03/2020,Communities and Environment,Parks And Countryside  ,Supplies and Services,Operational Materials,205,05/02/2020,2003-00676,0.00,206.97,R,Alba Trees Plc,Yes
Http://opendatacommunities.org/id/metropolitan-district-council/leeds,Leeds City Council,31/03/2020,Adults and Health,Services For Older People - 65 And Over,Third Party Payments,Residential Care Dementia,571,04/03/2020,2003-00677,0.00,1141.68,R,Albemarle,No
Http://opendatacommunities.org/id/metropolitan-district-council/leeds,Leeds City Council,31/03/2020,Resources and Housing,Commercial Services,Transport,Vehicle Spares,345,27/03/2020,2003-00678,0.00,66.67,R,Albert Jagger Limited,No
Http://opendatacommunities.org/id/metropolitan-district-council/leeds,Leeds City Council,31/03/2020,Adults and Health,Services For Older People - 65 And Over,Third Party Payments,Residential,580,04/03/2020,2003-00679,0.00,8800.94,R,Albion Court Care Home,No
Http://opendatacommunities.org/id/metropolitan-district-council/leeds,Leeds City Council,31/03/2020,City Development,Economic Development,Supplies and Services,Memberships,226,17/03/2020,2003-00680,0.00,12828.00,R,Alcium Software Ltd,No
Http://opendatacommunities.org/id/metropolitan-district-council/leeds,Leeds City Council,31/03/2020,Communities and Environment,Communities,Supplies and Services,Computer Software & Equipment,214,24/03/2020,2003-00681,0.00,1228.33,R,Alcium Software Ltd,No
Http://opendatacommunities.org/id/metropolitan-district-council/leeds,Leeds City Council,31/03/2020,City Development,Highways,Supplies and Services,Other Hired And Contracted Services,265,16/03/2020,2003-00682,0.00,1950.00,R,Aldercross,No
Http://opendatacommunities.org/id/metropolitan-district-council/leeds,Leeds City Council,31/03/2020,Communities and Environment,Communities  ,Supplies and Services,Operational Materials,205,12/02/2020,2003-00683,0.00,2.58,R,Aldi,Yes
Http://opendatacommunities.org/id/metropolitan-district-council/leeds,Leeds City Council,31/03/2020,Communities and Environment,Elections  Licensing And Registration  ,Supplies and Services,Office Consumables,210,26/02/2020,2003-00684,0.00,8.93,R,Aldi,Yes
Http://opendatacommunities.org/id/metropolitan-district-council/leeds,Leeds City Council,31/03/2020,Children and Families,Social Care  ,Supplies and Services,Food & Drink,231,04/02/2020,2003-00685,0.00,39.11,R,Aldi 71 779,Yes
Http://opendatacommunities.org/id/metropolitan-district-council/leeds,Leeds City Council,31/03/2020,Resources and Housing,Commercial Services  ,Supplies and Services,Food & Drink,231,15/02/2020,2003-00686,0.00,3.72,R,Aldi 779-90,Yes
Http://opendatacommunities.org/id/metropolitan-district-council/leeds,Leeds City Council,31/03/2020,Children and Families,Social Care  ,Supplies and Services,General Amenity For Clients/Residents,285,24/02/2020,2003-00687,0.00,2.48,R,Aldi 8 779,Yes
Http://opendatacommunities.org/id/metropolitan-district-council/leeds,Leeds City Council,31/03/2020,Children and Families,Social Care  ,Supplies and Services,Food & Drink,231,02/02/2020,2003-00688,0.00,93.71,R,Aldi 85 779,Yes
Http://opendatacommunities.org/id/metropolitan-district-council/leeds,Leeds City Council,31/03/2020,Children and Families,Social Care  ,Supplies and Services,Food & Drink,231,10/02/2020,2003-00689,0.00,77.61,R,Aldi 85 779,Yes
Http://opendatacommunities.org/id/metropolitan-district-council/leeds,Leeds City Council,31/03/2020,Children and Families,Social Care  ,Supplies and Services,Food & Drink,231,14/02/2020,2003-00690,0.00,45.28,R,Aldi 85 779,Yes
Http://opendatacommunities.org/id/metropolitan-district-council/leeds,Leeds City Council,31/03/2020,Children and Families,Social Care  ,Supplies and Services,Food & Drink,231,17/02/2020,2003-00691,0.00,98.12,R,Aldi 85 779,Yes
Http://opendatacommunities.org/id/metropolitan-district-council/leeds,Leeds City Council,31/03/2020,Children and Families,Social Care  ,Supplies and Services,Food & Drink,231,19/02/2020,2003-00692,0.00,5.00,R,Aldi 85 779,Yes
Http://opendatacommunities.org/id/metropolitan-district-council/leeds,Leeds City Council,31/03/2020,Children and Families,Social Care  ,Supplies and Services,Food & Drink,231,24/02/2020,2003-00693,0.00,87.34,R,Aldi 85 779,Yes
Http://opendatacommunities.org/id/metropolitan-district-council/leeds,Leeds City Council,31/03/2020,Children and Families,Social Care  ,Supplies and Services,Food & Drink,231,07/02/2020,2003-00694,0.00,97.55,R,Aldi 88 779,Yes
Http://opendatacommunities.org/id/metropolitan-district-council/leeds,Leeds City Council,31/03/2020,Children and Families,Social Care  ,Supplies and Services,Food & Drink,231,13/02/2020,2003-00695,0.00,25.16,R,Aldi 88 779,Yes
Http://opendatacommunities.org/id/metropolitan-district-council/leeds,Leeds City Council,31/03/2020,Children and Families,Social Care  ,Supplies and Services,Food & Drink,231,15/02/2020,2003-00696,0.00,79.19,R,Aldi 88 779,Yes
Http://opendatacommunities.org/id/metropolitan-district-council/leeds,Leeds City Council,31/03/2020,Children and Families,Social Care  ,Supplies and Services,Food & Drink,231,19/02/2020,2003-00697,0.00,188.32,R,Aldi 88 779,Yes
Http://opendatacommunities.org/id/metropolitan-district-council/leeds,Leeds City Council,31/03/2020,Children and Families,Social Care  ,Supplies and Services,Food & Drink,231,13/02/2020,2003-00698,0.00,14.39,R,Aldi 89 779,Yes
Http://opendatacommunities.org/id/metropolitan-district-council/leeds,Leeds City Council,31/03/2020,Children and Families,Social Care  ,Supplies and Services,Food & Drink,231,27/02/2020,2003-00699,0.00,16.84,R,Aldi 89 779,Yes
Http://opendatacommunities.org/id/metropolitan-district-council/leeds,Leeds City Council,31/03/2020,Communities and Environment,Customer Access  ,Supplies and Services,Office Consumables,210,07/02/2020,2003-00700,0.00,1.33,R,Aldi Stores,Yes
Http://opendatacommunities.org/id/metropolitan-district-council/leeds,Leeds City Council,31/03/2020,Children and Families,Social Care  ,Supplies and Services,Food & Drink,231,07/02/2020,2003-00701,0.00,45.83,R,Aldi Stores,Yes
Http://opendatacommunities.org/id/metropolitan-district-council/leeds,Leeds City Council,31/03/2020,Children and Families,Social Care  ,Premises,Cleaning Maintenance & Toiletries,127,07/02/2020,2003-00702,0.00,8.76,R,Aldi Stores,Yes
Http://opendatacommunities.org/id/metropolitan-district-council/leeds,Leeds City Council,31/03/2020,Communities and Environment,Customer Access,Supplies and Services,Bought In Professional Services,277,02/03/2020,2003-00703,0.00,25.50,R,Alena Zueva,No
Http://opendatacommunities.org/id/metropolitan-district-council/leeds,Leeds City Council,31/03/2020,Communities and Environment,Customer Access,Supplies and Services,Bought In Professional Services,277,02/03/2020,2003-00704,0.00,25.50,R,Alena Zueva,No
Http://opendatacommunities.org/id/metropolitan-district-council/leeds,Leeds City Council,31/03/2020,Communities and Environment,Customer Access,Supplies and Services,Bought In Professional Services,277,19/03/2020,2003-00705,0.00,69.00,R,Alena Zueva,No
Http://opendatacommunities.org/id/metropolitan-district-council/leeds,Leeds City Council,31/03/2020,Communities and Environment,Customer Access,Supplies and Services,Bought In Professional Services,277,19/03/2020,2003-00706,0.00,25.50,R,Alena Zueva,No
Http://opendatacommunities.org/id/metropolitan-district-council/leeds,Leeds City Council,31/03/2020,Communities and Environment,Customer Access,Supplies and Services,Bought In Professional Services,277,19/03/2020,2003-00707,0.00,25.50,R,Alena Zueva,No
Http://opendatacommunities.org/id/metropolitan-district-council/leeds,Leeds City Council,31/03/2020,Communities and Environment,Customer Access,Supplies and Services,Bought In Professional Services,277,19/03/2020,2003-00708,0.00,30.00,R,Alena Zueva,No
Http://opendatacommunities.org/id/metropolitan-district-council/leeds,Leeds City Council,31/03/2020,Children and Families,Social Care,Support Services,Legal Disbursements,411,13/03/2020,2003-00709,0.00,125.36,R,Alere Toxicology Plc,No
Http://opendatacommunities.org/id/metropolitan-district-council/leeds,Leeds City Council,31/03/2020,Children and Families,Social Care,Support Services,Legal Disbursements,411,19/03/2020,2003-00710,0.00,166.75,R,Alere Toxicology Plc,No
Http://opendatacommunities.org/id/metropolitan-district-council/leeds,Leeds City Council,31/03/2020,Children and Families,Social Care,Support Services,Legal Disbursements,411,27/03/2020,2003-00711,0.00,89.80,R,Alere Toxicology Plc,No
Http://opendatacommunities.org/id/metropolitan-district-council/leeds,Leeds City Council,31/03/2020,Children and Families,Social Care,Supplies and Services,General Amenity For Clients/Residents,285,27/03/2020,2003-00712,0.00,20.00,R,REDACTED PERSONAL DATA,No
Http://opendatacommunities.org/id/metropolitan-district-council/leeds,Leeds City Council,31/03/2020,Children and Families,Social Care,Transport,Public Transport Expenses,310,27/03/2020,2003-00713,0.00,5.84,R,REDACTED PERSONAL DATA,No
Http://opendatacommunities.org/id/metropolitan-district-council/leeds,Leeds City Council,31/03/2020,Children and Families,Social Care,Support Services,Legal Disbursements,411,27/03/2020,2003-00714,0.00,600.00,R,Alex Taylor,No
Http://opendatacommunities.org/id/metropolitan-district-council/leeds,Leeds City Council,31/03/2020,Children and Families,Social Care,Support Services,Legal Disbursements,411,27/03/2020,2003-00715,0.00,216.00,R,Alex Taylor,No
Http://opendatacommunities.org/id/metropolitan-district-council/leeds,Leeds City Council,31/03/2020,Resources and Housing,Commercial Services,Supplies and Services,Other Hired And Contracted Services,265,04/03/2020,2003-00716,0.00,75.00,R,Alex Wagg,No
Http://opendatacommunities.org/id/metropolitan-district-council/leeds,Leeds City Council,31/03/2020,Resources and Housing,Commercial Services,Transport,Vehicle Spares,345,06/03/2020,2003-00717,0.00,253.02,R,Alex Wagg,No
Http://opendatacommunities.org/id/metropolitan-district-council/leeds,Leeds City Council,31/03/2020,Resources and Housing,Commercial Services,Transport,Vehicle Spares,345,11/03/2020,2003-00718,0.00,84.34,R,Alex Wagg,No
Http://opendatacommunities.org/id/metropolitan-district-council/leeds,Leeds City Council,31/03/2020,Resources and Housing,Commercial Services,Supplies and Services,Other Hired And Contracted Services,265,11/03/2020,2003-00719,0.00,150.00,R,Alex Wagg,No
Http://opendatacommunities.org/id/metropolitan-district-council/leeds,Leeds City Council,31/03/2020,Resources and Housing,Commercial Services,Supplies and Services,Other Hired And Contracted Services,265,13/03/2020,2003-00720,0.00,40.00,R,Alex Wagg,No
Http://opendatacommunities.org/id/metropolitan-district-council/leeds,Leeds City Council,31/03/2020,Resources and Housing,Commercial Services,Supplies and Services,Other Hired And Contracted Services,265,13/03/2020,2003-00721,0.00,132.00,R,Alex Wagg,No
Http://opendatacommunities.org/id/metropolitan-district-council/leeds,Leeds City Council,31/03/2020,Resources and Housing,Commercial Services,Transport,Vehicle Spares,345,13/03/2020,2003-00722,0.00,135.00,R,Alex Wagg,No
Http://opendatacommunities.org/id/metropolitan-district-council/leeds,Leeds City Council,31/03/2020,Resources and Housing,Commercial Services,Supplies and Services,Other Hired And Contracted Services,265,18/03/2020,2003-00723,0.00,87.00,R,Alex Wagg,No
Http://opendatacommunities.org/id/metropolitan-district-council/leeds,Leeds City Council,31/03/2020,Resources and Housing,Commercial Services,Supplies and Services,Other Hired And Contracted Services,265,20/03/2020,2003-00724,0.00,80.00,R,Alex Wagg,No
Http://opendatacommunities.org/id/metropolitan-district-council/leeds,Leeds City Council,31/03/2020,Resources and Housing,Commercial Services,Supplies and Services,Other Hired And Contracted Services,265,20/03/2020,2003-00725,0.00,100.00,R,Alex Wagg,No
Http://opendatacommunities.org/id/metropolitan-district-council/leeds,Leeds City Council,31/03/2020,Resources and Housing,Commercial Services,Supplies and Services,Other Hired And Contracted Services,265,20/03/2020,2003-00726,0.00,60.00,R,Alex Wagg,No
Http://opendatacommunities.org/id/metropolitan-district-council/leeds,Leeds City Council,31/03/2020,Resources and Housing,Commercial Services,Supplies and Services,Other Hired And Contracted Services,265,20/03/2020,2003-00727,0.00,100.00,R,Alex Wagg,No
Http://opendatacommunities.org/id/metropolitan-district-council/leeds,Leeds City Council,31/03/2020,Resources and Housing,Commercial Services,Supplies and Services,Other Hired And Contracted Services,265,26/03/2020,2003-00728,0.00,200.00,R,Alex Wagg,No
Http://opendatacommunities.org/id/metropolitan-district-council/leeds,Leeds City Council,31/03/2020,Resources and Housing,Commercial Services,Supplies and Services,Other Hired And Contracted Services,265,27/03/2020,2003-00729,0.00,260.00,R,Alex Wagg,No
Http://opendatacommunities.org/id/metropolitan-district-council/leeds,Leeds City Council,31/03/2020,Resources and Housing,Commercial Services,Supplies and Services,Other Hired And Contracted Services,265,27/03/2020,2003-00730,0.00,120.00,R,Alex Wagg,No
Http://opendatacommunities.org/id/metropolitan-district-council/leeds,Leeds City Council,31/03/2020,City Development,Recreation,Supplies and Services,Other Hired And Contracted Services,265,13/03/2020,2003-00731,0.00,283.33,R,Alexander Parry,No
Http://opendatacommunities.org/id/metropolitan-district-council/leeds,Leeds City Council,31/03/2020,City Development,Recreation,Supplies and Services,Other Hired And Contracted Services,265,27/03/2020,2003-00732,0.00,283.33,R,Alexander Parry,No
Http://opendatacommunities.org/id/metropolitan-district-council/leeds,Leeds City Council,31/03/2020,Adults and Health,Services For Older People - 65 And Over,Third Party Payments,Residential Care Dementia,571,04/03/2020,2003-00733,0.00,21768.71,R,Alexander Residential Home,No
Http://opendatacommunities.org/id/metropolitan-district-council/leeds,Leeds City Council,31/03/2020,Adults and Health,Services For Older People - 65 And Over,Third Party Payments,Residential,580,04/03/2020,2003-00734,0.00,21740.82,R,Alexander Residential Home,No
Http://opendatacommunities.org/id/metropolitan-district-council/leeds,Leeds City Council,31/03/2020,Communities and Environment,Customer Access,Supplies and Services,Bought In Professional Services,277,06/03/2020,2003-00735,0.00,18.00,R,Alexandra Costenco,No
Http://opendatacommunities.org/id/metropolitan-district-council/leeds,Leeds City Council,31/03/2020,Communities and Environment,Customer Access,Supplies and Services,Bought In Professional Services,277,11/03/2020,2003-00736,0.00,45.00,R,Alexandra Costenco,No
Http://opendatacommunities.org/id/metropolitan-district-council/leeds,Leeds City Council,31/03/2020,Communities and Environment,Customer Access,Supplies and Services,Bought In Professional Services,277,11/03/2020,2003-00737,0.00,40.50,R,Alexandra Costenco,No
Http://opendatacommunities.org/id/metropolitan-district-council/leeds,Leeds City Council,31/03/2020,Communities and Environment,Customer Access,Supplies and Services,Bought In Professional Services,277,11/03/2020,2003-00738,0.00,36.00,R,Alexandra Costenco,No
Http://opendatacommunities.org/id/metropolitan-district-council/leeds,Leeds City Council,31/03/2020,Communities and Environment,Customer Access,Supplies and Services,Bought In Professional Services,277,11/03/2020,2003-00739,0.00,18.00,R,Alexandra Costenco,No
Http://opendatacommunities.org/id/metropolitan-district-council/leeds,Leeds City Council,31/03/2020,Communities and Environment,Customer Access,Supplies and Services,Bought In Professional Services,277,11/03/2020,2003-00740,0.00,18.00,R,Alexandra Costenco,No
Http://opendatacommunities.org/id/metropolitan-district-council/leeds,Leeds City Council,31/03/2020,Communities and Environment,Customer Access,Supplies and Services,Bought In Professional Services,277,11/03/2020,2003-00741,0.00,36.00,R,Alexandra Costenco,No
Http://opendatacommunities.org/id/metropolitan-district-council/leeds,Leeds City Council,31/03/2020,Adults and Health,Services For Older People - 65 And Over,Third Party Payments,Residential Care Dementia,571,04/03/2020,2003-00742,0.00,3640.24,R,Alexandra Court,No
Http://opendatacommunities.org/id/metropolitan-district-council/leeds,Leeds City Council,31/03/2020,Adults and Health,Services For Older People - 65 And Over,Third Party Payments,Residential,580,04/03/2020,2003-00743,0.00,18782.14,R,Alexandra Court,No
Http://opendatacommunities.org/id/metropolitan-district-council/leeds,Leeds City Council,31/03/2020,Adults and Health,Services For Older People - 65 And Over  ,Supplies and Services,Operational Materials,205,24/02/2020,2003-00744,0.00,14.26,R,Alexandra Website,Yes
Http://opendatacommunities.org/id/metropolitan-district-council/leeds,Leeds City Council,31/03/2020,Adults and Health,Services For Older People - 65 And Over  ,Supplies and Services,Clothing & Uniforms,241,26/02/2020,2003-00745,0.00,30.58,R,Alexandra Website,Yes
Http://opendatacommunities.org/id/metropolitan-district-council/leeds,Leeds City Council,31/03/2020,Communities and Environment,Car Parking Services,Income,Penalties  Fines & Car Parking Charges,934,26/03/2020,2003-00746,0.00,83.00,R,Alfa H Portfolio 1 Ltd,No
Http://opendatacommunities.org/id/metropolitan-district-council/leeds,Leeds City Council,31/03/2020,Resources and Housing,Leeds Building Services,Supplies and Services,Other Hired And Contracted Services,265,02/03/2020,2003-00747,0.00,-420.00,R,Alfred Bagnall & Sons (Leeds) Ltd,No
Http://opendatacommunities.org/id/metropolitan-district-council/leeds,Leeds City Council,31/03/2020,Resources and Housing,Leeds Building Services,Supplies and Services,Other Hired And Contracted Services,265,02/03/2020,2003-00748,0.00,420.00,R,Alfred Bagnall & Sons (Leeds) Ltd,No
Http://opendatacommunities.org/id/metropolitan-district-council/leeds,Leeds City Council,31/03/2020,Resources and Housing,Leeds Building Services,Supplies and Services,Other Hired And Contracted Services,265,06/03/2020,2003-00749,0.00,1378.50,R,Alfred Bagnall & Sons (Leeds) Ltd,No
Http://opendatacommunities.org/id/metropolitan-district-council/leeds,Leeds City Council,31/03/2020,Resources and Housing,Leeds Building Services,Supplies and Services,Other Hired And Contracted Services,265,13/03/2020,2003-00750,0.00,1500.00,R,Alfred Bagnall & Sons (Leeds) Ltd,No
Http://opendatacommunities.org/id/metropolitan-district-council/leeds,Leeds City Council,31/03/2020,Resources and Housing,Leeds Building Services,Supplies and Services,Other Hired And Contracted Services,265,13/03/2020,2003-00751,0.00,9998.00,R,Alfred Bagnall & Sons (Leeds) Ltd,No
Http://opendatacommunities.org/id/metropolitan-district-council/leeds,Leeds City Council,31/03/2020,Resources and Housing,Leeds Building Services,Supplies and Services,Other Hired And Contracted Services,265,13/03/2020,2003-00752,0.00,1259.50,R,Alfred Bagnall & Sons (Leeds) Ltd,No
Http://opendatacommunities.org/id/metropolitan-district-council/leeds,Leeds City Council,31/03/2020,Resources and Housing,Leeds Building Services,Supplies and Services,Other Hired And Contracted Services,265,13/03/2020,2003-00753,0.00,2250.00,R,Alfred Bagnall & Sons (Leeds) Ltd,No
Http://opendatacommunities.org/id/metropolitan-district-council/leeds,Leeds City Council,31/03/2020,Resources and Housing,Leeds Building Services,Supplies and Services,Other Hired And Contracted Services,265,16/03/2020,2003-00754,0.00,6650.00,R,Alfred Bagnall & Sons (Leeds) Ltd,No
Http://opendatacommunities.org/id/metropolitan-district-council/leeds,Leeds City Council,31/03/2020,Children and Families,Social Care,Premises,Grounds Maintenance Work,111,17/03/2020,2003-00755,0.00,3220.00,R,Alfred Bagnall & Sons (Leeds) Ltd,No
Http://opendatacommunities.org/id/metropolitan-district-council/leeds,Leeds City Council,31/03/2020,Resources and Housing,Leeds Building Services,Supplies and Services,Other Hired And Contracted Services,265,18/03/2020,2003-00756,0.00,9398.00,R,Alfred Bagnall & Sons (Leeds) Ltd,No
Http://opendatacommunities.org/id/metropolitan-district-council/leeds,Leeds City Council,31/03/2020,Resources and Housing,Leeds Building Services,Supplies and Services,Other Hired And Contracted Services,265,20/03/2020,2003-00757,0.00,1378.50,R,Alfred Bagnall & Sons (Leeds) Ltd,No
Http://opendatacommunities.org/id/metropolitan-district-council/leeds,Leeds City Council,31/03/2020,Resources and Housing,Leeds Building Services,Supplies and Services,Other Hired And Contracted Services,265,20/03/2020,2003-00758,0.00,1378.50,R,Alfred Bagnall & Sons (Leeds) Ltd,No
Http://opendatacommunities.org/id/metropolitan-district-council/leeds,Leeds City Council,31/03/2020,Resources and Housing,Leeds Building Services,Supplies and Services,Other Hired And Contracted Services,265,20/03/2020,2003-00759,0.00,1378.50,R,Alfred Bagnall & Sons (Leeds) Ltd,No
Http://opendatacommunities.org/id/metropolitan-district-council/leeds,Leeds City Council,31/03/2020,Resources and Housing,Leeds Building Services,Supplies and Services,Other Hired And Contracted Services,265,20/03/2020,2003-00760,0.00,1378.50,R,Alfred Bagnall & Sons (Leeds) Ltd,No
Http://opendatacommunities.org/id/metropolitan-district-council/leeds,Leeds City Council,31/03/2020,Resources and Housing,Leeds Building Services,Supplies and Services,Other Hired And Contracted Services,265,20/03/2020,2003-00761,0.00,210.00,R,Alfred Bagnall & Sons (Leeds) Ltd,No
Http://opendatacommunities.org/id/metropolitan-district-council/leeds,Leeds City Council,31/03/2020,City Development,Libraries  Arts & Heritage,Supplies and Services,Other Hired And Contracted Services,265,20/03/2020,2003-00762,0.00,6130.00,R,Alfred Bagnall & Sons (Leeds) Ltd,No
